{"text_format":"1","workbook":"xlsx","n_sheets":5,"sheets":["Katılım","On_Eleme","Eleme","Ana_Tablo","Sıralama"],"not_rendered":{"charts":0,"images":8,"macros":1,"external_links":0,"defined_names":5,"comments":0,"pivot_tables":0},"unopened":[],"bounds":{"document_bytes":16777216,"sheet_cells":100000,"rows_first":2000,"rows_last":500,"rows_between":2000,"halvings":0,"cell_chars":16384,"cell_head_chars":4096},"cells_cut":0,"cells_raw":0,"read":"whole","date_system":"1900"}

{"sheet":"Katılım","index":0,"n_rows":259,"n_cols":50,"rows_kept":259,"cut":false,"hidden":false,"merged":[[0,0,0,6],[1,0,1,6],[1,34,2,35]]}
["TÜRKİYE MASA TENİSİ FEDERASYONU\nKÜÇÜKLER FEDERASYON KUPASI",null,null,null,null,null,null,null,null,null,null,null,null,null,null,null,null,null,null,null,null,null,null,null,null,null,null,null,{"$f":"A1","v":"TÜRKİYE MASA TENİSİ FEDERASYONU\nKÜÇÜKLER FEDERASYON KUPASI"},null,null,null,null,null,null,null,null,null,null,null,null,null,null,null,null,null,null,"Eleme (128)",1,2]
["TEK ERKEK [17-18 Nisan 2023 Amasya]",null,null,null,null,null,null,null,null,null,null,null,null,null,null,null,null,null,null,null,null,null,null,null,null,null,null,null,{"$f":"A2","v":"TEK ERKEK [17-18 Nisan 2023 Amasya]"},null,null,null,null,null,null,null,null,null,null,null,null,null,null,null,null,null,null,"Eleme (64)",{"$f":"LOOKUP(AW1,{1,2,3,4,5,6},{128,64,32,16,8,128})","v":128}]
["No","Puan","Sporcu Adı","İl","Takım Adı","İl","D.Tarihi",null,null,null,null,null,null,null,null,null,null,null,null,null,null,null,null,null,null,null,null,null,"[ Ön Eleme ]","[ Eleme ]","[ Ana Tablo ]",null,null,null,null,null,null,null,null,null,null,null,null,null,null,null,null,"Eleme (32)"]
[1,332,"GÖRKEM ÖÇAL","ADN","ÇİLTAR MTİ","ADANA","2011-09-04",null,null,null,null,null,null,null,null,null,null,null,null,null,null,null,null,null,null,{"$f":"IF(C4=\"\",0,C4&\" (\"&D4&\")\")","v":"GÖRKEM ÖÇAL (ADN)"},null,null,null,null,null,null,null,null,null,null,null,null,null,null,null,null,null,null,null,null,null,"Eleme (16)"]
[2,307,"KENAN EREN KAHRAMAN","KYS","KOCASİNAN BELEDİYESİ SPOR","KAYSERİ","2010-06-12",null,null,null,null,null,null,null,null,null,null,null,null,null,null,null,null,null,null,"KENAN EREN KAHRAMAN (KYS)",null,null,null,null,null,null,null,null,null,null,null,null,null,null,null,null,null,null,null,null,null,"Eleme (8)"]
[3,281,"KUZEY GÜNDOĞDU","KST","KASTAMONU MASATENİSİ SK","KASTAMONU","2011-01-28",null,0.22686600685119629,null,null,null,null,null,null,null,null,null,null,null,null,null,null,null,null,"KUZEY GÜNDOĞDU (KST)",null,null,null,null,null,null,null,null,null,null,null,null,null,null,null,null,null,null,null,null,null,"Eleme (128_Çift)"]
[4,255,"YİĞİT CAN KAYA","İST","PENDİK BELEDİYESPOR","İSTANBUL","2010-01-17",null,0.2439313530921936,null,null,null,null,null,null,null,null,null,null,null,null,null,null,null,null,"YİĞİT CAN KAYA (İST)",null,null,null,null,null,null,null,null,null,null,null,null,null,null,null,null,null,null,null,null,null,"Eleme (128_Çift16)"]
[5,249,"MEHMET EYMEN KILIÇ","KCL","B.B.KAĞITSPOR KULÜBÜ","KOCAELİ","2010-07-13",null,1.4017641544342041E-2,null,null,null,null,null,null,null,null,null,null,null,null,null,null,null,null,"MEHMET EYMEN KILIÇ (KCL)"]
[6,249,"MUHAMMED ÖLMEZ","KNY","SELÇUKLU BELEDİYE SPOR KULÜBÜ","KONYA","2010-03-05",null,0.76072359085083008,null,null,null,null,null,null,null,null,null,null,null,null,null,null,null,null,"MUHAMMED ÖLMEZ (KNY)"]
[7,247,"AHMET ŞAHAN","ISP","ISPARTES SPOR KULÜBÜ","ISPARTA","2010-01-05",null,0.69511550664901733,null,null,null,null,null,null,null,null,null,null,null,null,null,null,null,null,"AHMET ŞAHAN (ISP)"]
[8,243,"İSHAK MORBONCUK","GZT","GAZİANTEP BELEDİYE SPOR KLÜBÜ","GAZİANTEP","2010-03-30",null,0.91096431016921997,null,null,null,null,null,null,null,null,null,null,null,null,null,null,null,null,"İSHAK MORBONCUK (GZT)"]
[9,239,"SALİH EREN YILDIRIM","ISP","GENÇ HAREKET GSK","ISPARTA","2011-05-06",null,0.9800032377243042,null,null,null,null,null,null,null,null,null,null,null,null,null,null,null,null,"SALİH EREN YILDIRIM (ISP)"]
[10,229,"ALİ ENES SEREN","KNY","SELÇUKLU BELEDİYE SPOR KULÜBÜ","KONYA","2012-05-01",null,0.98609316349029541,null,null,null,null,null,null,null,null,null,null,null,null,null,null,null,null,"ALİ ENES SEREN (KNY)"]
[11,226,"MUSTAFA IŞIK ALYAPRAK","İZM","MAVİ EGE G.S.K","İZMİR","2010-08-28",null,null,null,null,null,null,null,null,null,null,null,null,null,null,null,null,null,null,"MUSTAFA IŞIK ALYAPRAK (İZM)"]
[12,224,"BATIN GÜLER","YLV","YALOVA BLD. GENÇLİK SPOR","YALOVA","2010-01-01",null,0.79048001766204834,null,null,null,null,null,null,null,null,null,null,null,null,null,null,null,null,"BATIN GÜLER (YLV)"]
[13,224,"KAAN BEYZAT TUNA","YLV","YALOVA BLD. GENÇLİK SPOR","YALOVA","2011-01-01",null,0.86261934041976929,null,null,null,null,null,null,null,null,null,null,null,null,null,null,null,null,"KAAN BEYZAT TUNA (YLV)"]
[14,221,"UTKU BORA ŞENTÜRK","RİZ","ÇAYKUR RİZESPOR","RİZE","2011-07-12",null,null,null,null,null,null,null,null,null,null,null,null,null,null,null,null,null,null,"UTKU BORA ŞENTÜRK (RİZ)"]
[15,220,"KAAN ATMACA","İST","PENDİK BELEDİYESPOR","İSTANBUL","2010-02-23",null,0.62269669771194458,null,null,null,null,null,null,null,null,null,null,null,null,null,null,null,null,"KAAN ATMACA (İST)"]
[16,220,"ARAS AYDIN","İST","FENERBAHÇE SPOR KULÜBÜ","İSTANBUL","2012-01-23",null,0.64782118797302246,null,null,null,null,null,null,null,null,null,null,null,null,null,null,null,null,"ARAS AYDIN (İST)"]
[17,219,"BORA ÇELİK","KNY","KONYASPOR KÜLÜBÜ DERNEĞİ","KONYA","2011-06-28",null,null,null,null,null,null,null,null,null,null,null,null,null,null,null,null,null,null,"BORA ÇELİK (KNY)"]
[18,217,"ONUR ALP SAĞIR","GRS","YALIKÖY ŞEHİT BARIŞ ÇAKIR OO SPOR KULÜBÜ","GİRESUN","2011-05-25",null,null,null,null,null,null,null,null,null,null,null,null,null,null,null,null,null,null,"ONUR ALP SAĞIR (GRS)"]
[19,216,"MUHAMMED ENES YAVUZ","KYS","KOCASİNAN BELEDİYESİ SPOR","KAYSERİ","2010-07-18",null,0.16044151782989502,null,null,null,null,null,null,null,null,null,null,null,null,null,null,null,null,"MUHAMMED ENES YAVUZ (KYS)"]
[20,216,"ÖMER TALHA ASLAN","ISP","GENÇ HAREKET GSK","ISPARTA","2011-11-29",null,0.27827996015548706,null,null,null,null,null,null,null,null,null,null,null,null,null,null,null,null,"ÖMER TALHA ASLAN (ISP)"]
[21,216,"OZAN ERDEN","BTM","1955 BATMAN BELEDİYE SPOR ","BATMAN","2010-07-27",null,0.30097049474716187,null,null,null,null,null,null,null,null,null,null,null,null,null,null,null,null,"OZAN ERDEN (BTM)"]
[22,216,"DORUK ŞENDOĞAN","RİZ","ÇAYKUR RİZESPOR","RİZE","2010-06-30",null,0.40137434005737305,null,null,null,null,null,null,null,null,null,null,null,null,null,null,null,null,"DORUK ŞENDOĞAN (RİZ)"]
[23,216,"YUSUF ODABAŞ","SKR","SAKARYA BÜYÜKŞEHİR BELEDİYE SPOR KULÜBÜ","SAKARYA","2011-03-14",null,0.94857108592987061,null,null,null,null,null,null,null,null,null,null,null,null,null,null,null,null,"YUSUF ODABAŞ (SKR)"]
[24,216,"TAHA KAAN DUMAN","BTM","BATMAN GENÇLİK SPOR KLÜBÜ","BATMAN","2011-07-11",null,0.97982937097549438,null,null,null,null,null,null,null,null,null,null,null,null,null,null,null,null,"TAHA KAAN DUMAN (BTM)"]
[25,210,"AHMET YİĞİT GÜLENLER","GZT","GAZİANTEP BELEDİYE SPOR KLÜBÜ","GAZİANTEP","2012-04-12",null,0.32620620727539063,null,null,null,null,null,null,null,null,null,null,null,null,null,null,null,null,"AHMET YİĞİT GÜLENLER (GZT)"]
[26,210,"BEYAZIT BERK DEMİR","AMS","MESA SPOR KULÜBÜ","AMASYA","2012-07-16",null,0.71273046731948853,null,null,null,null,null,null,null,null,null,null,null,null,null,null,null,null,"BEYAZIT BERK DEMİR (AMS)"]
[27,208,"AKIŞ TUĞRA ÇARIYEV","ADN","ÇİLTAR MTİ","ADANA","2011-09-26",null,9.7973823547363281E-2,null,null,null,null,null,null,null,null,null,null,null,null,null,null,null,null,"AKIŞ TUĞRA ÇARIYEV (ADN)"]
[28,208,"ORÇUN ÇELİK","SVS"," SİVAS GSK","SİVAS","2010-12-05",null,0.42845636606216431,null,null,null,null,null,null,null,null,null,null,null,null,null,null,null,null,"ORÇUN ÇELİK (SVS)"]
[29,208,"BERAT ÖZDEMİR","ÇRM","ÇORUM BELEDİYESİ GSK","ÇORUM","2012-04-05",null,0.56104010343551636,null,null,null,null,null,null,null,null,null,null,null,null,null,null,null,null,"BERAT ÖZDEMİR (ÇRM)"]
[30,208,"ALİ AŞNAS GÜL","ÇRM","ÇORUM BELEDİYESİ GSK","ÇORUM","2011-06-21",null,0.62764203548431396,null,null,null,null,null,null,null,null,null,null,null,null,null,null,null,null,"ALİ AŞNAS GÜL (ÇRM)"]
[31,208,"EMİR PEHLİVAN","AMS","KUTLUBEY OKULLARI SPOR KULÜBÜ","AMASYA","2011-06-16",null,0.63174241781234741,null,null,null,null,null,null,null,null,null,null,null,null,null,null,null,null,"EMİR PEHLİVAN (AMS)"]
[32,208,"ALİ UTKU YAŞAR","ANT","ANTALYASPOR","ANTALYA","2010-08-02",null,0.69448530673980713,null,null,null,null,null,null,null,null,null,null,null,null,null,null,null,null,"ALİ UTKU YAŞAR (ANT)"]
[33,204,"AHMET ÇELİK","GZT","ŞAHİNBEY BELEDİYE GENÇLİK VE SPOR KULÜBÜ ","GAZİANTEP","2012-12-08",null,0.43026113510131836,null,null,null,null,null,null,null,null,null,null,null,null,null,null,null,null,"AHMET ÇELİK (GZT)"]
[34,204,"MUSTAFA YILDIRIM","KNY","SELÇUKLU BELEDİYE SPOR KULÜBÜ","KONYA","2012-05-03",null,0.91616398096084595,null,null,null,null,null,null,null,null,null,null,null,null,null,null,null,null,"MUSTAFA YILDIRIM (KNY)"]
[35,202,"SELİM AZAZİ","GZT","GAZİANTEP BELEDİYE SPOR KLÜBÜ","GAZİANTEP","2012-01-12",null,3.026425838470459E-2,null,null,null,null,null,null,null,null,null,null,null,null,null,null,null,null,"SELİM AZAZİ (GZT)"]
[36,141,"YİĞİT HÜSEYİN SUBAŞI","ÇRM","ÇORUM BELEDİYESİ GSK","ÇORUM","2012-01-16",null,3.2038450241088867E-2,null,null,null,null,null,null,null,null,null,null,null,null,null,null,null,null,"YİĞİT HÜSEYİN SUBAŞI (ÇRM)"]
[37,139,"EMİR YALÇIN PEHLİVAN","KRL","TRAKER","KIRKLARELİ","2012-09-05",null,3.819197416305542E-2,null,null,null,null,null,null,null,null,null,null,null,null,null,null,null,null,"EMİR YALÇIN PEHLİVAN (KRL)"]
[38,129,"BURAK BEZENMİŞ","BTM","1955 BATMAN BELEDİYE SPOR ","BATMAN","2011-11-11",null,6.0976266860961914E-2,null,null,null,null,null,null,null,null,null,null,null,null,null,null,null,null,"BURAK BEZENMİŞ (BTM)"]
[39,123,"AHMET BERK TÜKENMEZ","İST","FENERBAHÇE SPOR KULÜBÜ","İSTANBUL","2012-09-14",null,7.2723507881164551E-2,null,null,null,null,null,null,null,null,null,null,null,null,null,null,null,null,"AHMET BERK TÜKENMEZ (İST)"]
[40,120,"MUHAMMED EMİN KABADAYI","BRS","BURSA BÜYÜKŞEHİR BELEDİYESPOR","BURSA ","2012-05-24",null,8.725738525390625E-2,null,null,null,null,null,null,null,null,null,null,null,null,null,null,null,null,"MUHAMMED EMİN KABADAYI (BRS)"]
[41,119,"EYMEN BAŞAR","İST","FENERBAHÇE SPOR KULÜBÜ","İSTANBUL","2013-08-12",null,9.5585167407989502E-2,null,null,null,null,null,null,null,null,null,null,null,null,null,null,null,null,"EYMEN BAŞAR (İST)"]
[42,118,"HASAN TALHA YAVUZ","KYS","KOCASİNAN BELEDİYESİ SPOR","KAYSERİ","2012-03-26",null,0.11724323034286499,null,null,null,null,null,null,null,null,null,null,null,null,null,null,null,null,"HASAN TALHA YAVUZ (KYS)"]
[43,117,"MEHMET ERDEM DEMİRTAŞ","MĞL","MUĞLA B.B. GENÇLİK VE SPOR KULÜBÜ DERNEĞİ","MUĞLA","2012-04-02",null,0.13563632965087891,null,null,null,null,null,null,null,null,null,null,null,null,null,null,null,null,"MEHMET ERDEM DEMİRTAŞ (MĞL)"]
[44,116,"EYMEN KARA","AMS","KUTLUBEY OKULLARI SPOR KULÜBÜ","AMASYA","2011-05-11",null,0.1376880407333374,null,null,null,null,null,null,null,null,null,null,null,null,null,null,null,null,"EYMEN KARA (AMS)"]
[45,108,"KEREM UZUN","GRS","YALIKÖY ŞEHİT BARIŞ ÇAKIR OO SPOR KULÜBÜ","GİRESUN","2011-07-11",null,0.1394379734992981,null,null,null,null,null,null,null,null,null,null,null,null,null,null,null,null,"KEREM UZUN (GRS)"]
[46,"","SALİH ARDA BAHTİYAR","ORD","FERDİ ","ORDU","2011-09-21",null,9.4184279441833496E-3,null,null,null,null,null,null,null,null,null,null,null,null,null,null,null,null,"SALİH ARDA BAHTİYAR (ORD)"]
[47,"","EGE GÜLTEKİN","YLV","YALOVA BLD. GENÇLİK SPOR","YALOVA","2010-01-01",null,1.4581799507141113E-2,null,null,null,null,null,null,null,null,null,null,null,null,null,null,null,null,"EGE GÜLTEKİN (YLV)"]
[48,"","MEHMET EREN HANÇER","KMŞ","GENÇLİK SPOR","K.MARAŞ","2011-08-23",null,1.8808901309967041E-2,null,null,null,null,null,null,null,null,null,null,null,null,null,null,null,null,"MEHMET EREN HANÇER (KMŞ)"]
[49,"","FURKAN SÖNMEZAY","BRS","BURSA BÜYÜKŞEHİR BELEDİYESPOR","BURSA ","2010-02-27",null,3.544008731842041E-2,null,null,null,null,null,null,null,null,null,null,null,null,null,null,null,null,"FURKAN SÖNMEZAY (BRS)"]
[50,"","CEYHUN BOLAT","SMS","19 MAYIS ENGİZ SPOR KULÜBÜ","SAMSUN","2010-01-13",null,4.0310204029083252E-2,null,null,null,null,null,null,null,null,null,null,null,null,null,null,null,null,"CEYHUN BOLAT (SMS)"]
[51,"","ERDEM EREN","ESK","ESKİŞEHİR BÜYÜKŞEHİR GENÇLİK VE SPOR","ESKİŞEHİR","2011-03-10",null,4.2947709560394287E-2,null,null,null,null,null,null,null,null,null,null,null,null,null,null,null,null,"ERDEM EREN (ESK)"]
[52,"","KAAN SÜLÜN","KRL","GENCLİK SPOR KULÜBÜ KIRKLARELİ","KIRKLARELİ","2011-05-24",null,5.4648637771606445E-2,null,null,null,null,null,null,null,null,null,null,null,null,null,null,null,null,"KAAN SÜLÜN (KRL)"]
[53,"","AHMET YASİN KORKMAZ","GZT","GAZİANTEP BELEDİYE SPOR KLÜBÜ","GAZİANTEP","2011-07-07",null,5.8991491794586182E-2,null,null,null,null,null,null,null,null,null,null,null,null,null,null,null,null,"AHMET YASİN KORKMAZ (GZT)"]
[54,"","KEREM ÇINAR ORMAN","KRL","ZİRVE GSK","KIRKLARELİ","13.12.2010",null,5.961686372756958E-2,null,null,null,null,null,null,null,null,null,null,null,null,null,null,null,null,"KEREM ÇINAR ORMAN (KRL)"]
[55,"","SERKAN ÖNCÜ","ESK","ESKİŞEHİR BÜYÜKŞEHİR GENÇLİK VE SPOR","ESKİŞEHİR","2011-01-11",null,7.3634207248687744E-2,null,null,null,null,null,null,null,null,null,null,null,null,null,null,null,null,"SERKAN ÖNCÜ (ESK)"]
[56,"","YUSUF BORA ATAK","ANK","KARİYER EĞİTİM SPOR KULÜBÜ ","ANKARA","2010-08-03",null,7.4107885360717773E-2,null,null,null,null,null,null,null,null,null,null,null,null,null,null,null,null,"YUSUF BORA ATAK (ANK)"]
[57,"","EKİN AĞBABA","ANK","ŞAFAKTEPE GSK","ANKARA","2011-05-27",null,8.9153528213500977E-2,null,null,null,null,null,null,null,null,null,null,null,null,null,null,null,null,"EKİN AĞBABA (ANK)"]
[58,"","BERAT AYDIN","KCL","B.B.KAĞITSPOR KULÜBÜ","KOCAELİ","2011-05-25",null,0.15259981155395508,null,null,null,null,null,null,null,null,null,null,null,null,null,null,null,null,"BERAT AYDIN (KCL)"]
[59,"","YUSUF EYMEN SARIER","VAN","GENÇLİK VE SPOR","VAN","2011-10-21",null,0.16294205188751221,null,null,null,null,null,null,null,null,null,null,null,null,null,null,null,null,"YUSUF EYMEN SARIER (VAN)"]
[60,"","ATAY TUNA GENEL","ÇRM","SPOR İHTİSAS","ÇORUM","31.08.2010",null,0.18442481756210327,null,null,null,null,null,null,null,null,null,null,null,null,null,null,null,null,"ATAY TUNA GENEL (ÇRM)"]
[61,"","YAĞIZ EMRE ÇELİK","MLT","MALATYA B. ŞEH. BLD. SPOR","MALATYA","2010-01-01",null,0.20649856328964233,null,null,null,null,null,null,null,null,null,null,null,null,null,null,null,null,"YAĞIZ EMRE ÇELİK (MLT)"]
[62,"","CEMAL EYMEN BAYRAM","MLT","MALATYA B. ŞEH. BLD. SPOR","MALATYA","2010-01-01",null,0.24331068992614746,null,null,null,null,null,null,null,null,null,null,null,null,null,null,null,null,"CEMAL EYMEN BAYRAM (MLT)"]
[63,"","FERHAT OZAN AĞASLAN","GZT","GAZİANTEP BELEDİYE SPOR KLÜBÜ","GAZİANTEP","2011-06-10",null,0.28355967998504639,null,null,null,null,null,null,null,null,null,null,null,null,null,null,null,null,"FERHAT OZAN AĞASLAN (GZT)"]
[64,"","KAYA ARSLAN","İST","YILDIZ RAKETLER SPOR KULÜBÜ","İSTANBUL",null,null,0.29329967498779297,null,null,null,null,null,null,null,null,null,null,null,null,null,null,null,null,"KAYA ARSLAN (İST)"]
[65,null,"ALTAY TAN","İZM","İSTANBUL","İZMİR","2011-07-13",null,0.31183719635009766,null,null,null,null,null,null,null,null,null,null,null,null,null,null,null,null,{"$f":"IF(C68=\"\",0,C68&\" (\"&D68&\")\")","v":"ALTAY TAN (İZM)"}]
[66,null,"ÖNDER BOZKIR","IĞD","YURDUM SPOR","IĞDIR ","2011",null,0.31481254100799561,null,null,null,null,null,null,null,null,null,null,null,null,null,null,null,null,"ÖNDER BOZKIR (IĞD)"]
[67,"","YİĞİT KIRMIZIGÜL","TKD","ÇERKEZKÖY BELEDİYESİ GENÇLİK VE SPOR KULÜBÜ ","TEKİRDAĞ","2010-01-05",null,0.32239800691604614,null,null,null,null,null,null,null,null,null,null,null,null,null,null,null,null,"YİĞİT KIRMIZIGÜL (TKD)"]
[68,null,"UMUTCAN GÜNDOĞDU","IĞD","YURDUM SPOR","IĞDIR ","2010",null,0.32962536811828613,null,null,null,null,null,null,null,null,null,null,null,null,null,null,null,null,"UMUTCAN GÜNDOĞDU (IĞD)"]
[69,"","MERT ÇALIŞKAN","KRL","ZİRVE GSK","KIRKLARELİ","06.06.2010",null,0.34533506631851196,null,null,null,null,null,null,null,null,null,null,null,null,null,null,null,null,"MERT ÇALIŞKAN (KRL)"]
[70,"","MUSTAFA ÇİÇEK","ÇNR","GENÇLİKSPOR","ÇANKIRI","18.06.2010",null,0.40574491024017334,null,null,null,null,null,null,null,null,null,null,null,null,null,null,null,null,"MUSTAFA ÇİÇEK (ÇNR)"]
[71,"","SADIK EREN UZUNÖMER","ÇNR","GENÇLİKSPOR","ÇANKIRI","23.06.2010",null,0.40876096487045288,null,null,null,null,null,null,null,null,null,null,null,null,null,null,null,null,"SADIK EREN UZUNÖMER (ÇNR)"]
[72,"","METEHAN DEMİREL","TKD","ÇERKEZKÖY BELEDİYESİ GENÇLİK VE SPOR KULÜBÜ ","TEKİRDAĞ","2010-11-26",null,0.41235500574111938,null,null,null,null,null,null,null,null,null,null,null,null,null,null,null,null,"METEHAN DEMİREL (TKD)"]
[73,"","BURAK TUNCER","ESK","ESKİŞEHİR BÜYÜKŞEHİR GENÇLİK VE SPOR","ESKİŞEHİR","2010-01-22",null,0.42011135816574097,null,null,null,null,null,null,null,null,null,null,null,null,null,null,null,null,"BURAK TUNCER (ESK)"]
[74,"","DURAN BAYRAM","KYS","SPOR A.Ş GENÇLİK VE S.K DERNEĞİ","KAYSERİ","2010-08-30",null,0.43160009384155273,null,null,null,null,null,null,null,null,null,null,null,null,null,null,null,null,"DURAN BAYRAM (KYS)"]
[75,"","BURAK SEVİNÇ","ANK","KARİYER EĞİTİM SPOR KULÜBÜ ","ANKARA","2010-09-24",null,0.45099937915802002,null,null,null,null,null,null,null,null,null,null,null,null,null,null,null,null,"BURAK SEVİNÇ (ANK)"]
[76,"","EMİR ZİYA PEÇE","YLV","YALOVA BLD. GENÇLİK SPOR","YALOVA","2010-01-01",null,0.48348832130432129,null,null,null,null,null,null,null,null,null,null,null,null,null,null,null,null,"EMİR ZİYA PEÇE (YLV)"]
[77,"","ÜVEYS ÇINAR","VAN","GENÇLİK VE SPOR","VAN","2010-01-26",null,0.51004743576049805,null,null,null,null,null,null,null,null,null,null,null,null,null,null,null,null,"ÜVEYS ÇINAR (VAN)"]
[78,"","UMUT ŞAN","GZT","GAZİANTEP BELEDİYE SPOR KLÜBÜ","GAZİANTEP","2010-01-01",null,0.5176931619644165,null,null,null,null,null,null,null,null,null,null,null,null,null,null,null,null,"UMUT ŞAN (GZT)"]
[79,null,"MERT KILIÇ KALKAN","IĞD","YURDUM SPOR","IĞDIR ","2011",null,0.5484238862991333,null,null,null,null,null,null,null,null,null,null,null,null,null,null,null,null,"MERT KILIÇ KALKAN (IĞD)"]
[80,"","ÖMER SAİT BEKDEMİR","ANK","HAZERSPOR KULÜBÜ","ANKARA","2011-12-04",null,0.5584447979927063,null,null,null,null,null,null,null,null,null,null,null,null,null,null,null,null,"ÖMER SAİT BEKDEMİR (ANK)"]
[81,"","ONUR RECEP BAKİ","TRB","FERDİ ","TRABZON","07.06.2010",null,0.56430667638778687,null,null,null,null,null,null,null,null,null,null,null,null,null,null,null,null,"ONUR RECEP BAKİ (TRB)"]
[82,"","MUHAMMET EREN ÇAP","ORD","FERDİ ","ORDU","2011-01-10",null,0.57295358180999756,null,null,null,null,null,null,null,null,null,null,null,null,null,null,null,null,"MUHAMMET EREN ÇAP (ORD)"]
[83,"","ARDA AYTEKİN","KYS","KOCASİNAN BELEDİYESİ SPOR","KAYSERİ","2011-01-01",null,0.57587391138076782,null,null,null,null,null,null,null,null,null,null,null,null,null,null,null,null,"ARDA AYTEKİN (KYS)"]
[84,"","MEHMET VARCAN","ESK","ESKİŞEHİR BÜYÜKŞEHİR GENÇLİK VE SPOR","ESKİŞEHİR","2010-05-14",null,0.58038711547851563,null,null,null,null,null,null,null,null,null,null,null,null,null,null,null,null,"MEHMET VARCAN (ESK)"]
[85,"","ERDEM ÇELİK","ISP","ISPARTES SPOR KULÜBÜ","ISPARTA","2010-04-28",null,0.58248442411422729,null,null,null,null,null,null,null,null,null,null,null,null,null,null,null,null,"ERDEM ÇELİK (ISP)"]
[86,"","BÜNYAMİN TANBOĞA","BTM","BATMAN GENÇLİK SPOR KLÜBÜ","BATMAN","2011-11-05",null,0.59643775224685669,null,null,null,null,null,null,null,null,null,null,null,null,null,null,null,null,"BÜNYAMİN TANBOĞA (BTM)"]
[87,"","SELMAN ARSLAN","GRS","GİRESUN GENÇLİK VE SPOR KULÜBÜ","GİRESUN","2010-05-18",null,0.6021040678024292,null,null,null,null,null,null,null,null,null,null,null,null,null,null,null,null,"SELMAN ARSLAN (GRS)"]
[88,"","MUHAMMED ALİ GÜNDOĞDU","IĞD","GENÇLİK SPOR KULÜBÜ ","IĞDIR ","2012",null,0.60304373502731323,null,null,null,null,null,null,null,null,null,null,null,null,null,null,null,null,"MUHAMMED ALİ GÜNDOĞDU (IĞD)"]
[89,"","DEMİRKAN GÜLTEN","ESK","ESKİŞEHİR BÜYÜKŞEHİR GENÇLİK VE SPOR","ESKİŞEHİR","2010-01-22",null,0.65339726209640503,null,null,null,null,null,null,null,null,null,null,null,null,null,null,null,null,"DEMİRKAN GÜLTEN (ESK)"]
[90,"","KEMAL İNCE","ANK","KARİYER EĞİTİM SPOR KULÜBÜ ","ANKARA","2011-05-13",null,0.66192418336868286,null,null,null,null,null,null,null,null,null,null,null,null,null,null,null,null,"KEMAL İNCE (ANK)"]
[91,"","MED DEVRAN KILIÇKALKAN","IĞD","GENÇLİK SPOR KULÜBÜ ","IĞDIR ","09.09.2011",null,0.68425178527832031,null,null,null,null,null,null,null,null,null,null,null,null,null,null,null,null,"MED DEVRAN KILIÇKALKAN (IĞD)"]
[92,"","EREN CAN HAS","İST","İSTANBUL BÜYÜKŞEHİR BELEDİYE","İSTANBUL","2011-08-16",null,0.732524573802948,null,null,null,null,null,null,null,null,null,null,null,null,null,null,null,null,"EREN CAN HAS (İST)"]
[93,"","YUSUF BUĞRA GÜRHAN","VAN","GENÇLİK VE SPOR","VAN","2011-07-03",null,0.73351067304611206,null,null,null,null,null,null,null,null,null,null,null,null,null,null,null,null,"YUSUF BUĞRA GÜRHAN (VAN)"]
[94,"","TARIK EYMEN AYDIN","SMS","19 MAYIS ENGİZ SPOR KULÜBÜ","SAMSUN","2010-04-07",null,0.75857442617416382,null,null,null,null,null,null,null,null,null,null,null,null,null,null,null,null,"TARIK EYMEN AYDIN (SMS)"]
[95,"","YUSUF BURAK BİLGİNER","KRL","GENCLİK SPOR KULÜBÜ KIRKLARELİ","KIRKLARELİ","2010-01-10",null,0.76342016458511353,null,null,null,null,null,null,null,null,null,null,null,null,null,null,null,null,"YUSUF BURAK BİLGİNER (KRL)"]
[96,null,"HÜSEYİN ALİ GÜRARAS","IĞD","YURDUM SPOR","IĞDIR ","2011",null,0.77007186412811279,null,null,null,null,null,null,null,null,null,null,null,null,null,null,null,null,"HÜSEYİN ALİ GÜRARAS (IĞD)"]
[97,"","MELİKŞAH ÖZBİLGİ","BYB","BAYBURT GMGSK","BAYBURT","2010-07-17",null,0.7810065746307373,null,null,null,null,null,null,null,null,null,null,null,null,null,null,null,null,"MELİKŞAH ÖZBİLGİ (BYB)"]
[98,"","AHMET BARAN KAYA","VAN","GENÇLİK VE SPOR","VAN","2011-04-28",null,0.79146403074264526,null,null,null,null,null,null,null,null,null,null,null,null,null,null,null,null,"AHMET BARAN KAYA (VAN)"]
[99,"","YUSUF SAMET KURT","ZNG","ÖZEL İDARE YOLSPOR","ZONGULDAK","2011-06-26",null,0.79417353868484497,null,null,null,null,null,null,null,null,null,null,null,null,null,null,null,null,"YUSUF SAMET KURT (ZNG)"]
[100,"","EMRE GÖZÜKÜÇÜK","SVS"," SİVAS GSK","SİVAS","2011-01-25",null,0.80788671970367432,null,null,null,null,null,null,null,null,null,null,null,null,null,null,null,null,"EMRE GÖZÜKÜÇÜK (SVS)"]
[101,"","MERİÇ ÇORAK","ZNG","ÖZEL İDARE YOLSPOR","ZONGULDAK","2010-02-21",null,0.9088788628578186,null,null,null,null,null,null,null,null,null,null,null,null,null,null,null,null,"MERİÇ ÇORAK (ZNG)"]
[102,"","FURKAN ÇELİK","IĞD","GENÇLİK SPOR KULÜBÜ ","IĞDIR ","09.09.2011",null,0.9092983603477478,null,null,null,null,null,null,null,null,null,null,null,null,null,null,null,null,"FURKAN ÇELİK (IĞD)"]
[103,"","M. FURKAN AKINCI","BTM","1955 BATMAN BELEDİYE SPOR ","BATMAN","2011-06-06",null,0.94528055191040039,null,null,null,null,null,null,null,null,null,null,null,null,null,null,null,null,"M. FURKAN AKINCI (BTM)"]
[104,"","MUSTAFA KEMAL KADI","GZT","GAZİANTEP BELEDİYE SPOR KLÜBÜ","GAZİANTEP","2010-01-22",null,0.95124757289886475,null,null,null,null,null,null,null,null,null,null,null,null,null,null,null,null,"MUSTAFA KEMAL KADI (GZT)"]
[105,"","RECEP HAMZA KAYA","SMS","19 MAYIS ENGİZ SPOR KULÜBÜ","SAMSUN","2011-02-27",null,0.95359838008880615,null,null,null,null,null,null,null,null,null,null,null,null,null,null,null,null,"RECEP HAMZA KAYA (SMS)"]
[106,"","ALİ ARSLAN","KNY","KARATAY BELEDİYE SPOR KÜLÜBÜ","KONYA","2011-12-30",null,0.96470904350280762,null,null,null,null,null,null,null,null,null,null,null,null,null,null,null,null,"ALİ ARSLAN (KNY)"]
[107,null,null,null,null,null,null,null,0.76001036167144775,null,null,null,null,null,null,null,null,null,null,null,null,null,null,null,null,0]
[108,null,null,null,null,null,null,null,0.76049232482910156,null,null,null,null,null,null,null,null,null,null,null,null,null,null,null,null,0]
[109,null,null,null,null,null,null,null,0.76703542470932007,null,null,null,null,null,null,null,null,null,null,null,null,null,null,null,null,0]
[110,null,null,null,null,null,null,null,0.76936984062194824,null,null,null,null,null,null,null,null,null,null,null,null,null,null,null,null,0]
[111,null,null,null,null,null,null,null,0.77159649133682251,null,null,null,null,null,null,null,null,null,null,null,null,null,null,null,null,0]
[112,null,null,null,null,null,null,null,0.79539734125137329,null,null,null,null,null,null,null,null,null,null,null,null,null,null,null,null,0]
[113,null,null,null,null,null,null,null,0.82767146825790405,null,null,null,null,null,null,null,null,null,null,null,null,null,null,null,null,0]
[114,null,null,null,null,null,null,null,0.83855807781219482,null,null,null,null,null,null,null,null,null,null,null,null,null,null,null,null,0]
[115,null,null,null,null,null,null,null,0.85230964422225952,null,null,null,null,null,null,null,null,null,null,null,null,null,null,null,null,0]
[116,null,null,null,null,null,null,null,0.89949065446853638,null,null,null,null,null,null,null,null,null,null,null,null,null,null,null,null,0]
[117,null,null,null,null,null,null,null,0.90199631452560425,null,null,null,null,null,null,null,null,null,null,null,null,null,null,null,null,0]
[118,null,null,null,null,null,null,null,0.96360516548156738,null,null,null,null,null,null,null,null,null,null,null,null,null,null,null,null,0]
[119,null,null,null,null,null,null,null,0.97196054458618164,null,null,null,null,null,null,null,null,null,null,null,null,null,null,null,null,0]
[120,null,null,null,null,null,null,null,0.97313100099563599,null,null,null,null,null,null,null,null,null,null,null,null,null,null,null,null,0]
[121,null,null,null,null,null,null,null,0.97893160581588745,null,null,null,null,null,null,null,null,null,null,null,null,null,null,null,null,0]
[122,null,null,null,null,null,null,null,null,null,null,null,null,null,null,null,null,null,null,null,null,null,null,null,null,0]
[123,null,null,null,null,null,null,null,null,null,null,null,null,null,null,null,null,null,null,null,null,null,null,null,null,0]
[124,null,null,null,null,null,null,null,null,null,null,null,null,null,null,null,null,null,null,null,null,null,null,null,null,0]
[125,null,null,null,null,null,null,null,null,null,null,null,null,null,null,null,null,null,null,null,null,null,null,null,null,0]
[126,null,null,null,null,null,null,null,null,null,null,null,null,null,null,null,null,null,null,null,null,null,null,null,null,0]
[127,null,null,null,null,null,null,null,null,null,null,null,null,null,null,null,null,null,null,null,null,null,null,null,null,0]
[128,null,null,null,null,null,null,null,null,null,null,null,null,null,null,null,null,null,null,null,null,null,null,null,null,0]
[129,null,null,null,null,null,null,null,null,null,null,null,null,null,null,null,null,null,null,null,null,null,null,null,null,{"$f":"IF(C132=\"\",0,C132&\" (\"&D132&\")\")","v":0}]
[130,null,null,null,null,null,null,null,null,null,null,null,null,null,null,null,null,null,null,null,null,null,null,null,null,0]
[131,null,null,null,null,null,null,null,null,null,null,null,null,null,null,null,null,null,null,null,null,null,null,null,null,0]
[132,null,null,null,null,null,null,null,null,null,null,null,null,null,null,null,null,null,null,null,null,null,null,null,null,0]
[133,null,null,null,null,null,null,null,null,null,null,null,null,null,null,null,null,null,null,null,null,null,null,null,null,0]
[134,null,null,null,null,null,null,null,null,null,null,null,null,null,null,null,null,null,null,null,null,null,null,null,null,0]
[135,null,null,null,null,null,null,null,null,null,null,null,null,null,null,null,null,null,null,null,null,null,null,null,null,0]
[136,null,null,null,null,null,null,null,null,null,null,null,null,null,null,null,null,null,null,null,null,null,null,null,null,0]
[137,null,null,null,null,null,null,null,null,null,null,null,null,null,null,null,null,null,null,null,null,null,null,null,null,0]
[138,null,null,null,null,null,null,null,null,null,null,null,null,null,null,null,null,null,null,null,null,null,null,null,null,0]
[139,null,null,null,null,null,null,null,null,null,null,null,null,null,null,null,null,null,null,null,null,null,null,null,null,0]
[140,null,null,null,null,null,null,null,null,null,null,null,null,null,null,null,null,null,null,null,null,null,null,null,null,0]
[141,null,null,null,null,null,null,null,null,null,null,null,null,null,null,null,null,null,null,null,null,null,null,null,null,0]
[142,null,null,null,null,null,null,null,null,null,null,null,null,null,null,null,null,null,null,null,null,null,null,null,null,0]
[143,null,null,null,null,null,null,null,null,null,null,null,null,null,null,null,null,null,null,null,null,null,null,null,null,0]
[144,null,null,null,null,null,null,null,null,null,null,null,null,null,null,null,null,null,null,null,null,null,null,null,null,0]
[145,null,null,null,null,null,null,null,null,null,null,null,null,null,null,null,null,null,null,null,null,null,null,null,null,0]
[146,null,null,null,null,null,null,null,null,null,null,null,null,null,null,null,null,null,null,null,null,null,null,null,null,0]
[147,null,null,null,null,null,null,null,null,null,null,null,null,null,null,null,null,null,null,null,null,null,null,null,null,0]
[148,null,null,null,null,null,null,null,null,null,null,null,null,null,null,null,null,null,null,null,null,null,null,null,null,0]
[149,null,null,null,null,null,null,null,null,null,null,null,null,null,null,null,null,null,null,null,null,null,null,null,null,0]
[150,null,null,null,null,null,null,null,null,null,null,null,null,null,null,null,null,null,null,null,null,null,null,null,null,0]
[151,null,null,null,null,null,null,null,null,null,null,null,null,null,null,null,null,null,null,null,null,null,null,null,null,0]
[152,null,null,null,null,null,null,null,null,null,null,null,null,null,null,null,null,null,null,null,null,null,null,null,null,0]
[153,null,null,null,null,null,null,null,null,null,null,null,null,null,null,null,null,null,null,null,null,null,null,null,null,0]
[154,null,null,null,null,null,null,null,null,null,null,null,null,null,null,null,null,null,null,null,null,null,null,null,null,0]
[155,null,null,null,null,null,null,null,null,null,null,null,null,null,null,null,null,null,null,null,null,null,null,null,null,0]
[156,null,null,null,null,null,null,null,null,null,null,null,null,null,null,null,null,null,null,null,null,null,null,null,null,0]
[157,null,null,null,null,null,null,null,null,null,null,null,null,null,null,null,null,null,null,null,null,null,null,null,null,0]
[158,null,null,null,null,null,null,null,null,null,null,null,null,null,null,null,null,null,null,null,null,null,null,null,null,0]
[159,null,null,null,null,null,null,null,null,null,null,null,null,null,null,null,null,null,null,null,null,null,null,null,null,0]
[160,null,null,null,null,null,null,null,null,null,null,null,null,null,null,null,null,null,null,null,null,null,null,null,null,0]
[161,null,null,null,null,null,null,null,null,null,null,null,null,null,null,null,null,null,null,null,null,null,null,null,null,0]
[162,null,null,null,null,null,null,null,null,null,null,null,null,null,null,null,null,null,null,null,null,null,null,null,null,0]
[163,null,null,null,null,null,null,null,null,null,null,null,null,null,null,null,null,null,null,null,null,null,null,null,null,0]
[164,null,null,null,null,null,null,null,null,null,null,null,null,null,null,null,null,null,null,null,null,null,null,null,null,0]
[165,null,null,null,null,null,null,null,null,null,null,null,null,null,null,null,null,null,null,null,null,null,null,null,null,0]
[166,null,null,null,null,null,null,null,null,null,null,null,null,null,null,null,null,null,null,null,null,null,null,null,null,0]
[167,null,null,null,null,null,null,null,null,null,null,null,null,null,null,null,null,null,null,null,null,null,null,null,null,0]
[168,null,null,null,null,null,null,null,null,null,null,null,null,null,null,null,null,null,null,null,null,null,null,null,null,0]
[169,null,null,null,null,null,null,null,null,null,null,null,null,null,null,null,null,null,null,null,null,null,null,null,null,0]
[170,null,null,null,null,null,null,null,null,null,null,null,null,null,null,null,null,null,null,null,null,null,null,null,null,0]
[171,null,null,null,null,null,null,null,null,null,null,null,null,null,null,null,null,null,null,null,null,null,null,null,null,0]
[172,null,null,null,null,null,null,null,null,null,null,null,null,null,null,null,null,null,null,null,null,null,null,null,null,0]
[173,null,null,null,null,null,null,null,null,null,null,null,null,null,null,null,null,null,null,null,null,null,null,null,null,0]
[174,null,null,null,null,null,null,null,null,null,null,null,null,null,null,null,null,null,null,null,null,null,null,null,null,0]
[175,null,null,null,null,null,null,null,null,null,null,null,null,null,null,null,null,null,null,null,null,null,null,null,null,0]
[176,null,null,null,null,null,null,null,null,null,null,null,null,null,null,null,null,null,null,null,null,null,null,null,null,0]
[177,null,null,null,null,null,null,null,null,null,null,null,null,null,null,null,null,null,null,null,null,null,null,null,null,0]
[178,null,null,null,null,null,null,null,null,null,null,null,null,null,null,null,null,null,null,null,null,null,null,null,null,0]
[179,null,null,null,null,null,null,null,null,null,null,null,null,null,null,null,null,null,null,null,null,null,null,null,null,0]
[180,null,null,null,null,null,null,null,null,null,null,null,null,null,null,null,null,null,null,null,null,null,null,null,null,0]
[181,null,null,null,null,null,null,null,null,null,null,null,null,null,null,null,null,null,null,null,null,null,null,null,null,0]
[182,null,null,null,null,null,null,null,null,null,null,null,null,null,null,null,null,null,null,null,null,null,null,null,null,0]
[183,null,null,null,null,null,null,null,null,null,null,null,null,null,null,null,null,null,null,null,null,null,null,null,null,0]
[184,null,null,null,null,null,null,null,null,null,null,null,null,null,null,null,null,null,null,null,null,null,null,null,null,0]
[185,null,null,null,null,null,null,null,null,null,null,null,null,null,null,null,null,null,null,null,null,null,null,null,null,0]
[186,null,null,null,null,null,null,null,null,null,null,null,null,null,null,null,null,null,null,null,null,null,null,null,null,0]
[187,null,null,null,null,null,null,null,null,null,null,null,null,null,null,null,null,null,null,null,null,null,null,null,null,0]
[188,null,null,null,null,null,null,null,null,null,null,null,null,null,null,null,null,null,null,null,null,null,null,null,null,0]
[189,null,null,null,null,null,null,null,null,null,null,null,null,null,null,null,null,null,null,null,null,null,null,null,null,0]
[190,null,null,null,null,null,null,null,null,null,null,null,null,null,null,null,null,null,null,null,null,null,null,null,null,0]
[191,null,null,null,null,null,null,null,null,null,null,null,null,null,null,null,null,null,null,null,null,null,null,null,null,0]
[192,null,null,null,null,null,null,null,null,null,null,null,null,null,null,null,null,null,null,null,null,null,null,null,null,0]
[193,null,null,null,null,null,null,null,null,null,null,null,null,null,null,null,null,null,null,null,null,null,null,null,null,{"$f":"IF(C196=\"\",0,C196&\" (\"&D196&\")\")","v":0}]
[194,null,null,null,null,null,null,null,null,null,null,null,null,null,null,null,null,null,null,null,null,null,null,null,null,0]
[195,null,null,null,null,null,null,null,null,null,null,null,null,null,null,null,null,null,null,null,null,null,null,null,null,0]
[196,null,null,null,null,null,null,null,null,null,null,null,null,null,null,null,null,null,null,null,null,null,null,null,null,0]
[197,null,null,null,null,null,null,null,null,null,null,null,null,null,null,null,null,null,null,null,null,null,null,null,null,0]
[198,null,null,null,null,null,null,null,null,null,null,null,null,null,null,null,null,null,null,null,null,null,null,null,null,0]
[199,null,null,null,null,null,null,null,null,null,null,null,null,null,null,null,null,null,null,null,null,null,null,null,null,0]
[200,null,null,null,null,null,null,null,null,null,null,null,null,null,null,null,null,null,null,null,null,null,null,null,null,0]
[201,null,null,null,null,null,null,null,null,null,null,null,null,null,null,null,null,null,null,null,null,null,null,null,null,0]
[202,null,null,null,null,null,null,null,null,null,null,null,null,null,null,null,null,null,null,null,null,null,null,null,null,0]
[203,null,null,null,null,null,null,null,null,null,null,null,null,null,null,null,null,null,null,null,null,null,null,null,null,0]
[204,null,null,null,null,null,null,null,null,null,null,null,null,null,null,null,null,null,null,null,null,null,null,null,null,0]
[205,null,null,null,null,null,null,null,null,null,null,null,null,null,null,null,null,null,null,null,null,null,null,null,null,0]
[206,null,null,null,null,null,null,null,null,null,null,null,null,null,null,null,null,null,null,null,null,null,null,null,null,0]
[207,null,null,null,null,null,null,null,null,null,null,null,null,null,null,null,null,null,null,null,null,null,null,null,null,0]
[208,null,null,null,null,null,null,null,null,null,null,null,null,null,null,null,null,null,null,null,null,null,null,null,null,0]
[209,null,null,null,null,null,null,null,null,null,null,null,null,null,null,null,null,null,null,null,null,null,null,null,null,0]
[210,null,null,null,null,null,null,null,null,null,null,null,null,null,null,null,null,null,null,null,null,null,null,null,null,0]
[211,null,null,null,null,null,null,null,null,null,null,null,null,null,null,null,null,null,null,null,null,null,null,null,null,0]
[212,null,null,null,null,null,null,null,null,null,null,null,null,null,null,null,null,null,null,null,null,null,null,null,null,0]
[213,null,null,null,null,null,null,null,null,null,null,null,null,null,null,null,null,null,null,null,null,null,null,null,null,0]
[214,null,null,null,null,null,null,null,null,null,null,null,null,null,null,null,null,null,null,null,null,null,null,null,null,0]
[215,null,null,null,null,null,null,null,null,null,null,null,null,null,null,null,null,null,null,null,null,null,null,null,null,0]
[216,null,null,null,null,null,null,null,null,null,null,null,null,null,null,null,null,null,null,null,null,null,null,null,null,0]
[217,null,null,null,null,null,null,null,null,null,null,null,null,null,null,null,null,null,null,null,null,null,null,null,null,0]
[218,null,null,null,null,null,null,null,null,null,null,null,null,null,null,null,null,null,null,null,null,null,null,null,null,0]
[219,null,null,null,null,null,null,null,null,null,null,null,null,null,null,null,null,null,null,null,null,null,null,null,null,0]
[220,null,null,null,null,null,null,null,null,null,null,null,null,null,null,null,null,null,null,null,null,null,null,null,null,0]
[221,null,null,null,null,null,null,null,null,null,null,null,null,null,null,null,null,null,null,null,null,null,null,null,null,0]
[222,null,null,null,null,null,null,null,null,null,null,null,null,null,null,null,null,null,null,null,null,null,null,null,null,0]
[223,null,null,null,null,null,null,null,null,null,null,null,null,null,null,null,null,null,null,null,null,null,null,null,null,0]
[224,null,null,null,null,null,null,null,null,null,null,null,null,null,null,null,null,null,null,null,null,null,null,null,null,0]
[225,null,null,null,null,null,null,null,null,null,null,null,null,null,null,null,null,null,null,null,null,null,null,null,null,0]
[226,null,null,null,null,null,null,null,null,null,null,null,null,null,null,null,null,null,null,null,null,null,null,null,null,0]
[227,null,null,null,null,null,null,null,null,null,null,null,null,null,null,null,null,null,null,null,null,null,null,null,null,0]
[228,null,null,null,null,null,null,null,null,null,null,null,null,null,null,null,null,null,null,null,null,null,null,null,null,0]
[229,null,null,null,null,null,null,null,null,null,null,null,null,null,null,null,null,null,null,null,null,null,null,null,null,0]
[230,null,null,null,null,null,null,null,null,null,null,null,null,null,null,null,null,null,null,null,null,null,null,null,null,0]
[231,null,null,null,null,null,null,null,null,null,null,null,null,null,null,null,null,null,null,null,null,null,null,null,null,0]
[232,null,null,null,null,null,null,null,null,null,null,null,null,null,null,null,null,null,null,null,null,null,null,null,null,0]
[233,null,null,null,null,null,null,null,null,null,null,null,null,null,null,null,null,null,null,null,null,null,null,null,null,0]
[234,null,null,null,null,null,null,null,null,null,null,null,null,null,null,null,null,null,null,null,null,null,null,null,null,0]
[235,null,null,null,null,null,null,null,null,null,null,null,null,null,null,null,null,null,null,null,null,null,null,null,null,0]
[236,null,null,null,null,null,null,null,null,null,null,null,null,null,null,null,null,null,null,null,null,null,null,null,null,0]
[237,null,null,null,null,null,null,null,null,null,null,null,null,null,null,null,null,null,null,null,null,null,null,null,null,0]
[238,null,null,null,null,null,null,null,null,null,null,null,null,null,null,null,null,null,null,null,null,null,null,null,null,0]
[239,null,null,null,null,null,null,null,null,null,null,null,null,null,null,null,null,null,null,null,null,null,null,null,null,0]
[240,null,null,null,null,null,null,null,null,null,null,null,null,null,null,null,null,null,null,null,null,null,null,null,null,0]
[241,null,null,null,null,null,null,null,null,null,null,null,null,null,null,null,null,null,null,null,null,null,null,null,null,0]
[242,null,null,null,null,null,null,null,null,null,null,null,null,null,null,null,null,null,null,null,null,null,null,null,null,0]
[243,null,null,null,null,null,null,null,null,null,null,null,null,null,null,null,null,null,null,null,null,null,null,null,null,0]
[244,null,null,null,null,null,null,null,null,null,null,null,null,null,null,null,null,null,null,null,null,null,null,null,null,0]
[245,null,null,null,null,null,null,null,null,null,null,null,null,null,null,null,null,null,null,null,null,null,null,null,null,0]
[246,null,null,null,null,null,null,null,null,null,null,null,null,null,null,null,null,null,null,null,null,null,null,null,null,0]
[247,null,null,null,null,null,null,null,null,null,null,null,null,null,null,null,null,null,null,null,null,null,null,null,null,0]
[248,null,null,null,null,null,null,null,null,null,null,null,null,null,null,null,null,null,null,null,null,null,null,null,null,0]
[249,null,null,null,null,null,null,null,null,null,null,null,null,null,null,null,null,null,null,null,null,null,null,null,null,0]
[250,null,null,null,null,null,null,null,null,null,null,null,null,null,null,null,null,null,null,null,null,null,null,null,null,0]
[251,null,null,null,null,null,null,null,null,null,null,null,null,null,null,null,null,null,null,null,null,null,null,null,null,0]
[252,null,null,null,null,null,null,null,null,null,null,null,null,null,null,null,null,null,null,null,null,null,null,null,null,0]
[253,null,null,null,null,null,null,null,null,null,null,null,null,null,null,null,null,null,null,null,null,null,null,null,null,0]
[254,null,null,null,null,null,null,null,null,null,null,null,null,null,null,null,null,null,null,null,null,null,null,null,null,0]
[255,null,null,null,null,null,null,null,null,null,null,null,null,null,null,null,null,null,null,null,null,null,null,null,null,0]
[256,null,null,null,null,null,null,null,null,null,null,null,null,null,null,null,null,null,null,null,null,null,null,null,null,0]

{"sheet":"On_Eleme","index":1,"n_rows":195,"n_cols":29,"rows_kept":195,"cut":false,"hidden":false,"merged":[[0,4,1,6],[2,4,2,6]]}
[null,null,null,null,{"$f":"Katılım!AC1","v":"TÜRKİYE MASA TENİSİ FEDERASYONU\nKÜÇÜKLER FEDERASYON KUPASI"},null,null,null,null,null,null,null,null,null,null,null,null,null,null,null,null,null,null,null,null,null,4,null,{"$f":"SUM(AA5:AA500)","v":2}]
[]
[null,null,null,null,{"$f":"Katılım!A2&\" \"&Katılım!AC3","v":"TEK ERKEK [17-18 Nisan 2023 Amasya] [ Ön Eleme ]"}]
[null,null,null,null,"Sporcu","Skor","Galip",null,"Külüp Adı",null,null,"Eleme tablosu ilk turda denk gelip gelmediğinin kontrolü yapılır"]
[1,"E1",84,null,{"$f":"IFERROR(VLOOKUP(C5,Katılım!$A$4:$Z$301,26,0),0)","v":"MEHMET VARCAN (ESK)"},3,{"$f":"IF(AND(F5=0,F6=0),\"\",IF(F5>F6,E5,E6))","v":"MEHMET VARCAN (ESK)"},null,{"$f":"IFERROR(VLOOKUP(C5,Katılım!$A$4:$G$301,5,0),0)","v":"ESKİŞEHİR BÜYÜKŞEHİR GENÇLİK VE SPOR"},null,null,"E1",1,{"$f":"OFFSET(#REF!,M5,Katılım!$AW$1)","v":{"$error":"#REF!"}},{"$f":"IFERROR(VLOOKUP(N5,Katılım!$A$4:$Z$301,26,0),0)","v":0},{"$f":"IFERROR(VLOOKUP(N5,Katılım!$A$4:$G$301,5,0),0)","v":0},null,null,null,null,null,null,null,null,null,null,{"$f":"IF(AND(E5<>0,E6<>0),1,0)","v":1}]
["1.1",null,105,null,{"$f":"IFERROR(VLOOKUP(C6,Katılım!$A$4:$Z$301,26,0),0)","v":"RECEP HAMZA KAYA (SMS)"},null,null,null,{"$f":"IFERROR(VLOOKUP(C6,Katılım!$A$4:$G$301,5,0),0)","v":"19 MAYIS ENGİZ SPOR KULÜBÜ"}]
[]
[2,"E2",61,null,{"$f":"IFERROR(VLOOKUP(C8,Katılım!$A$4:$Z$301,26,0),0)","v":"YAĞIZ EMRE ÇELİK (MLT)"},null,{"$f":"IF(AND(F8=0,F9=0),\"\",IF(F8>F9,E8,E9))","v":"ALİ ARSLAN (KNY)"},null,{"$f":"IFERROR(VLOOKUP(C8,Katılım!$A$4:$G$301,5,0),0)","v":"MALATYA B. ŞEH. BLD. SPOR"},null,null,"E2",2,{"$f":"OFFSET(#REF!,M8,Katılım!$AW$1)","v":{"$error":"#REF!"}},{"$f":"IFERROR(VLOOKUP(N8,Katılım!$A$4:$Z$301,26,0),0)","v":0},{"$f":"IFERROR(VLOOKUP(N8,Katılım!$A$4:$G$301,5,0),0)","v":0},null,null,null,null,null,null,null,null,null,null,{"$f":"IF(AND(E8<>0,E9<>0),1,0)","v":1}]
["2.2",null,106,null,{"$f":"IFERROR(VLOOKUP(C9,Katılım!$A$4:$Z$301,26,0),0)","v":"ALİ ARSLAN (KNY)"},3,null,null,{"$f":"IFERROR(VLOOKUP(C9,Katılım!$A$4:$G$301,5,0),0)","v":"KARATAY BELEDİYE SPOR KÜLÜBÜ"}]
[]
[3,"E3",93,null,{"$f":"IFERROR(VLOOKUP(C11,Katılım!$A$4:$Z$301,26,0),0)","v":"YUSUF BUĞRA GÜRHAN (VAN)"},null,{"$f":"IF(AND(F11=0,F12=0),\"\",IF(F11>F12,E11,E12))","v":""},null,{"$f":"IFERROR(VLOOKUP(C11,Katılım!$A$4:$G$301,5,0),0)","v":"GENÇLİK VE SPOR"},null,null,"E3",3,{"$f":"OFFSET(#REF!,M11,Katılım!$AW$1)","v":{"$error":"#REF!"}},{"$f":"IFERROR(VLOOKUP(N11,Katılım!$A$4:$Z$301,26,0),0)","v":0},{"$f":"IFERROR(VLOOKUP(N11,Katılım!$A$4:$G$301,5,0),0)","v":0},null,null,null,null,null,null,null,null,null,null,0]
["3.3",null,107,null,{"$f":"IFERROR(VLOOKUP(C12,Katılım!$A$4:$Z$301,26,0),0)","v":0},null,null,null,{"$f":"IFERROR(VLOOKUP(C12,Katılım!$A$4:$G$301,5,0),0)","v":0}]
[]
[4,"E4",52,null,{"$f":"IFERROR(VLOOKUP(C14,Katılım!$A$4:$Z$301,26,0),0)","v":"KAAN SÜLÜN (KRL)"},null,{"$f":"IF(AND(F14=0,F15=0),\"\",IF(F14>F15,E14,E15))","v":""},null,{"$f":"IFERROR(VLOOKUP(C14,Katılım!$A$4:$G$301,5,0),0)","v":"GENCLİK SPOR KULÜBÜ KIRKLARELİ"},null,null,"E4",4,{"$f":"OFFSET(#REF!,M14,Katılım!$AW$1)","v":{"$error":"#REF!"}},{"$f":"IFERROR(VLOOKUP(N14,Katılım!$A$4:$Z$301,26,0),0)","v":0},{"$f":"IFERROR(VLOOKUP(N14,Katılım!$A$4:$G$301,5,0),0)","v":0},null,null,null,null,null,null,null,null,null,null,0]
["4.4",null,108,null,{"$f":"IFERROR(VLOOKUP(C15,Katılım!$A$4:$Z$301,26,0),0)","v":0},null,null,null,{"$f":"IFERROR(VLOOKUP(C15,Katılım!$A$4:$G$301,5,0),0)","v":0}]
[]
[5,"E5",77,null,{"$f":"IFERROR(VLOOKUP(C17,Katılım!$A$4:$Z$301,26,0),0)","v":"ÜVEYS ÇINAR (VAN)"},null,{"$f":"IF(AND(F17=0,F18=0),\"\",IF(F17>F18,E17,E18))","v":""},null,{"$f":"IFERROR(VLOOKUP(C17,Katılım!$A$4:$G$301,5,0),0)","v":"GENÇLİK VE SPOR"},null,null,"E5",5,{"$f":"OFFSET(#REF!,M17,Katılım!$AW$1)","v":{"$error":"#REF!"}},{"$f":"IFERROR(VLOOKUP(N17,Katılım!$A$4:$Z$301,26,0),0)","v":0},{"$f":"IFERROR(VLOOKUP(N17,Katılım!$A$4:$G$301,5,0),0)","v":0},null,null,null,null,null,null,null,null,null,null,0]
["5.5",null,109,null,{"$f":"IFERROR(VLOOKUP(C18,Katılım!$A$4:$Z$301,26,0),0)","v":0},null,null,null,{"$f":"IFERROR(VLOOKUP(C18,Katılım!$A$4:$G$301,5,0),0)","v":0}]
[]
[6,"E6",68,null,{"$f":"IFERROR(VLOOKUP(C20,Katılım!$A$4:$Z$301,26,0),0)","v":"UMUTCAN GÜNDOĞDU (IĞD)"},null,{"$f":"IF(AND(F20=0,F21=0),\"\",IF(F20>F21,E20,E21))","v":""},null,{"$f":"IFERROR(VLOOKUP(C20,Katılım!$A$4:$G$301,5,0),0)","v":"YURDUM SPOR"},null,null,"E6",6,{"$f":"OFFSET(#REF!,M20,Katılım!$AW$1)","v":{"$error":"#REF!"}},{"$f":"IFERROR(VLOOKUP(N20,Katılım!$A$4:$Z$301,26,0),0)","v":0},{"$f":"IFERROR(VLOOKUP(N20,Katılım!$A$4:$G$301,5,0),0)","v":0},null,null,null,null,null,null,null,null,null,null,0]
["6.6",null,110,null,{"$f":"IFERROR(VLOOKUP(C21,Katılım!$A$4:$Z$301,26,0),0)","v":0},null,null,null,{"$f":"IFERROR(VLOOKUP(C21,Katılım!$A$4:$G$301,5,0),0)","v":0}]
[]
[7,"E7",100,null,{"$f":"IFERROR(VLOOKUP(C23,Katılım!$A$4:$Z$301,26,0),0)","v":"EMRE GÖZÜKÜÇÜK (SVS)"},null,{"$f":"IF(AND(F23=0,F24=0),\"\",IF(F23>F24,E23,E24))","v":""},null,{"$f":"IFERROR(VLOOKUP(C23,Katılım!$A$4:$G$301,5,0),0)","v":" SİVAS GSK"},null,null,"E7",7,{"$f":"OFFSET(#REF!,M23,Katılım!$AW$1)","v":{"$error":"#REF!"}},{"$f":"IFERROR(VLOOKUP(N23,Katılım!$A$4:$Z$301,26,0),0)","v":0},{"$f":"IFERROR(VLOOKUP(N23,Katılım!$A$4:$G$301,5,0),0)","v":0},null,null,null,null,null,null,null,null,null,null,0]
["7.7",null,111,null,{"$f":"IFERROR(VLOOKUP(C24,Katılım!$A$4:$Z$301,26,0),0)","v":0},null,null,null,{"$f":"IFERROR(VLOOKUP(C24,Katılım!$A$4:$G$301,5,0),0)","v":0}]
[]
[8,"E8",45,null,{"$f":"IFERROR(VLOOKUP(C26,Katılım!$A$4:$Z$301,26,0),0)","v":"KEREM UZUN (GRS)"},null,{"$f":"IF(AND(F26=0,F27=0),\"\",IF(F26>F27,E26,E27))","v":""},null,{"$f":"IFERROR(VLOOKUP(C26,Katılım!$A$4:$G$301,5,0),0)","v":"YALIKÖY ŞEHİT BARIŞ ÇAKIR OO SPOR KULÜBÜ"},null,null,"E8",8,{"$f":"OFFSET(#REF!,M26,Katılım!$AW$1)","v":{"$error":"#REF!"}},{"$f":"IFERROR(VLOOKUP(N26,Katılım!$A$4:$Z$301,26,0),0)","v":0},{"$f":"IFERROR(VLOOKUP(N26,Katılım!$A$4:$G$301,5,0),0)","v":0},null,null,null,null,null,null,null,null,null,null,0]
["8.8",null,112,null,{"$f":"IFERROR(VLOOKUP(C27,Katılım!$A$4:$Z$301,26,0),0)","v":0},null,null,null,{"$f":"IFERROR(VLOOKUP(C27,Katılım!$A$4:$G$301,5,0),0)","v":0}]
[]
[9,"E9",87,null,{"$f":"IFERROR(VLOOKUP(C29,Katılım!$A$4:$Z$301,26,0),0)","v":"SELMAN ARSLAN (GRS)"},null,{"$f":"IF(AND(F29=0,F30=0),\"\",IF(F29>F30,E29,E30))","v":""},null,{"$f":"IFERROR(VLOOKUP(C29,Katılım!$A$4:$G$301,5,0),0)","v":"GİRESUN GENÇLİK VE SPOR KULÜBÜ"},null,null,"E9",9,{"$f":"OFFSET(#REF!,M29,Katılım!$AW$1)","v":{"$error":"#REF!"}},{"$f":"IFERROR(VLOOKUP(N29,Katılım!$A$4:$Z$301,26,0),0)","v":0},{"$f":"IFERROR(VLOOKUP(N29,Katılım!$A$4:$G$301,5,0),0)","v":0},null,null,null,null,null,null,null,null,null,null,0]
["9.9",null,113,null,{"$f":"IFERROR(VLOOKUP(C30,Katılım!$A$4:$Z$301,26,0),0)","v":0},null,null,null,{"$f":"IFERROR(VLOOKUP(C30,Katılım!$A$4:$G$301,5,0),0)","v":0}]
[]
[10,"E10",58,null,{"$f":"IFERROR(VLOOKUP(C32,Katılım!$A$4:$Z$301,26,0),0)","v":"BERAT AYDIN (KCL)"},null,{"$f":"IF(AND(F32=0,F33=0),\"\",IF(F32>F33,E32,E33))","v":""},null,{"$f":"IFERROR(VLOOKUP(C32,Katılım!$A$4:$G$301,5,0),0)","v":"B.B.KAĞITSPOR KULÜBÜ"},null,null,"E10",10,{"$f":"OFFSET(#REF!,M32,Katılım!$AW$1)","v":{"$error":"#REF!"}},{"$f":"IFERROR(VLOOKUP(N32,Katılım!$A$4:$Z$301,26,0),0)","v":0},{"$f":"IFERROR(VLOOKUP(N32,Katılım!$A$4:$G$301,5,0),0)","v":0},null,null,null,null,null,null,null,null,null,null,0]
["10.10",null,114,null,{"$f":"IFERROR(VLOOKUP(C33,Katılım!$A$4:$Z$301,26,0),0)","v":0},null,null,null,{"$f":"IFERROR(VLOOKUP(C33,Katılım!$A$4:$G$301,5,0),0)","v":0}]
[]
[11,"E11",90,null,{"$f":"IFERROR(VLOOKUP(C35,Katılım!$A$4:$Z$301,26,0),0)","v":"KEMAL İNCE (ANK)"},null,{"$f":"IF(AND(F35=0,F36=0),\"\",IF(F35>F36,E35,E36))","v":""},null,{"$f":"IFERROR(VLOOKUP(C35,Katılım!$A$4:$G$301,5,0),0)","v":"KARİYER EĞİTİM SPOR KULÜBÜ "},null,null,"E11",11,{"$f":"OFFSET(#REF!,M35,Katılım!$AW$1)","v":{"$error":"#REF!"}},{"$f":"IFERROR(VLOOKUP(N35,Katılım!$A$4:$Z$301,26,0),0)","v":0},{"$f":"IFERROR(VLOOKUP(N35,Katılım!$A$4:$G$301,5,0),0)","v":0},null,null,null,null,null,null,null,null,null,null,0]
["11.11",null,115,null,{"$f":"IFERROR(VLOOKUP(C36,Katılım!$A$4:$Z$301,26,0),0)","v":0},null,null,null,{"$f":"IFERROR(VLOOKUP(C36,Katılım!$A$4:$G$301,5,0),0)","v":0}]
[]
[12,"E12",55,null,{"$f":"IFERROR(VLOOKUP(C38,Katılım!$A$4:$Z$301,26,0),0)","v":"SERKAN ÖNCÜ (ESK)"},null,{"$f":"IF(AND(F38=0,F39=0),\"\",IF(F38>F39,E38,E39))","v":""},null,{"$f":"IFERROR(VLOOKUP(C38,Katılım!$A$4:$G$301,5,0),0)","v":"ESKİŞEHİR BÜYÜKŞEHİR GENÇLİK VE SPOR"},null,null,"E12",12,{"$f":"OFFSET(#REF!,M38,Katılım!$AW$1)","v":{"$error":"#REF!"}},{"$f":"IFERROR(VLOOKUP(N38,Katılım!$A$4:$Z$301,26,0),0)","v":0},{"$f":"IFERROR(VLOOKUP(N38,Katılım!$A$4:$G$301,5,0),0)","v":0},null,null,null,null,null,null,null,null,null,null,0]
["12.12",null,116,null,{"$f":"IFERROR(VLOOKUP(C39,Katılım!$A$4:$Z$301,26,0),0)","v":0},null,null,null,{"$f":"IFERROR(VLOOKUP(C39,Katılım!$A$4:$G$301,5,0),0)","v":0}]
[]
[13,"E13",74,null,{"$f":"IFERROR(VLOOKUP(C41,Katılım!$A$4:$Z$301,26,0),0)","v":"DURAN BAYRAM (KYS)"},null,{"$f":"IF(AND(F41=0,F42=0),\"\",IF(F41>F42,E41,E42))","v":""},null,{"$f":"IFERROR(VLOOKUP(C41,Katılım!$A$4:$G$301,5,0),0)","v":"SPOR A.Ş GENÇLİK VE S.K DERNEĞİ"},null,null,"E13",13,{"$f":"OFFSET(#REF!,M41,Katılım!$AW$1)","v":{"$error":"#REF!"}},{"$f":"IFERROR(VLOOKUP(N41,Katılım!$A$4:$Z$301,26,0),0)","v":0},{"$f":"IFERROR(VLOOKUP(N41,Katılım!$A$4:$G$301,5,0),0)","v":0},null,null,null,null,null,null,null,null,null,null,0]
["13.13",null,117,null,{"$f":"IFERROR(VLOOKUP(C42,Katılım!$A$4:$Z$301,26,0),0)","v":0},null,null,null,{"$f":"IFERROR(VLOOKUP(C42,Katılım!$A$4:$G$301,5,0),0)","v":0}]
[]
[14,"E14",71,null,{"$f":"IFERROR(VLOOKUP(C44,Katılım!$A$4:$Z$301,26,0),0)","v":"SADIK EREN UZUNÖMER (ÇNR)"},null,{"$f":"IF(AND(F44=0,F45=0),\"\",IF(F44>F45,E44,E45))","v":""},null,{"$f":"IFERROR(VLOOKUP(C44,Katılım!$A$4:$G$301,5,0),0)","v":"GENÇLİKSPOR"},null,null,"E14",14,{"$f":"OFFSET(#REF!,M44,Katılım!$AW$1)","v":{"$error":"#REF!"}},{"$f":"IFERROR(VLOOKUP(N44,Katılım!$A$4:$Z$301,26,0),0)","v":0},{"$f":"IFERROR(VLOOKUP(N44,Katılım!$A$4:$G$301,5,0),0)","v":0},null,null,null,null,null,null,null,null,null,null,0]
["14.14",null,118,null,{"$f":"IFERROR(VLOOKUP(C45,Katılım!$A$4:$Z$301,26,0),0)","v":0},null,null,null,{"$f":"IFERROR(VLOOKUP(C45,Katılım!$A$4:$G$301,5,0),0)","v":0}]
[]
[15,"E15",103,null,{"$f":"IFERROR(VLOOKUP(C47,Katılım!$A$4:$Z$301,26,0),0)","v":"M. FURKAN AKINCI (BTM)"},null,{"$f":"IF(AND(F47=0,F48=0),\"\",IF(F47>F48,E47,E48))","v":""},null,{"$f":"IFERROR(VLOOKUP(C47,Katılım!$A$4:$G$301,5,0),0)","v":"1955 BATMAN BELEDİYE SPOR "},null,null,"E15",15,{"$f":"OFFSET(#REF!,M47,Katılım!$AW$1)","v":{"$error":"#REF!"}},{"$f":"IFERROR(VLOOKUP(N47,Katılım!$A$4:$Z$301,26,0),0)","v":0},{"$f":"IFERROR(VLOOKUP(N47,Katılım!$A$4:$G$301,5,0),0)","v":0},null,null,null,null,null,null,null,null,null,null,0]
["15.15",null,119,null,{"$f":"IFERROR(VLOOKUP(C48,Katılım!$A$4:$Z$301,26,0),0)","v":0},null,null,null,{"$f":"IFERROR(VLOOKUP(C48,Katılım!$A$4:$G$301,5,0),0)","v":0}]
[]
[16,"E16",42,null,{"$f":"IFERROR(VLOOKUP(C50,Katılım!$A$4:$Z$301,26,0),0)","v":"HASAN TALHA YAVUZ (KYS)"},null,{"$f":"IF(AND(F50=0,F51=0),\"\",IF(F50>F51,E50,E51))","v":""},null,{"$f":"IFERROR(VLOOKUP(C50,Katılım!$A$4:$G$301,5,0),0)","v":"KOCASİNAN BELEDİYESİ SPOR"},null,null,"E16",16,{"$f":"OFFSET(#REF!,M50,Katılım!$AW$1)","v":{"$error":"#REF!"}},{"$f":"IFERROR(VLOOKUP(N50,Katılım!$A$4:$Z$301,26,0),0)","v":0},{"$f":"IFERROR(VLOOKUP(N50,Katılım!$A$4:$G$301,5,0),0)","v":0},null,null,null,null,null,null,null,null,null,null,0]
["16.16",null,120,null,{"$f":"IFERROR(VLOOKUP(C51,Katılım!$A$4:$Z$301,26,0),0)","v":0},null,null,null,{"$f":"IFERROR(VLOOKUP(C51,Katılım!$A$4:$G$301,5,0),0)","v":0}]
[]
[17,"E17",82,null,{"$f":"IFERROR(VLOOKUP(C53,Katılım!$A$4:$Z$301,26,0),0)","v":"MUHAMMET EREN ÇAP (ORD)"},null,{"$f":"IF(AND(F53=0,F54=0),\"\",IF(F53>F54,E53,E54))","v":""},null,{"$f":"IFERROR(VLOOKUP(C53,Katılım!$A$4:$G$301,5,0),0)","v":"FERDİ "},null,null,"E17",17,{"$f":"OFFSET(#REF!,M53,Katılım!$AW$1)","v":{"$error":"#REF!"}},{"$f":"IFERROR(VLOOKUP(N53,Katılım!$A$4:$Z$301,26,0),0)","v":0},{"$f":"IFERROR(VLOOKUP(N53,Katılım!$A$4:$G$301,5,0),0)","v":0},null,null,null,null,null,null,null,null,null,null,0]
["17.17",null,121,null,{"$f":"IFERROR(VLOOKUP(C54,Katılım!$A$4:$Z$301,26,0),0)","v":0},null,null,null,{"$f":"IFERROR(VLOOKUP(C54,Katılım!$A$4:$G$301,5,0),0)","v":0}]
[]
[18,"E18",63,null,{"$f":"IFERROR(VLOOKUP(C56,Katılım!$A$4:$Z$301,26,0),0)","v":"FERHAT OZAN AĞASLAN (GZT)"},null,{"$f":"IF(AND(F56=0,F57=0),\"\",IF(F56>F57,E56,E57))","v":""},null,{"$f":"IFERROR(VLOOKUP(C56,Katılım!$A$4:$G$301,5,0),0)","v":"GAZİANTEP BELEDİYE SPOR KLÜBÜ"},null,null,"E18",18,{"$f":"OFFSET(#REF!,M56,Katılım!$AW$1)","v":{"$error":"#REF!"}},{"$f":"IFERROR(VLOOKUP(N56,Katılım!$A$4:$Z$301,26,0),0)","v":0},{"$f":"IFERROR(VLOOKUP(N56,Katılım!$A$4:$G$301,5,0),0)","v":0},null,null,null,null,null,null,null,null,null,null,0]
["18.18",null,122,null,{"$f":"IFERROR(VLOOKUP(C57,Katılım!$A$4:$Z$301,26,0),0)","v":0},null,null,null,{"$f":"IFERROR(VLOOKUP(C57,Katılım!$A$4:$G$301,5,0),0)","v":0}]
[]
[19,"E19",95,null,{"$f":"IFERROR(VLOOKUP(C59,Katılım!$A$4:$Z$301,26,0),0)","v":"YUSUF BURAK BİLGİNER (KRL)"},null,{"$f":"IF(AND(F59=0,F60=0),\"\",IF(F59>F60,E59,E60))","v":""},null,{"$f":"IFERROR(VLOOKUP(C59,Katılım!$A$4:$G$301,5,0),0)","v":"GENCLİK SPOR KULÜBÜ KIRKLARELİ"},null,null,"E19",19,{"$f":"OFFSET(#REF!,M59,Katılım!$AW$1)","v":{"$error":"#REF!"}},{"$f":"IFERROR(VLOOKUP(N59,Katılım!$A$4:$Z$301,26,0),0)","v":0},{"$f":"IFERROR(VLOOKUP(N59,Katılım!$A$4:$G$301,5,0),0)","v":0},null,null,null,null,null,null,null,null,null,null,0]
["19.19",null,123,null,{"$f":"IFERROR(VLOOKUP(C60,Katılım!$A$4:$Z$301,26,0),0)","v":0},null,null,null,{"$f":"IFERROR(VLOOKUP(C60,Katılım!$A$4:$G$301,5,0),0)","v":0}]
[]
[20,"E20",50,null,{"$f":"IFERROR(VLOOKUP(C62,Katılım!$A$4:$Z$301,26,0),0)","v":"CEYHUN BOLAT (SMS)"},null,{"$f":"IF(AND(F62=0,F63=0),\"\",IF(F62>F63,E62,E63))","v":""},null,{"$f":"IFERROR(VLOOKUP(C62,Katılım!$A$4:$G$301,5,0),0)","v":"19 MAYIS ENGİZ SPOR KULÜBÜ"},null,null,"E20",20,{"$f":"OFFSET(#REF!,M62,Katılım!$AW$1)","v":{"$error":"#REF!"}},{"$f":"IFERROR(VLOOKUP(N62,Katılım!$A$4:$Z$301,26,0),0)","v":0},{"$f":"IFERROR(VLOOKUP(N62,Katılım!$A$4:$G$301,5,0),0)","v":0},null,null,null,null,null,null,null,null,null,null,0]
["20.20",null,124,null,{"$f":"IFERROR(VLOOKUP(C63,Katılım!$A$4:$Z$301,26,0),0)","v":0},null,null,null,{"$f":"IFERROR(VLOOKUP(C63,Katılım!$A$4:$G$301,5,0),0)","v":0}]
[]
[21,"E21",79,null,{"$f":"IFERROR(VLOOKUP(C65,Katılım!$A$4:$Z$301,26,0),0)","v":"MERT KILIÇ KALKAN (IĞD)"},null,{"$f":"IF(AND(F65=0,F66=0),\"\",IF(F65>F66,E65,E66))","v":""},null,{"$f":"IFERROR(VLOOKUP(C65,Katılım!$A$4:$G$301,5,0),0)","v":"YURDUM SPOR"},null,null,"E21",21,{"$f":"OFFSET(#REF!,M65,Katılım!$AW$1)","v":{"$error":"#REF!"}},{"$f":"IFERROR(VLOOKUP(N65,Katılım!$A$4:$Z$301,26,0),0)","v":0},{"$f":"IFERROR(VLOOKUP(N65,Katılım!$A$4:$G$301,5,0),0)","v":0},null,null,null,null,null,null,null,null,null,null,0]
["21.21",null,125,null,{"$f":"IFERROR(VLOOKUP(C66,Katılım!$A$4:$Z$301,26,0),0)","v":0},null,null,null,{"$f":"IFERROR(VLOOKUP(C66,Katılım!$A$4:$G$301,5,0),0)","v":0}]
[]
[22,"E22",66,null,{"$f":"IFERROR(VLOOKUP(C68,Katılım!$A$4:$Z$301,26,0),0)","v":"ÖNDER BOZKIR (IĞD)"},null,{"$f":"IF(AND(F68=0,F69=0),\"\",IF(F68>F69,E68,E69))","v":""},null,{"$f":"IFERROR(VLOOKUP(C68,Katılım!$A$4:$G$301,5,0),0)","v":"YURDUM SPOR"},null,null,"E22",22,{"$f":"OFFSET(#REF!,M68,Katılım!$AW$1)","v":{"$error":"#REF!"}},{"$f":"IFERROR(VLOOKUP(N68,Katılım!$A$4:$Z$301,26,0),0)","v":0},{"$f":"IFERROR(VLOOKUP(N68,Katılım!$A$4:$G$301,5,0),0)","v":0},null,null,null,null,null,null,null,null,null,null,0]
["22.22",null,126,null,{"$f":"IFERROR(VLOOKUP(C69,Katılım!$A$4:$Z$301,26,0),0)","v":0},null,null,null,{"$f":"IFERROR(VLOOKUP(C69,Katılım!$A$4:$G$301,5,0),0)","v":0}]
[]
[23,"E23",98,null,{"$f":"IFERROR(VLOOKUP(C71,Katılım!$A$4:$Z$301,26,0),0)","v":"AHMET BARAN KAYA (VAN)"},null,{"$f":"IF(AND(F71=0,F72=0),\"\",IF(F71>F72,E71,E72))","v":""},null,{"$f":"IFERROR(VLOOKUP(C71,Katılım!$A$4:$G$301,5,0),0)","v":"GENÇLİK VE SPOR"},null,null,"E23",23,{"$f":"OFFSET(#REF!,M71,Katılım!$AW$1)","v":{"$error":"#REF!"}},{"$f":"IFERROR(VLOOKUP(N71,Katılım!$A$4:$Z$301,26,0),0)","v":0},{"$f":"IFERROR(VLOOKUP(N71,Katılım!$A$4:$G$301,5,0),0)","v":0},null,null,null,null,null,null,null,null,null,null,{"$f":"IF(AND(E71<>0,E72<>0),1,0)","v":0}]
["23.23",null,127,null,{"$f":"IFERROR(VLOOKUP(C72,Katılım!$A$4:$Z$301,26,0),0)","v":0},null,null,null,{"$f":"IFERROR(VLOOKUP(C72,Katılım!$A$4:$G$301,5,0),0)","v":0}]
[]
[24,"E24",47,null,{"$f":"IFERROR(VLOOKUP(C74,Katılım!$A$4:$Z$301,26,0),0)","v":"EGE GÜLTEKİN (YLV)"},null,{"$f":"IF(AND(F74=0,F75=0),\"\",IF(F74>F75,E74,E75))","v":""},null,{"$f":"IFERROR(VLOOKUP(C74,Katılım!$A$4:$G$301,5,0),0)","v":"YALOVA BLD. GENÇLİK SPOR"},null,null,"E24",24,{"$f":"OFFSET(#REF!,M74,Katılım!$AW$1)","v":{"$error":"#REF!"}},{"$f":"IFERROR(VLOOKUP(N74,Katılım!$A$4:$Z$301,26,0),0)","v":0},{"$f":"IFERROR(VLOOKUP(N74,Katılım!$A$4:$G$301,5,0),0)","v":0},null,null,null,null,null,null,null,null,null,null,0]
["24.24",null,128,null,{"$f":"IFERROR(VLOOKUP(C75,Katılım!$A$4:$Z$301,26,0),0)","v":0},null,null,null,{"$f":"IFERROR(VLOOKUP(C75,Katılım!$A$4:$G$301,5,0),0)","v":0}]
[]
[25,"E25",91,null,{"$f":"IFERROR(VLOOKUP(C77,Katılım!$A$4:$Z$301,26,0),0)","v":"MED DEVRAN KILIÇKALKAN (IĞD)"},null,{"$f":"IF(AND(F77=0,F78=0),\"\",IF(F77>F78,E77,E78))","v":""},null,{"$f":"IFERROR(VLOOKUP(C77,Katılım!$A$4:$G$301,5,0),0)","v":"GENÇLİK SPOR KULÜBÜ "},null,null,"E25",25,{"$f":"OFFSET(#REF!,M77,Katılım!$AW$1)","v":{"$error":"#REF!"}},{"$f":"IFERROR(VLOOKUP(N77,Katılım!$A$4:$Z$301,26,0),0)","v":0},{"$f":"IFERROR(VLOOKUP(N77,Katılım!$A$4:$G$301,5,0),0)","v":0},null,null,null,null,null,null,null,null,null,null,0]
["25.25",null,129,null,{"$f":"IFERROR(VLOOKUP(C78,Katılım!$A$4:$Z$301,26,0),0)","v":0},null,null,null,{"$f":"IFERROR(VLOOKUP(C78,Katılım!$A$4:$G$301,5,0),0)","v":0}]
[]
[26,"E26",54,null,{"$f":"IFERROR(VLOOKUP(C80,Katılım!$A$4:$Z$301,26,0),0)","v":"KEREM ÇINAR ORMAN (KRL)"},null,{"$f":"IF(AND(F80=0,F81=0),\"\",IF(F80>F81,E80,E81))","v":""},null,{"$f":"IFERROR(VLOOKUP(C80,Katılım!$A$4:$G$301,5,0),0)","v":"ZİRVE GSK"},null,null,"E26",26,{"$f":"OFFSET(#REF!,M80,Katılım!$AW$1)","v":{"$error":"#REF!"}},{"$f":"IFERROR(VLOOKUP(N80,Katılım!$A$4:$Z$301,26,0),0)","v":0},{"$f":"IFERROR(VLOOKUP(N80,Katılım!$A$4:$G$301,5,0),0)","v":0},null,null,null,null,null,null,null,null,null,null,0]
["26.26",null,130,null,{"$f":"IFERROR(VLOOKUP(C81,Katılım!$A$4:$Z$301,26,0),0)","v":0},null,null,null,{"$f":"IFERROR(VLOOKUP(C81,Katılım!$A$4:$G$301,5,0),0)","v":0}]
[]
[27,"E27",65,null,{"$f":"IFERROR(VLOOKUP(C83,Katılım!$A$4:$Z$301,26,0),0)","v":"ALTAY TAN (İZM)"},null,{"$f":"IF(AND(F83=0,F84=0),\"\",IF(F83>F84,E83,E84))","v":""},null,{"$f":"IFERROR(VLOOKUP(C83,Katılım!$A$4:$G$301,5,0),0)","v":"İSTANBUL"},null,null,"E27",27,{"$f":"OFFSET(#REF!,M83,Katılım!$AW$1)","v":{"$error":"#REF!"}},{"$f":"IFERROR(VLOOKUP(N83,Katılım!$A$4:$Z$301,26,0),0)","v":0},{"$f":"IFERROR(VLOOKUP(N83,Katılım!$A$4:$G$301,5,0),0)","v":0},null,null,null,null,null,null,null,null,null,null,0]
["27.27",null,131,null,{"$f":"IFERROR(VLOOKUP(C84,Katılım!$A$4:$Z$301,26,0),0)","v":0},null,null,null,{"$f":"IFERROR(VLOOKUP(C84,Katılım!$A$4:$G$301,5,0),0)","v":0}]
[]
[28,"E28",76,null,{"$f":"IFERROR(VLOOKUP(C86,Katılım!$A$4:$Z$301,26,0),0)","v":"EMİR ZİYA PEÇE (YLV)"},null,{"$f":"IF(AND(F86=0,F87=0),\"\",IF(F86>F87,E86,E87))","v":""},null,{"$f":"IFERROR(VLOOKUP(C86,Katılım!$A$4:$G$301,5,0),0)","v":"YALOVA BLD. GENÇLİK SPOR"},null,null,"E28",28,{"$f":"OFFSET(#REF!,M86,Katılım!$AW$1)","v":{"$error":"#REF!"}},{"$f":"IFERROR(VLOOKUP(N86,Katılım!$A$4:$Z$301,26,0),0)","v":0},{"$f":"IFERROR(VLOOKUP(N86,Katılım!$A$4:$G$301,5,0),0)","v":0},null,null,null,null,null,null,null,null,null,null,0]
["28.28",null,132,null,{"$f":"IFERROR(VLOOKUP(C87,Katılım!$A$4:$Z$301,26,0),0)","v":0},null,null,null,{"$f":"IFERROR(VLOOKUP(C87,Katılım!$A$4:$G$301,5,0),0)","v":0}]
[]
[29,"E29",43,null,{"$f":"IFERROR(VLOOKUP(C89,Katılım!$A$4:$Z$301,26,0),0)","v":"MEHMET ERDEM DEMİRTAŞ (MĞL)"},null,{"$f":"IF(AND(F89=0,F90=0),\"\",IF(F89>F90,E89,E90))","v":""},null,{"$f":"IFERROR(VLOOKUP(C89,Katılım!$A$4:$G$301,5,0),0)","v":"MUĞLA B.B. GENÇLİK VE SPOR KULÜBÜ DERNEĞİ"},null,null,"E29",29,{"$f":"OFFSET(#REF!,M89,Katılım!$AW$1)","v":{"$error":"#REF!"}},{"$f":"IFERROR(VLOOKUP(N89,Katılım!$A$4:$Z$301,26,0),0)","v":0},{"$f":"IFERROR(VLOOKUP(N89,Katılım!$A$4:$G$301,5,0),0)","v":0},null,null,null,null,null,null,null,null,null,null,0]
["29.29",null,133,null,{"$f":"IFERROR(VLOOKUP(C90,Katılım!$A$4:$Z$301,26,0),0)","v":0},null,null,null,{"$f":"IFERROR(VLOOKUP(C90,Katılım!$A$4:$G$301,5,0),0)","v":0}]
[]
[30,"E30",60,null,{"$f":"IFERROR(VLOOKUP(C92,Katılım!$A$4:$Z$301,26,0),0)","v":"ATAY TUNA GENEL (ÇRM)"},null,{"$f":"IF(AND(F92=0,F93=0),\"\",IF(F92>F93,E92,E93))","v":""},null,{"$f":"IFERROR(VLOOKUP(C92,Katılım!$A$4:$G$301,5,0),0)","v":"SPOR İHTİSAS"},null,null,"E30",30,{"$f":"OFFSET(#REF!,M92,Katılım!$AW$1)","v":{"$error":"#REF!"}},{"$f":"IFERROR(VLOOKUP(N92,Katılım!$A$4:$Z$301,26,0),0)","v":0},{"$f":"IFERROR(VLOOKUP(N92,Katılım!$A$4:$G$301,5,0),0)","v":0},null,null,null,null,null,null,null,null,null,null,0]
["30.30",null,134,null,{"$f":"IFERROR(VLOOKUP(C93,Katılım!$A$4:$Z$301,26,0),0)","v":0},null,null,null,{"$f":"IFERROR(VLOOKUP(C93,Katılım!$A$4:$G$301,5,0),0)","v":0}]
[]
[31,"E31",80,null,{"$f":"IFERROR(VLOOKUP(C95,Katılım!$A$4:$Z$301,26,0),0)","v":"ÖMER SAİT BEKDEMİR (ANK)"},null,{"$f":"IF(AND(F95=0,F96=0),\"\",IF(F95>F96,E95,E96))","v":""},null,{"$f":"IFERROR(VLOOKUP(C95,Katılım!$A$4:$G$301,5,0),0)","v":"HAZERSPOR KULÜBÜ"},null,null,"E31",31,{"$f":"OFFSET(#REF!,M95,Katılım!$AW$1)","v":{"$error":"#REF!"}},{"$f":"IFERROR(VLOOKUP(N95,Katılım!$A$4:$Z$301,26,0),0)","v":0},{"$f":"IFERROR(VLOOKUP(N95,Katılım!$A$4:$G$301,5,0),0)","v":0},null,null,null,null,null,null,null,null,null,null,0]
["31.31",null,135,null,{"$f":"IFERROR(VLOOKUP(C96,Katılım!$A$4:$Z$301,26,0),0)","v":0},null,null,null,{"$f":"IFERROR(VLOOKUP(C96,Katılım!$A$4:$G$301,5,0),0)","v":0}]
[]
[32,"E32",97,null,{"$f":"IFERROR(VLOOKUP(C98,Katılım!$A$4:$Z$301,26,0),0)","v":"MELİKŞAH ÖZBİLGİ (BYB)"},null,{"$f":"IF(AND(F98=0,F99=0),\"\",IF(F98>F99,E98,E99))","v":""},null,{"$f":"IFERROR(VLOOKUP(C98,Katılım!$A$4:$G$301,5,0),0)","v":"BAYBURT GMGSK"},null,null,"E32",32,{"$f":"OFFSET(#REF!,M98,Katılım!$AW$1)","v":{"$error":"#REF!"}},{"$f":"IFERROR(VLOOKUP(N98,Katılım!$A$4:$Z$301,26,0),0)","v":0},{"$f":"IFERROR(VLOOKUP(N98,Katılım!$A$4:$G$301,5,0),0)","v":0},null,null,null,null,null,null,null,null,null,null,0]
["32.32",null,136,null,{"$f":"IFERROR(VLOOKUP(C99,Katılım!$A$4:$Z$301,26,0),0)","v":0},null,null,null,{"$f":"IFERROR(VLOOKUP(C99,Katılım!$A$4:$G$301,5,0),0)","v":0}]
[]
[33,"E33",102,null,{"$f":"IFERROR(VLOOKUP(C101,Katılım!$A$4:$Z$301,26,0),0)","v":"FURKAN ÇELİK (IĞD)"},null,{"$f":"IF(AND(F101=0,F102=0),\"\",IF(F101>F102,E101,E102))","v":""},null,{"$f":"IFERROR(VLOOKUP(C101,Katılım!$A$4:$G$301,5,0),0)","v":"GENÇLİK SPOR KULÜBÜ "},null,null,"E33",33,{"$f":"OFFSET(#REF!,M101,Katılım!$AW$1)","v":{"$error":"#REF!"}},{"$f":"IFERROR(VLOOKUP(N101,Katılım!$A$4:$Z$301,26,0),0)","v":0},{"$f":"IFERROR(VLOOKUP(N101,Katılım!$A$4:$G$301,5,0),0)","v":0},null,null,null,null,null,null,null,null,null,null,0]
["33.33",null,137,null,{"$f":"IFERROR(VLOOKUP(C102,Katılım!$A$4:$Z$301,26,0),0)","v":0},null,null,null,{"$f":"IFERROR(VLOOKUP(C102,Katılım!$A$4:$G$301,5,0),0)","v":0}]
[]
[34,"E34",64,null,{"$f":"IFERROR(VLOOKUP(C104,Katılım!$A$4:$Z$301,26,0),0)","v":"KAYA ARSLAN (İST)"},null,{"$f":"IF(AND(F104=0,F105=0),\"\",IF(F104>F105,E104,E105))","v":""},null,{"$f":"IFERROR(VLOOKUP(C104,Katılım!$A$4:$G$301,5,0),0)","v":"YILDIZ RAKETLER SPOR KULÜBÜ"},null,null,"E34",34,{"$f":"OFFSET(#REF!,M104,Katılım!$AW$1)","v":{"$error":"#REF!"}},{"$f":"IFERROR(VLOOKUP(N104,Katılım!$A$4:$Z$301,26,0),0)","v":0},{"$f":"IFERROR(VLOOKUP(N104,Katılım!$A$4:$G$301,5,0),0)","v":0},null,null,null,null,null,null,null,null,null,null,0]
["34.34",null,138,null,{"$f":"IFERROR(VLOOKUP(C105,Katılım!$A$4:$Z$301,26,0),0)","v":0},null,null,null,{"$f":"IFERROR(VLOOKUP(C105,Katılım!$A$4:$G$301,5,0),0)","v":0}]
[]
[35,"E35",59,null,{"$f":"IFERROR(VLOOKUP(C107,Katılım!$A$4:$Z$301,26,0),0)","v":"YUSUF EYMEN SARIER (VAN)"},null,{"$f":"IF(AND(F107=0,F108=0),\"\",IF(F107>F108,E107,E108))","v":""},null,{"$f":"IFERROR(VLOOKUP(C107,Katılım!$A$4:$G$301,5,0),0)","v":"GENÇLİK VE SPOR"},null,null,"E35",35,{"$f":"OFFSET(#REF!,M107,Katılım!$AW$1)","v":{"$error":"#REF!"}},{"$f":"IFERROR(VLOOKUP(N107,Katılım!$A$4:$Z$301,26,0),0)","v":0},{"$f":"IFERROR(VLOOKUP(N107,Katılım!$A$4:$G$301,5,0),0)","v":0},null,null,null,null,null,null,null,null,null,null,0]
["35.35",null,139,null,{"$f":"IFERROR(VLOOKUP(C108,Katılım!$A$4:$Z$301,26,0),0)","v":0},null,null,null,{"$f":"IFERROR(VLOOKUP(C108,Katılım!$A$4:$G$301,5,0),0)","v":0}]
[]
[36,"E36",75,null,{"$f":"IFERROR(VLOOKUP(C110,Katılım!$A$4:$Z$301,26,0),0)","v":"BURAK SEVİNÇ (ANK)"},null,{"$f":"IF(AND(F110=0,F111=0),\"\",IF(F110>F111,E110,E111))","v":""},null,{"$f":"IFERROR(VLOOKUP(C110,Katılım!$A$4:$G$301,5,0),0)","v":"KARİYER EĞİTİM SPOR KULÜBÜ "},null,null,"E36",36,{"$f":"OFFSET(#REF!,M110,Katılım!$AW$1)","v":{"$error":"#REF!"}},{"$f":"IFERROR(VLOOKUP(N110,Katılım!$A$4:$Z$301,26,0),0)","v":0},{"$f":"IFERROR(VLOOKUP(N110,Katılım!$A$4:$G$301,5,0),0)","v":0},null,null,null,null,null,null,null,null,null,null,0]
["36.36",null,140,null,{"$f":"IFERROR(VLOOKUP(C111,Katılım!$A$4:$Z$301,26,0),0)","v":0},null,null,null,{"$f":"IFERROR(VLOOKUP(C111,Katılım!$A$4:$G$301,5,0),0)","v":0}]
[]
[37,"E37",48,null,{"$f":"IFERROR(VLOOKUP(C113,Katılım!$A$4:$Z$301,26,0),0)","v":"MEHMET EREN HANÇER (KMŞ)"},null,{"$f":"IF(AND(F113=0,F114=0),\"\",IF(F113>F114,E113,E114))","v":""},null,{"$f":"IFERROR(VLOOKUP(C113,Katılım!$A$4:$G$301,5,0),0)","v":"GENÇLİK SPOR"},null,null,"E37",37,{"$f":"OFFSET(#REF!,M113,Katılım!$AW$1)","v":{"$error":"#REF!"}},{"$f":"IFERROR(VLOOKUP(N113,Katılım!$A$4:$Z$301,26,0),0)","v":0},{"$f":"IFERROR(VLOOKUP(N113,Katılım!$A$4:$G$301,5,0),0)","v":0},null,null,null,null,null,null,null,null,null,null,0]
["37.37",null,141,null,{"$f":"IFERROR(VLOOKUP(C114,Katılım!$A$4:$Z$301,26,0),0)","v":0},null,null,null,{"$f":"IFERROR(VLOOKUP(C114,Katılım!$A$4:$G$301,5,0),0)","v":0}]
[]
[38,"E38",49,null,{"$f":"IFERROR(VLOOKUP(C116,Katılım!$A$4:$Z$301,26,0),0)","v":"FURKAN SÖNMEZAY (BRS)"},null,{"$f":"IF(AND(F116=0,F117=0),\"\",IF(F116>F117,E116,E117))","v":""},null,{"$f":"IFERROR(VLOOKUP(C116,Katılım!$A$4:$G$301,5,0),0)","v":"BURSA BÜYÜKŞEHİR BELEDİYESPOR"},null,null,"E38",38,{"$f":"OFFSET(#REF!,M116,Katılım!$AW$1)","v":{"$error":"#REF!"}},{"$f":"IFERROR(VLOOKUP(N116,Katılım!$A$4:$Z$301,26,0),0)","v":0},{"$f":"IFERROR(VLOOKUP(N116,Katılım!$A$4:$G$301,5,0),0)","v":0},null,null,null,null,null,null,null,null,null,null,0]
["38.38",null,142,null,{"$f":"IFERROR(VLOOKUP(C117,Katılım!$A$4:$Z$301,26,0),0)","v":0},null,null,null,{"$f":"IFERROR(VLOOKUP(C117,Katılım!$A$4:$G$301,5,0),0)","v":0}]
[]
[39,"E39",53,null,{"$f":"IFERROR(VLOOKUP(C119,Katılım!$A$4:$Z$301,26,0),0)","v":"AHMET YASİN KORKMAZ (GZT)"},null,{"$f":"IF(AND(F119=0,F120=0),\"\",IF(F119>F120,E119,E120))","v":""},null,{"$f":"IFERROR(VLOOKUP(C119,Katılım!$A$4:$G$301,5,0),0)","v":"GAZİANTEP BELEDİYE SPOR KLÜBÜ"},null,null,"E39",39,{"$f":"OFFSET(#REF!,M119,Katılım!$AW$1)","v":{"$error":"#REF!"}},{"$f":"IFERROR(VLOOKUP(N119,Katılım!$A$4:$Z$301,26,0),0)","v":0},{"$f":"IFERROR(VLOOKUP(N119,Katılım!$A$4:$G$301,5,0),0)","v":0},null,null,null,null,null,null,null,null,null,null,0]
["39.39",null,143,null,{"$f":"IFERROR(VLOOKUP(C120,Katılım!$A$4:$Z$301,26,0),0)","v":0},null,null,null,{"$f":"IFERROR(VLOOKUP(C120,Katılım!$A$4:$G$301,5,0),0)","v":0}]
[]
[40,"E40",70,null,{"$f":"IFERROR(VLOOKUP(C122,Katılım!$A$4:$Z$301,26,0),0)","v":"MUSTAFA ÇİÇEK (ÇNR)"},null,{"$f":"IF(AND(F122=0,F123=0),\"\",IF(F122>F123,E122,E123))","v":""},null,{"$f":"IFERROR(VLOOKUP(C122,Katılım!$A$4:$G$301,5,0),0)","v":"GENÇLİKSPOR"},null,null,"E40",40,{"$f":"OFFSET(#REF!,M122,Katılım!$AW$1)","v":{"$error":"#REF!"}},{"$f":"IFERROR(VLOOKUP(N122,Katılım!$A$4:$Z$301,26,0),0)","v":0},{"$f":"IFERROR(VLOOKUP(N122,Katılım!$A$4:$G$301,5,0),0)","v":0},null,null,null,null,null,null,null,null,null,null,0]
["40.40",null,144,null,{"$f":"IFERROR(VLOOKUP(C123,Katılım!$A$4:$Z$301,26,0),0)","v":0},null,null,null,{"$f":"IFERROR(VLOOKUP(C123,Katılım!$A$4:$G$301,5,0),0)","v":0}]
[]
[41,"E41",86,null,{"$f":"IFERROR(VLOOKUP(C125,Katılım!$A$4:$Z$301,26,0),0)","v":"BÜNYAMİN TANBOĞA (BTM)"},null,{"$f":"IF(AND(F125=0,F126=0),\"\",IF(F125>F126,E125,E126))","v":""},null,{"$f":"IFERROR(VLOOKUP(C125,Katılım!$A$4:$G$301,5,0),0)","v":"BATMAN GENÇLİK SPOR KLÜBÜ"},null,null,"E41",41,{"$f":"OFFSET(#REF!,M125,Katılım!$AW$1)","v":{"$error":"#REF!"}},{"$f":"IFERROR(VLOOKUP(N125,Katılım!$A$4:$Z$301,26,0),0)","v":0},{"$f":"IFERROR(VLOOKUP(N125,Katılım!$A$4:$G$301,5,0),0)","v":0},null,null,null,null,null,null,null,null,null,null,0]
["41.41",null,145,null,{"$f":"IFERROR(VLOOKUP(C126,Katılım!$A$4:$Z$301,26,0),0)","v":0},null,null,null,{"$f":"IFERROR(VLOOKUP(C126,Katılım!$A$4:$G$301,5,0),0)","v":0}]
[]
[42,"E42",85,null,{"$f":"IFERROR(VLOOKUP(C128,Katılım!$A$4:$Z$301,26,0),0)","v":"ERDEM ÇELİK (ISP)"},null,{"$f":"IF(AND(F128=0,F129=0),\"\",IF(F128>F129,E128,E129))","v":""},null,{"$f":"IFERROR(VLOOKUP(C128,Katılım!$A$4:$G$301,5,0),0)","v":"ISPARTES SPOR KULÜBÜ"},null,null,"E42",42,{"$f":"OFFSET(#REF!,M128,Katılım!$AW$1)","v":{"$error":"#REF!"}},{"$f":"IFERROR(VLOOKUP(N128,Katılım!$A$4:$Z$301,26,0),0)","v":0},{"$f":"IFERROR(VLOOKUP(N128,Katılım!$A$4:$G$301,5,0),0)","v":0},null,null,null,null,null,null,null,null,null,null,0]
["42.42",null,146,null,{"$f":"IFERROR(VLOOKUP(C129,Katılım!$A$4:$Z$301,26,0),0)","v":0},null,null,null,{"$f":"IFERROR(VLOOKUP(C129,Katılım!$A$4:$G$301,5,0),0)","v":0}]
[]
[43,"E43",96,null,{"$f":"IFERROR(VLOOKUP(C131,Katılım!$A$4:$Z$301,26,0),0)","v":"HÜSEYİN ALİ GÜRARAS (IĞD)"},null,{"$f":"IF(AND(F131=0,F132=0),\"\",IF(F131>F132,E131,E132))","v":""},null,{"$f":"IFERROR(VLOOKUP(C131,Katılım!$A$4:$G$301,5,0),0)","v":"YURDUM SPOR"},null,null,"E43",43,{"$f":"OFFSET(#REF!,M131,Katılım!$AW$1)","v":{"$error":"#REF!"}},{"$f":"IFERROR(VLOOKUP(N131,Katılım!$A$4:$Z$301,26,0),0)","v":0},{"$f":"IFERROR(VLOOKUP(N131,Katılım!$A$4:$G$301,5,0),0)","v":0},null,null,null,null,null,null,null,null,null,null,0]
["43.43",null,147,null,{"$f":"IFERROR(VLOOKUP(C132,Katılım!$A$4:$Z$301,26,0),0)","v":0},null,null,null,{"$f":"IFERROR(VLOOKUP(C132,Katılım!$A$4:$G$301,5,0),0)","v":0}]
[]
[44,"E44",92,null,{"$f":"IFERROR(VLOOKUP(C134,Katılım!$A$4:$Z$301,26,0),0)","v":"EREN CAN HAS (İST)"},null,{"$f":"IF(AND(F134=0,F135=0),\"\",IF(F134>F135,E134,E135))","v":""},null,{"$f":"IFERROR(VLOOKUP(C134,Katılım!$A$4:$G$301,5,0),0)","v":"İSTANBUL BÜYÜKŞEHİR BELEDİYE"},null,null,"E44",44,{"$f":"OFFSET(#REF!,M134,Katılım!$AW$1)","v":{"$error":"#REF!"}},{"$f":"IFERROR(VLOOKUP(N134,Katılım!$A$4:$Z$301,26,0),0)","v":0},{"$f":"IFERROR(VLOOKUP(N134,Katılım!$A$4:$G$301,5,0),0)","v":0},null,null,null,null,null,null,null,null,null,null,{"$f":"IF(AND(E134<>0,E135<>0),1,0)","v":0}]
["44.44",null,148,null,{"$f":"IFERROR(VLOOKUP(C135,Katılım!$A$4:$Z$301,26,0),0)","v":0},null,null,null,{"$f":"IFERROR(VLOOKUP(C135,Katılım!$A$4:$G$301,5,0),0)","v":0}]
[]
[45,"E45",44,null,{"$f":"IFERROR(VLOOKUP(C137,Katılım!$A$4:$Z$301,26,0),0)","v":"EYMEN KARA (AMS)"},null,{"$f":"IF(AND(F137=0,F138=0),\"\",IF(F137>F138,E137,E138))","v":""},null,{"$f":"IFERROR(VLOOKUP(C137,Katılım!$A$4:$G$301,5,0),0)","v":"KUTLUBEY OKULLARI SPOR KULÜBÜ"},null,null,"E45",45,{"$f":"OFFSET(#REF!,M137,Katılım!$AW$1)","v":{"$error":"#REF!"}},{"$f":"IFERROR(VLOOKUP(N137,Katılım!$A$4:$Z$301,26,0),0)","v":0},{"$f":"IFERROR(VLOOKUP(N137,Katılım!$A$4:$G$301,5,0),0)","v":0},null,null,null,null,null,null,null,null,null,null,0]
["45.45",null,149,null,{"$f":"IFERROR(VLOOKUP(C138,Katılım!$A$4:$Z$301,26,0),0)","v":0},null,null,null,{"$f":"IFERROR(VLOOKUP(C138,Katılım!$A$4:$G$301,5,0),0)","v":0}]
[]
[46,"E46",69,null,{"$f":"IFERROR(VLOOKUP(C140,Katılım!$A$4:$Z$301,26,0),0)","v":"MERT ÇALIŞKAN (KRL)"},null,{"$f":"IF(AND(F140=0,F141=0),\"\",IF(F140>F141,E140,E141))","v":""},null,{"$f":"IFERROR(VLOOKUP(C140,Katılım!$A$4:$G$301,5,0),0)","v":"ZİRVE GSK"},null,null,"E46",46,{"$f":"OFFSET(#REF!,M140,Katılım!$AW$1)","v":{"$error":"#REF!"}},{"$f":"IFERROR(VLOOKUP(N140,Katılım!$A$4:$Z$301,26,0),0)","v":0},{"$f":"IFERROR(VLOOKUP(N140,Katılım!$A$4:$G$301,5,0),0)","v":0},null,null,null,null,null,null,null,null,null,null,0]
["46.46",null,150,null,{"$f":"IFERROR(VLOOKUP(C141,Katılım!$A$4:$Z$301,26,0),0)","v":0},null,null,null,{"$f":"IFERROR(VLOOKUP(C141,Katılım!$A$4:$G$301,5,0),0)","v":0}]
[]
[47,"E47",101,null,{"$f":"IFERROR(VLOOKUP(C143,Katılım!$A$4:$Z$301,26,0),0)","v":"MERİÇ ÇORAK (ZNG)"},null,{"$f":"IF(AND(F143=0,F144=0),\"\",IF(F143>F144,E143,E144))","v":""},null,{"$f":"IFERROR(VLOOKUP(C143,Katılım!$A$4:$G$301,5,0),0)","v":"ÖZEL İDARE YOLSPOR"},null,null,"E47",47,{"$f":"OFFSET(#REF!,M143,Katılım!$AW$1)","v":{"$error":"#REF!"}},{"$f":"IFERROR(VLOOKUP(N143,Katılım!$A$4:$Z$301,26,0),0)","v":0},{"$f":"IFERROR(VLOOKUP(N143,Katılım!$A$4:$G$301,5,0),0)","v":0},null,null,null,null,null,null,null,null,null,null,0]
["47.47",null,151,null,{"$f":"IFERROR(VLOOKUP(C144,Katılım!$A$4:$Z$301,26,0),0)","v":0},null,null,null,{"$f":"IFERROR(VLOOKUP(C144,Katılım!$A$4:$G$301,5,0),0)","v":0}]
[]
[48,"E48",81,null,{"$f":"IFERROR(VLOOKUP(C146,Katılım!$A$4:$Z$301,26,0),0)","v":"ONUR RECEP BAKİ (TRB)"},null,{"$f":"IF(AND(F146=0,F147=0),\"\",IF(F146>F147,E146,E147))","v":""},null,{"$f":"IFERROR(VLOOKUP(C146,Katılım!$A$4:$G$301,5,0),0)","v":"FERDİ "},null,null,"E48",48,{"$f":"OFFSET(#REF!,M146,Katılım!$AW$1)","v":{"$error":"#REF!"}},{"$f":"IFERROR(VLOOKUP(N146,Katılım!$A$4:$Z$301,26,0),0)","v":0},{"$f":"IFERROR(VLOOKUP(N146,Katılım!$A$4:$G$301,5,0),0)","v":0},null,null,null,null,null,null,null,null,null,null,0]
["48.48",null,152,null,{"$f":"IFERROR(VLOOKUP(C147,Katılım!$A$4:$Z$301,26,0),0)","v":0},null,null,null,{"$f":"IFERROR(VLOOKUP(C147,Katılım!$A$4:$G$301,5,0),0)","v":0}]
[]
[49,"E49",41,null,{"$f":"IFERROR(VLOOKUP(C149,Katılım!$A$4:$Z$301,26,0),0)","v":"EYMEN BAŞAR (İST)"},null,{"$f":"IF(AND(F149=0,F150=0),\"\",IF(F149>F150,E149,E150))","v":""},null,{"$f":"IFERROR(VLOOKUP(C149,Katılım!$A$4:$G$301,5,0),0)","v":"FENERBAHÇE SPOR KULÜBÜ"},null,null,"E49",49,{"$f":"OFFSET(#REF!,M149,Katılım!$AW$1)","v":{"$error":"#REF!"}},{"$f":"IFERROR(VLOOKUP(N149,Katılım!$A$4:$Z$301,26,0),0)","v":0},{"$f":"IFERROR(VLOOKUP(N149,Katılım!$A$4:$G$301,5,0),0)","v":0},null,null,null,null,null,null,null,null,null,null,0]
["49.49",null,153,null,{"$f":"IFERROR(VLOOKUP(C150,Katılım!$A$4:$Z$301,26,0),0)","v":0},null,null,null,{"$f":"IFERROR(VLOOKUP(C150,Katılım!$A$4:$G$301,5,0),0)","v":0}]
[]
[50,"E50",99,null,{"$f":"IFERROR(VLOOKUP(C152,Katılım!$A$4:$Z$301,26,0),0)","v":"YUSUF SAMET KURT (ZNG)"},null,{"$f":"IF(AND(F152=0,F153=0),\"\",IF(F152>F153,E152,E153))","v":""},null,{"$f":"IFERROR(VLOOKUP(C152,Katılım!$A$4:$G$301,5,0),0)","v":"ÖZEL İDARE YOLSPOR"},null,null,"E50",50,{"$f":"OFFSET(#REF!,M152,Katılım!$AW$1)","v":{"$error":"#REF!"}},{"$f":"IFERROR(VLOOKUP(N152,Katılım!$A$4:$Z$301,26,0),0)","v":0},{"$f":"IFERROR(VLOOKUP(N152,Katılım!$A$4:$G$301,5,0),0)","v":0},null,null,null,null,null,null,null,null,null,null,0]
["50.50",null,154,null,{"$f":"IFERROR(VLOOKUP(C153,Katılım!$A$4:$Z$301,26,0),0)","v":0},null,null,null,{"$f":"IFERROR(VLOOKUP(C153,Katılım!$A$4:$G$301,5,0),0)","v":0}]
[]
[51,"E51",78,null,{"$f":"IFERROR(VLOOKUP(C155,Katılım!$A$4:$Z$301,26,0),0)","v":"UMUT ŞAN (GZT)"},null,{"$f":"IF(AND(F155=0,F156=0),\"\",IF(F155>F156,E155,E156))","v":""},null,{"$f":"IFERROR(VLOOKUP(C155,Katılım!$A$4:$G$301,5,0),0)","v":"GAZİANTEP BELEDİYE SPOR KLÜBÜ"},null,null,"E51",51,{"$f":"OFFSET(#REF!,M155,Katılım!$AW$1)","v":{"$error":"#REF!"}},{"$f":"IFERROR(VLOOKUP(N155,Katılım!$A$4:$Z$301,26,0),0)","v":0},{"$f":"IFERROR(VLOOKUP(N155,Katılım!$A$4:$G$301,5,0),0)","v":0},null,null,null,null,null,null,null,null,null,null,0]
["51.51",null,155,null,{"$f":"IFERROR(VLOOKUP(C156,Katılım!$A$4:$Z$301,26,0),0)","v":0},null,null,null,{"$f":"IFERROR(VLOOKUP(C156,Katılım!$A$4:$G$301,5,0),0)","v":0}]
[]
[52,"E52",57,null,{"$f":"IFERROR(VLOOKUP(C158,Katılım!$A$4:$Z$301,26,0),0)","v":"EKİN AĞBABA (ANK)"},null,{"$f":"IF(AND(F158=0,F159=0),\"\",IF(F158>F159,E158,E159))","v":""},null,{"$f":"IFERROR(VLOOKUP(C158,Katılım!$A$4:$G$301,5,0),0)","v":"ŞAFAKTEPE GSK"},null,null,"E52",52,{"$f":"OFFSET(#REF!,M158,Katılım!$AW$1)","v":{"$error":"#REF!"}},{"$f":"IFERROR(VLOOKUP(N158,Katılım!$A$4:$Z$301,26,0),0)","v":0},{"$f":"IFERROR(VLOOKUP(N158,Katılım!$A$4:$G$301,5,0),0)","v":0},null,null,null,null,null,null,null,null,null,null,0]
["52.52",null,156,null,{"$f":"IFERROR(VLOOKUP(C159,Katılım!$A$4:$Z$301,26,0),0)","v":0},null,null,null,{"$f":"IFERROR(VLOOKUP(C159,Katılım!$A$4:$G$301,5,0),0)","v":0}]
[]
[53,"E53",73,null,{"$f":"IFERROR(VLOOKUP(C161,Katılım!$A$4:$Z$301,26,0),0)","v":"BURAK TUNCER (ESK)"},null,{"$f":"IF(AND(F161=0,F162=0),\"\",IF(F161>F162,E161,E162))","v":""},null,{"$f":"IFERROR(VLOOKUP(C161,Katılım!$A$4:$G$301,5,0),0)","v":"ESKİŞEHİR BÜYÜKŞEHİR GENÇLİK VE SPOR"},null,null,"E53",53,{"$f":"OFFSET(#REF!,M161,Katılım!$AW$1)","v":{"$error":"#REF!"}},{"$f":"IFERROR(VLOOKUP(N161,Katılım!$A$4:$Z$301,26,0),0)","v":0},{"$f":"IFERROR(VLOOKUP(N161,Katılım!$A$4:$G$301,5,0),0)","v":0},null,null,null,null,null,null,null,null,null,null,0]
["53.53",null,157,null,{"$f":"IFERROR(VLOOKUP(C162,Katılım!$A$4:$Z$301,26,0),0)","v":0},null,null,null,{"$f":"IFERROR(VLOOKUP(C162,Katılım!$A$4:$G$301,5,0),0)","v":0}]
[]
[54,"E54",37,null,{"$f":"IFERROR(VLOOKUP(C164,Katılım!$A$4:$Z$301,26,0),0)","v":"EMİR YALÇIN PEHLİVAN (KRL)"},null,{"$f":"IF(AND(F164=0,F165=0),\"\",IF(F164>F165,E164,E165))","v":""},null,{"$f":"IFERROR(VLOOKUP(C164,Katılım!$A$4:$G$301,5,0),0)","v":"TRAKER"},null,null,"E54",54,{"$f":"OFFSET(#REF!,M164,Katılım!$AW$1)","v":{"$error":"#REF!"}},{"$f":"IFERROR(VLOOKUP(N164,Katılım!$A$4:$Z$301,26,0),0)","v":0},{"$f":"IFERROR(VLOOKUP(N164,Katılım!$A$4:$G$301,5,0),0)","v":0},null,null,null,null,null,null,null,null,null,null,0]
["54.54",null,158,null,{"$f":"IFERROR(VLOOKUP(C165,Katılım!$A$4:$Z$301,26,0),0)","v":0},null,null,null,{"$f":"IFERROR(VLOOKUP(C165,Katılım!$A$4:$G$301,5,0),0)","v":0}]
[]
[55,"E55",51,null,{"$f":"IFERROR(VLOOKUP(C167,Katılım!$A$4:$Z$301,26,0),0)","v":"ERDEM EREN (ESK)"},null,{"$f":"IF(AND(F167=0,F168=0),\"\",IF(F167>F168,E167,E168))","v":""},null,{"$f":"IFERROR(VLOOKUP(C167,Katılım!$A$4:$G$301,5,0),0)","v":"ESKİŞEHİR BÜYÜKŞEHİR GENÇLİK VE SPOR"},null,null,"E55",55,{"$f":"OFFSET(#REF!,M167,Katılım!$AW$1)","v":{"$error":"#REF!"}},{"$f":"IFERROR(VLOOKUP(N167,Katılım!$A$4:$Z$301,26,0),0)","v":0},{"$f":"IFERROR(VLOOKUP(N167,Katılım!$A$4:$G$301,5,0),0)","v":0},null,null,null,null,null,null,null,null,null,null,0]
["55.55",null,159,null,{"$f":"IFERROR(VLOOKUP(C168,Katılım!$A$4:$Z$301,26,0),0)","v":0},null,null,null,{"$f":"IFERROR(VLOOKUP(C168,Katılım!$A$4:$G$301,5,0),0)","v":0}]
[]
[56,"E56",56,null,{"$f":"IFERROR(VLOOKUP(C170,Katılım!$A$4:$Z$301,26,0),0)","v":"YUSUF BORA ATAK (ANK)"},null,{"$f":"IF(AND(F170=0,F171=0),\"\",IF(F170>F171,E170,E171))","v":""},null,{"$f":"IFERROR(VLOOKUP(C170,Katılım!$A$4:$G$301,5,0),0)","v":"KARİYER EĞİTİM SPOR KULÜBÜ "},null,null,"E56",56,{"$f":"OFFSET(#REF!,M170,Katılım!$AW$1)","v":{"$error":"#REF!"}},{"$f":"IFERROR(VLOOKUP(N170,Katılım!$A$4:$Z$301,26,0),0)","v":0},{"$f":"IFERROR(VLOOKUP(N170,Katılım!$A$4:$G$301,5,0),0)","v":0},null,null,null,null,null,null,null,null,null,null,0]
["56.56",null,160,null,{"$f":"IFERROR(VLOOKUP(C171,Katılım!$A$4:$Z$301,26,0),0)","v":0},null,null,null,{"$f":"IFERROR(VLOOKUP(C171,Katılım!$A$4:$G$301,5,0),0)","v":0}]
[]
[57,"E57",88,null,{"$f":"IFERROR(VLOOKUP(C173,Katılım!$A$4:$Z$301,26,0),0)","v":"MUHAMMED ALİ GÜNDOĞDU (IĞD)"},null,{"$f":"IF(AND(F173=0,F174=0),\"\",IF(F173>F174,E173,E174))","v":""},null,{"$f":"IFERROR(VLOOKUP(C173,Katılım!$A$4:$G$301,5,0),0)","v":"GENÇLİK SPOR KULÜBÜ "},null,null,"E57",57,{"$f":"OFFSET(#REF!,M173,Katılım!$AW$1)","v":{"$error":"#REF!"}},{"$f":"IFERROR(VLOOKUP(N173,Katılım!$A$4:$Z$301,26,0),0)","v":0},{"$f":"IFERROR(VLOOKUP(N173,Katılım!$A$4:$G$301,5,0),0)","v":0},null,null,null,null,null,null,null,null,null,null,0]
["57.57",null,161,null,{"$f":"IFERROR(VLOOKUP(C174,Katılım!$A$4:$Z$301,26,0),0)","v":0},null,null,null,{"$f":"IFERROR(VLOOKUP(C174,Katılım!$A$4:$G$301,5,0),0)","v":0}]
[]
[58,"E58",38,null,{"$f":"IFERROR(VLOOKUP(C176,Katılım!$A$4:$Z$301,26,0),0)","v":"BURAK BEZENMİŞ (BTM)"},null,{"$f":"IF(AND(F176=0,F177=0),\"\",IF(F176>F177,E176,E177))","v":""},null,{"$f":"IFERROR(VLOOKUP(C176,Katılım!$A$4:$G$301,5,0),0)","v":"1955 BATMAN BELEDİYE SPOR "},null,null,"E58",58,{"$f":"OFFSET(#REF!,M176,Katılım!$AW$1)","v":{"$error":"#REF!"}},{"$f":"IFERROR(VLOOKUP(N176,Katılım!$A$4:$Z$301,26,0),0)","v":0},{"$f":"IFERROR(VLOOKUP(N176,Katılım!$A$4:$G$301,5,0),0)","v":0},null,null,null,null,null,null,null,null,null,null,0]
["58.58",null,162,null,{"$f":"IFERROR(VLOOKUP(C177,Katılım!$A$4:$Z$301,26,0),0)","v":0},null,null,null,{"$f":"IFERROR(VLOOKUP(C177,Katılım!$A$4:$G$301,5,0),0)","v":0}]
[]
[59,"E59",62,null,{"$f":"IFERROR(VLOOKUP(C179,Katılım!$A$4:$Z$301,26,0),0)","v":"CEMAL EYMEN BAYRAM (MLT)"},null,{"$f":"IF(AND(F179=0,F180=0),\"\",IF(F179>F180,E179,E180))","v":""},null,{"$f":"IFERROR(VLOOKUP(C179,Katılım!$A$4:$G$301,5,0),0)","v":"MALATYA B. ŞEH. BLD. SPOR"},null,null,"E59",59,{"$f":"OFFSET(#REF!,M179,Katılım!$AW$1)","v":{"$error":"#REF!"}},{"$f":"IFERROR(VLOOKUP(N179,Katılım!$A$4:$Z$301,26,0),0)","v":0},{"$f":"IFERROR(VLOOKUP(N179,Katılım!$A$4:$G$301,5,0),0)","v":0},null,null,null,null,null,null,null,null,null,null,0]
["59.59",null,163,null,{"$f":"IFERROR(VLOOKUP(C180,Katılım!$A$4:$Z$301,26,0),0)","v":0},null,null,null,{"$f":"IFERROR(VLOOKUP(C180,Katılım!$A$4:$G$301,5,0),0)","v":0}]
[]
[60,"E60",89,null,{"$f":"IFERROR(VLOOKUP(C182,Katılım!$A$4:$Z$301,26,0),0)","v":"DEMİRKAN GÜLTEN (ESK)"},null,{"$f":"IF(AND(F182=0,F183=0),\"\",IF(F182>F183,E182,E183))","v":""},null,{"$f":"IFERROR(VLOOKUP(C182,Katılım!$A$4:$G$301,5,0),0)","v":"ESKİŞEHİR BÜYÜKŞEHİR GENÇLİK VE SPOR"},null,null,"E60",60,{"$f":"OFFSET(#REF!,M182,Katılım!$AW$1)","v":{"$error":"#REF!"}},{"$f":"IFERROR(VLOOKUP(N182,Katılım!$A$4:$Z$301,26,0),0)","v":0},{"$f":"IFERROR(VLOOKUP(N182,Katılım!$A$4:$G$301,5,0),0)","v":0},null,null,null,null,null,null,null,null,null,null,0]
["60.60",null,164,null,{"$f":"IFERROR(VLOOKUP(C183,Katılım!$A$4:$Z$301,26,0),0)","v":0},null,null,null,{"$f":"IFERROR(VLOOKUP(C183,Katılım!$A$4:$G$301,5,0),0)","v":0}]
[]
[61,"E61",35,null,{"$f":"IFERROR(VLOOKUP(C185,Katılım!$A$4:$Z$301,26,0),0)","v":"SELİM AZAZİ (GZT)"},null,{"$f":"IF(AND(F185=0,F186=0),\"\",IF(F185>F186,E185,E186))","v":""},null,{"$f":"IFERROR(VLOOKUP(C185,Katılım!$A$4:$G$301,5,0),0)","v":"GAZİANTEP BELEDİYE SPOR KLÜBÜ"},null,null,"E61",61,{"$f":"OFFSET(#REF!,M185,Katılım!$AW$1)","v":{"$error":"#REF!"}},{"$f":"IFERROR(VLOOKUP(N185,Katılım!$A$4:$Z$301,26,0),0)","v":0},{"$f":"IFERROR(VLOOKUP(N185,Katılım!$A$4:$G$301,5,0),0)","v":0},null,null,null,null,null,null,null,null,null,null,0]
["61.61",null,165,null,{"$f":"IFERROR(VLOOKUP(C186,Katılım!$A$4:$Z$301,26,0),0)","v":0},null,null,null,{"$f":"IFERROR(VLOOKUP(C186,Katılım!$A$4:$G$301,5,0),0)","v":0}]
[]
[62,"E62",39,null,{"$f":"IFERROR(VLOOKUP(C188,Katılım!$A$4:$Z$301,26,0),0)","v":"AHMET BERK TÜKENMEZ (İST)"},null,{"$f":"IF(AND(F188=0,F189=0),\"\",IF(F188>F189,E188,E189))","v":""},null,{"$f":"IFERROR(VLOOKUP(C188,Katılım!$A$4:$G$301,5,0),0)","v":"FENERBAHÇE SPOR KULÜBÜ"},null,null,"E62",62,{"$f":"OFFSET(#REF!,M188,Katılım!$AW$1)","v":{"$error":"#REF!"}},{"$f":"IFERROR(VLOOKUP(N188,Katılım!$A$4:$Z$301,26,0),0)","v":0},{"$f":"IFERROR(VLOOKUP(N188,Katılım!$A$4:$G$301,5,0),0)","v":0},null,null,null,null,null,null,null,null,null,null,0]
["62.62",null,166,null,{"$f":"IFERROR(VLOOKUP(C189,Katılım!$A$4:$Z$301,26,0),0)","v":0},null,null,null,{"$f":"IFERROR(VLOOKUP(C189,Katılım!$A$4:$G$301,5,0),0)","v":0}]
[]
[63,"E63",83,null,{"$f":"IFERROR(VLOOKUP(C191,Katılım!$A$4:$Z$301,26,0),0)","v":"ARDA AYTEKİN (KYS)"},null,{"$f":"IF(AND(F191=0,F192=0),\"\",IF(F191>F192,E191,E192))","v":""},null,{"$f":"IFERROR(VLOOKUP(C191,Katılım!$A$4:$G$301,5,0),0)","v":"KOCASİNAN BELEDİYESİ SPOR"},null,null,"E63",63,{"$f":"OFFSET(#REF!,M191,Katılım!$AW$1)","v":{"$error":"#REF!"}},{"$f":"IFERROR(VLOOKUP(N191,Katılım!$A$4:$Z$301,26,0),0)","v":0},{"$f":"IFERROR(VLOOKUP(N191,Katılım!$A$4:$G$301,5,0),0)","v":0},null,null,null,null,null,null,null,null,null,null,0]
["63.63",null,167,null,{"$f":"IFERROR(VLOOKUP(C192,Katılım!$A$4:$Z$301,26,0),0)","v":0},null,null,null,{"$f":"IFERROR(VLOOKUP(C192,Katılım!$A$4:$G$301,5,0),0)","v":0}]
[]
[64,"E64",72,null,{"$f":"IFERROR(VLOOKUP(C194,Katılım!$A$4:$Z$301,26,0),0)","v":"METEHAN DEMİREL (TKD)"},null,{"$f":"IF(AND(F194=0,F195=0),\"\",IF(F194>F195,E194,E195))","v":""},null,{"$f":"IFERROR(VLOOKUP(C194,Katılım!$A$4:$G$301,5,0),0)","v":"ÇERKEZKÖY BELEDİYESİ GENÇLİK VE SPOR KULÜBÜ "},null,null,"E64",64,{"$f":"OFFSET(#REF!,M194,Katılım!$AW$1)","v":{"$error":"#REF!"}},{"$f":"IFERROR(VLOOKUP(N194,Katılım!$A$4:$Z$301,26,0),0)","v":0},{"$f":"IFERROR(VLOOKUP(N194,Katılım!$A$4:$G$301,5,0),0)","v":0},null,null,null,null,null,null,null,null,null,null,0]
["64.64",null,168,null,{"$f":"IFERROR(VLOOKUP(C195,Katılım!$A$4:$Z$301,26,0),0)","v":0},null,null,null,{"$f":"IFERROR(VLOOKUP(C195,Katılım!$A$4:$G$301,5,0),0)","v":0}]

{"sheet":"Eleme","index":2,"n_rows":195,"n_cols":78,"rows_kept":195,"cut":false,"hidden":false,"merged":[[117,40,117,46],[129,40,129,46],[141,40,141,46],[153,40,153,46],[165,40,165,46],[177,40,177,46],[189,40,189,46],[113,33,113,39],[120,33,120,39],[125,33,125,39],[9,40,9,46],[21,40,21,46],[33,40,33,46],[45,40,45,46],[57,40,57,46],[69,40,69,46],[81,40,81,46],[93,40,93,46],[105,40,105,46],[180,26,180,32],[186,26,186,32],[192,26,192,32],[144,26,144,32],[132,33,132,39],[137,33,137,39],[144,33,144,39],[149,33,149,39],[156,33,156,39],[161,33,161,39],[150,26,150,32],[156,26,156,32],[162,26,162,32],[168,33,168,39],[173,33,173,39],[180,33,180,39],[185,33,185,39],[192,33,192,39],[17,33,17,39],[24,33,24,39],[29,33,29,39],[36,33,36,39],[41,33,41,39],[48,33,48,39],[53,33,53,39],[60,33,60,39],[126,26,126,32],[65,33,65,39],[72,33,72,39],[77,33,77,39],[84,33,84,39],[89,33,89,39],[96,33,96,39],[101,33,101,39],[72,26,72,32],[78,26,78,32],[84,26,84,32],[114,26,114,32],[120,26,120,32],[18,26,18,32],[24,26,24,32],[30,26,30,32],[36,26,36,32],[42,26,42,32],[48,26,48,32],[54,26,54,32],[60,26,60,32],[66,26,66,32],[169,12,169,18],[172,12,172,18],[175,12,175,18],[157,19,157,25],[160,19,160,25],[163,19,163,25],[166,19,166,25],[157,12,157,18],[160,12,160,18],[163,12,163,18],[118,19,118,25],[109,12,109,18],[112,12,112,18],[100,19,100,25],[132,26,132,32],[138,26,138,32],[168,26,168,32],[174,26,174,32],[178,12,178,18],[181,12,181,18],[184,12,184,18],[187,12,187,18],[190,12,190,18],[193,12,193,18],[169,19,169,25],[172,19,172,25],[175,19,175,25],[178,19,178,25],[181,19,181,25],[184,19,184,25],[187,19,187,25],[190,19,190,25],[193,19,193,25],[191,5,191,11],[192,5,192,11],[194,5,194,11],[4,19,4,25],[7,19,7,25],[10,19,10,25],[13,19,13,25],[16,19,16,25],[19,19,19,25],[22,19,22,25],[25,19,25,25],[28,19,28,25],[31,19,31,25],[34,19,34,25],[37,19,37,25],[40,19,40,25],[43,19,43,25],[46,19,46,25],[49,19,49,25],[52,19,52,25],[55,19,55,25],[58,19,58,25],[61,19,61,25],[64,19,64,25],[3,5,3,11],[5,5,5,11],[6,5,6,11],[8,5,8,11],[9,5,9,11],[11,5,11,11],[12,5,12,11],[5,33,5,39],[4,12,4,18],[7,12,7,18],[10,12,10,18],[6,26,6,32],[12,26,12,32],[12,33,12,39],[0,5,0,32],[1,5,1,32],[180,5,180,11],[182,5,182,11],[183,5,183,11],[185,5,185,11],[186,5,186,11],[188,5,188,11],[189,5,189,11],[158,5,158,11],[159,5,159,11],[161,5,161,11],[162,5,162,11],[164,5,164,11],[165,5,165,11],[167,5,167,11],[168,5,168,11],[170,5,170,11],[171,5,171,11],[173,5,173,11],[174,5,174,11],[176,5,176,11],[177,5,177,11],[179,5,179,11],[149,5,149,11],[150,5,150,11],[152,5,152,11],[153,5,153,11],[155,5,155,11],[156,5,156,11],[166,12,166,18],[148,19,148,25],[151,19,151,25],[154,19,154,25],[148,12,148,18],[151,12,151,18],[154,12,154,18],[138,5,138,11],[140,5,140,11],[141,5,141,11],[143,5,143,11],[144,5,144,11],[146,5,146,11],[147,5,147,11],[139,19,139,25],[142,19,142,25],[145,19,145,25],[142,12,142,18],[145,12,145,18],[139,12,139,18],[129,5,129,11],[131,5,131,11],[132,5,132,11],[134,5,134,11],[135,5,135,11],[137,5,137,11],[130,19,130,25],[133,19,133,25],[136,19,136,25],[130,12,130,18],[133,12,133,18],[136,12,136,18],[119,5,119,11],[120,5,120,11],[122,5,122,11],[123,5,123,11],[125,5,125,11],[126,5,126,11],[128,5,128,11],[121,19,121,25],[124,19,124,25],[127,19,127,25],[121,12,121,18],[124,12,124,18],[127,12,127,18],[114,5,114,11],[116,5,116,11],[117,5,117,11],[109,19,109,25],[112,19,112,25],[115,19,115,25],[103,12,103,18],[115,12,115,18],[118,12,118,18],[103,19,103,25],[106,19,106,25],[106,12,106,18],[104,5,104,11],[105,5,105,11],[107,5,107,11],[108,5,108,11],[110,5,110,11],[111,5,111,11],[113,5,113,11],[108,33,108,39],[90,5,90,11],[92,5,92,11],[93,5,93,11],[95,5,95,11],[96,5,96,11],[98,5,98,11],[99,5,99,11],[91,19,91,25],[94,19,94,25],[97,19,97,25],[91,12,91,18],[94,12,94,18],[97,12,97,18],[100,12,100,18],[90,26,90,32],[96,26,96,32],[102,26,102,32],[108,26,108,32],[101,5,101,11],[102,5,102,11],[81,5,81,11],[83,5,83,11],[84,5,84,11],[86,5,86,11],[87,5,87,11],[89,5,89,11],[82,19,82,25],[85,19,85,25],[88,19,88,25],[82,12,82,18],[85,12,85,18],[88,12,88,18],[71,5,71,11],[72,5,72,11],[74,5,74,11],[75,5,75,11],[77,5,77,11],[78,5,78,11],[80,5,80,11],[73,19,73,25],[76,19,76,25],[79,19,79,25],[73,12,73,18],[76,12,76,18],[79,12,79,18],[62,5,62,11],[63,5,63,11],[65,5,65,11],[66,5,66,11],[68,5,68,11],[69,5,69,11],[67,19,67,25],[70,19,70,25],[61,12,61,18],[64,12,64,18],[67,12,67,18],[70,12,70,18],[53,5,53,11],[54,5,54,11],[56,5,56,11],[57,5,57,11],[59,5,59,11],[60,5,60,11],[52,12,52,18],[55,12,55,18],[58,12,58,18],[42,5,42,11],[44,5,44,11],[45,5,45,11],[47,5,47,11],[48,5,48,11],[50,5,50,11],[51,5,51,11],[43,12,43,18],[46,12,46,18],[49,12,49,18],[33,5,33,11],[35,5,35,11],[36,5,36,11],[38,5,38,11],[39,5,39,11],[41,5,41,11],[34,12,34,18],[37,12,37,18],[40,12,40,18],[23,5,23,11],[24,5,24,11],[26,5,26,11],[27,5,27,11],[29,5,29,11],[30,5,30,11],[32,5,32,11],[25,12,25,18],[28,12,28,18],[31,12,31,18],[22,12,22,18],[14,5,14,11],[15,5,15,11],[17,5,17,11],[18,5,18,11],[20,5,20,11],[21,5,21,11],[13,12,13,18],[16,12,16,18],[19,12,19,18]]}
[null,null,null,null,null,{"$f":"Katılım!AC1","v":"TÜRKİYE MASA TENİSİ FEDERASYONU\nKÜÇÜKLER FEDERASYON KUPASI"},null,null,null,null,null,null,null,null,null,null,null,null,null,null,null,null,null,null,null,null,null,null,null,null,null,null,null,null,null,null,null,null,null,null,null,null,null,null,null,null,null,null,null,null,null,null,null,null,null,null,null,null,null,null,null,null,null,null,null,null,null,null,null,null,null,null,null,null,null,null,null,1]
[null,null,null,null,null,{"$f":"Katılım!AC2&\" \"&Katılım!AD3","v":"TEK ERKEK [17-18 Nisan 2023 Amasya] [ Eleme ]"}]
["Y","S","B","Q","#"]
[1,1,0,0,1,{"$f":"VLOOKUP(E4,Katılım!$A$4:$Z$301,26,0)","v":"GÖRKEM ÖÇAL (ADN)"},{"$f":"+Katılım!AJ4","v":0},{"$f":"+Katılım!AK4","v":0},{"$f":"+Katılım!AL4","v":0},{"$f":"+Katılım!AM4","v":0},{"$f":"+Katılım!AN4","v":0},{"$f":"+Katılım!#REF!","v":{"$error":"#REF!"}}]
[null,null,null,null,null,null,null,3,0,null,null,1,{"$f":"IF(AND(H5=0,I5=0),\"\",IF(H5>I5,F4,F6))","v":"GÖRKEM ÖÇAL (ADN)"},null,null,null,null,null,null,{"$f":"IF(AND(H5=0,I5=0),\"\",IF(H5>I5,F4,F6))","v":"GÖRKEM ÖÇAL (ADN)"}]
[2,65,1,64,999,{"$f":"VLOOKUP(E6,Katılım!$A$4:$Z$301,26,0)","v":{"$error":"#N/A"}},{"$f":"+Katılım!AJ6","v":0},{"$f":"+Katılım!AK6","v":0},{"$f":"+Katılım!AL6","v":0},{"$f":"+Katılım!AM6","v":0},{"$f":"+Katılım!AN6","v":0},{"$f":"+Katılım!#REF!","v":{"$error":"#REF!"}},null,null,null,null,null,null,null,null,null,null,null,null,null,65,null,null,null,null,null,null,null,{"$f":"IF(AND(V7=0,W7=0),\"\",IF(V7>W7,T5,T8))","v":"GÖRKEM ÖÇAL (ADN)"}]
[3,65,33,32,999,{"$f":"VLOOKUP(E7,Katılım!$A$4:$Z$301,26,0)","v":{"$error":"#N/A"}},{"$f":"+Katılım!AJ7","v":0},{"$f":"+Katılım!AK7","v":0},{"$f":"+Katılım!AL7","v":0},{"$f":"+Katılım!AM7","v":0},{"$f":"+Katılım!AN7","v":0},{"$f":"+Katılım!#REF!","v":{"$error":"#REF!"}},null,null,null,null,null,null,null,null,null,3,0,null,null,null,{"$f":"IF(AND(V7=0,W7=0),\"\",IF(V7>W7,T5,T8))","v":"GÖRKEM ÖÇAL (ADN)"},null,null,null,null,null,null,null,null,null,null,null,null,97]
[null,null,null,null,null,null,null,0,0,null,null,2,{"$f":"IF(AND(H8=0,I8=0),\"\",IF(H8>I8,F7,F9))","v":""},null,null,null,null,null,null,{"$f":"IF(AND(H8=0,I8=0),\"\",IF(H8>I8,F7,F9))","v":""}]
[4,33,0,0,999,{"$f":"VLOOKUP(E9,Katılım!$A$4:$Z$301,26,0)","v":{"$error":"#N/A"}},{"$f":"+Katılım!AJ9","v":0},{"$f":"+Katılım!AK9","v":0},{"$f":"+Katılım!AL9","v":0},{"$f":"+Katılım!AM9","v":0},{"$f":"+Katılım!AN9","v":0},{"$f":"+Katılım!#REF!","v":{"$error":"#REF!"}}]
[5,33,0,0,41,{"$f":"VLOOKUP(E10,Katılım!$A$4:$Z$301,26,0)","v":"EYMEN BAŞAR (İST)"},{"$f":"+Katılım!AJ10","v":0},{"$f":"+Katılım!AK10","v":0},{"$f":"+Katılım!AL10","v":0},{"$f":"+Katılım!AM10","v":0},{"$f":"+Katılım!AN10","v":0},{"$f":"+Katılım!#REF!","v":{"$error":"#REF!"}},null,null,null,null,null,null,null,null,null,null,null,null,null,null,null,null,null,null,null,null,null,null,null,0,0,null,null,null,{"$f":"IF(AND(AJ10=0,AK10=0),\"\",IF(AJ10>AK10,AH6,AH13))","v":""}]
[null,null,null,null,null,null,null,3,2,null,null,3,{"$f":"IF(AND(H11=0,I11=0),\"\",IF(H11>I11,F10,F12))","v":"EYMEN BAŞAR (İST)"},null,null,null,null,null,null,{"$f":"IF(AND(H11=0,I11=0),\"\",IF(H11>I11,F10,F12))","v":"EYMEN BAŞAR (İST)"}]
[6,65,49,16,42,{"$f":"VLOOKUP(E12,Katılım!$A$4:$Z$301,26,0)","v":"HASAN TALHA YAVUZ (KYS)"},{"$f":"+Katılım!AJ12","v":0},{"$f":"+Katılım!AK12","v":0},{"$f":"+Katılım!AL12","v":0},{"$f":"+Katılım!AM12","v":0},{"$f":"+Katılım!AN12","v":0},{"$f":"+Katılım!#REF!","v":{"$error":"#REF!"}},null,null,null,null,null,null,null,null,null,null,null,null,null,66]
[7,65,17,48,43,{"$f":"VLOOKUP(E13,Katılım!$A$4:$Z$301,26,0)","v":"MEHMET ERDEM DEMİRTAŞ (MĞL)"},{"$f":"+Katılım!AJ13","v":0},{"$f":"+Katılım!AK13","v":0},{"$f":"+Katılım!AL13","v":0},{"$f":"+Katılım!AM13","v":0},{"$f":"+Katılım!AN13","v":0},{"$f":"+Katılım!#REF!","v":{"$error":"#REF!"}},null,null,null,null,null,null,null,null,null,3,0,null,null,null,{"$f":"IF(AND(V13=0,W13=0),\"\",IF(V13>W13,T11,T14))","v":"EYMEN BAŞAR (İST)"},null,null,null,null,null,null,{"$f":"IF(AND(V13=0,W13=0),\"\",IF(V13>W13,T11,T14))","v":"EYMEN BAŞAR (İST)"}]
[null,null,null,null,null,null,null,3,2,null,null,4,{"$f":"IF(AND(H14=0,I14=0),\"\",IF(H14>I14,F13,F15))","v":"MEHMET ERDEM DEMİRTAŞ (MĞL)"},null,null,null,null,null,null,{"$f":"IF(AND(H14=0,I14=0),\"\",IF(H14>I14,F13,F15))","v":"MEHMET ERDEM DEMİRTAŞ (MĞL)"}]
[8,17,0,0,32,{"$f":"VLOOKUP(E15,Katılım!$A$4:$Z$301,26,0)","v":"ALİ UTKU YAŞAR (ANT)"},{"$f":"+Katılım!AJ15","v":0},{"$f":"+Katılım!AK15","v":0},{"$f":"+Katılım!AL15","v":0},{"$f":"+Katılım!AM15","v":0},{"$f":"+Katılım!AN15","v":0},{"$f":"+Katılım!#REF!","v":{"$error":"#REF!"}}]
[9,17,0,0,17,{"$f":"VLOOKUP(E16,Katılım!$A$4:$Z$301,26,0)","v":"BORA ÇELİK (KNY)"},{"$f":"+Katılım!AJ16","v":0},{"$f":"+Katılım!AK16","v":0},{"$f":"+Katılım!AL16","v":0},{"$f":"+Katılım!AM16","v":0},{"$f":"+Katılım!AN16","v":0},{"$f":"+Katılım!#REF!","v":{"$error":"#REF!"}}]
[null,null,null,null,null,null,null,3,0,null,null,5,{"$f":"IF(AND(H17=0,I17=0),\"\",IF(H17>I17,F16,F18))","v":"BORA ÇELİK (KNY)"},null,null,null,null,null,null,{"$f":"IF(AND(H17=0,I17=0),\"\",IF(H17>I17,F16,F18))","v":"BORA ÇELİK (KNY)"}]
[10,65,25,40,44,{"$f":"VLOOKUP(E18,Katılım!$A$4:$Z$301,26,0)","v":"EYMEN KARA (AMS)"},{"$f":"+Katılım!AJ18","v":0},{"$f":"+Katılım!AK18","v":0},{"$f":"+Katılım!AL18","v":0},{"$f":"+Katılım!AM18","v":0},{"$f":"+Katılım!AN18","v":0},{"$f":"+Katılım!#REF!","v":{"$error":"#REF!"}},null,null,null,null,null,null,null,null,null,null,null,null,null,67,null,null,null,null,null,null,null,{"$f":"IF(AND(V19=0,W19=0),\"\",IF(V19>W19,T17,T20))","v":"AHMET ÇELİK (GZT)"}]
[11,65,57,8,45,{"$f":"VLOOKUP(E19,Katılım!$A$4:$Z$301,26,0)","v":"KEREM UZUN (GRS)"},{"$f":"+Katılım!AJ19","v":0},{"$f":"+Katılım!AK19","v":0},{"$f":"+Katılım!AL19","v":0},{"$f":"+Katılım!AM19","v":0},{"$f":"+Katılım!AN19","v":0},{"$f":"+Katılım!#REF!","v":{"$error":"#REF!"}},null,null,null,null,null,null,null,null,null,1,3,null,null,null,{"$f":"IF(AND(V19=0,W19=0),\"\",IF(V19>W19,T17,T20))","v":"AHMET ÇELİK (GZT)"},null,null,null,null,null,null,null,null,null,null,null,null,98]
[null,null,null,null,null,null,null,0,3,null,null,6,{"$f":"IF(AND(H20=0,I20=0),\"\",IF(H20>I20,F19,F21))","v":"AHMET ÇELİK (GZT)"},null,null,null,null,null,null,{"$f":"IF(AND(H20=0,I20=0),\"\",IF(H20>I20,F19,F21))","v":"AHMET ÇELİK (GZT)"}]
[12,33,0,0,33,{"$f":"VLOOKUP(E21,Katılım!$A$4:$Z$301,26,0)","v":"AHMET ÇELİK (GZT)"},{"$f":"+Katılım!AJ21","v":0},{"$f":"+Katılım!AK21","v":0},{"$f":"+Katılım!AL21","v":0},{"$f":"+Katılım!AM21","v":0},{"$f":"+Katılım!AN21","v":0},{"$f":"+Katılım!#REF!","v":{"$error":"#REF!"}}]
[13,33,0,0,46,{"$f":"VLOOKUP(E22,Katılım!$A$4:$Z$301,26,0)","v":"SALİH ARDA BAHTİYAR (ORD)"},{"$f":"+Katılım!AJ22","v":0},{"$f":"+Katılım!AK22","v":0},{"$f":"+Katılım!AL22","v":0},{"$f":"+Katılım!AM22","v":0},{"$f":"+Katılım!AN22","v":0},{"$f":"+Katılım!#REF!","v":{"$error":"#REF!"}},null,null,null,null,null,null,null,null,null,null,null,null,null,null,null,null,null,null,null,null,null,null,null,0,0,null,null,null,{"$f":"IF(AND(AJ22=0,AK22=0),\"\",IF(AJ22>AK22,AH18,AH25))","v":""}]
[null,null,null,null,null,null,null,0,3,null,null,7,{"$f":"IF(AND(H23=0,I23=0),\"\",IF(H23>I23,F22,F24))","v":"EGE GÜLTEKİN (YLV)"},null,null,null,null,null,null,{"$f":"IF(AND(H23=0,I23=0),\"\",IF(H23>I23,F22,F24))","v":"EGE GÜLTEKİN (YLV)"}]
[14,65,41,24,47,{"$f":"VLOOKUP(E24,Katılım!$A$4:$Z$301,26,0)","v":"EGE GÜLTEKİN (YLV)"},{"$f":"+Katılım!AJ24","v":0},{"$f":"+Katılım!AK24","v":0},{"$f":"+Katılım!AL24","v":0},{"$f":"+Katılım!AM24","v":0},{"$f":"+Katılım!AN24","v":0},{"$f":"+Katılım!#REF!","v":{"$error":"#REF!"}},null,null,null,null,null,null,null,null,null,null,null,null,null,68]
[15,65,9,56,48,{"$f":"VLOOKUP(E25,Katılım!$A$4:$Z$301,26,0)","v":"MEHMET EREN HANÇER (KMŞ)"},{"$f":"+Katılım!AJ25","v":0},{"$f":"+Katılım!AK25","v":0},{"$f":"+Katılım!AL25","v":0},{"$f":"+Katılım!AM25","v":0},{"$f":"+Katılım!AN25","v":0},{"$f":"+Katılım!#REF!","v":{"$error":"#REF!"}},null,null,null,null,null,null,null,null,null,0,3,null,null,null,{"$f":"IF(AND(V25=0,W25=0),\"\",IF(V25>W25,T23,T26))","v":"ARAS AYDIN (İST)"},null,null,null,null,null,null,{"$f":"IF(AND(V25=0,W25=0),\"\",IF(V25>W25,T23,T26))","v":"ARAS AYDIN (İST)"}]
[null,null,null,null,null,null,null,0,3,null,null,8,{"$f":"IF(AND(H26=0,I26=0),\"\",IF(H26>I26,F25,F27))","v":"ARAS AYDIN (İST)"},null,null,null,null,null,null,{"$f":"IF(AND(H26=0,I26=0),\"\",IF(H26>I26,F25,F27))","v":"ARAS AYDIN (İST)"}]
[16,9,0,0,16,{"$f":"VLOOKUP(E27,Katılım!$A$4:$Z$301,26,0)","v":"ARAS AYDIN (İST)"},{"$f":"+Katılım!AJ27","v":0},{"$f":"+Katılım!AK27","v":0},{"$f":"+Katılım!AL27","v":0},{"$f":"+Katılım!AM27","v":0},{"$f":"+Katılım!AN27","v":0},{"$f":"+Katılım!#REF!","v":{"$error":"#REF!"}}]
[17,9,0,0,9,{"$f":"VLOOKUP(E28,Katılım!$A$4:$Z$301,26,0)","v":"SALİH EREN YILDIRIM (ISP)"},{"$f":"+Katılım!AJ28","v":0},{"$f":"+Katılım!AK28","v":0},{"$f":"+Katılım!AL28","v":0},{"$f":"+Katılım!AM28","v":0},{"$f":"+Katılım!AN28","v":0},{"$f":"+Katılım!#REF!","v":{"$error":"#REF!"}}]
[null,null,null,null,null,null,null,3,0,null,null,9,{"$f":"IF(AND(H29=0,I29=0),\"\",IF(H29>I29,F28,F30))","v":"SALİH EREN YILDIRIM (ISP)"},null,null,null,null,null,null,{"$f":"IF(AND(H29=0,I29=0),\"\",IF(H29>I29,F28,F30))","v":"SALİH EREN YILDIRIM (ISP)"}]
[18,65,13,52,49,{"$f":"VLOOKUP(E30,Katılım!$A$4:$Z$301,26,0)","v":"FURKAN SÖNMEZAY (BRS)"},{"$f":"+Katılım!AJ30","v":0},{"$f":"+Katılım!AK30","v":0},{"$f":"+Katılım!AL30","v":0},{"$f":"+Katılım!AM30","v":0},{"$f":"+Katılım!AN30","v":0},{"$f":"+Katılım!#REF!","v":{"$error":"#REF!"}},null,null,null,null,null,null,null,null,null,null,null,null,null,69,null,null,null,null,null,null,null,{"$f":"IF(AND(V31=0,W31=0),\"\",IF(V31>W31,T29,T32))","v":"SALİH EREN YILDIRIM (ISP)"}]
[19,65,45,20,50,{"$f":"VLOOKUP(E31,Katılım!$A$4:$Z$301,26,0)","v":"CEYHUN BOLAT (SMS)"},{"$f":"+Katılım!AJ31","v":0},{"$f":"+Katılım!AK31","v":0},{"$f":"+Katılım!AL31","v":0},{"$f":"+Katılım!AM31","v":0},{"$f":"+Katılım!AN31","v":0},{"$f":"+Katılım!#REF!","v":{"$error":"#REF!"}},null,null,null,null,null,null,null,null,null,3,0,null,null,null,{"$f":"IF(AND(V31=0,W31=0),\"\",IF(V31>W31,T29,T32))","v":"SALİH EREN YILDIRIM (ISP)"},null,null,null,null,null,null,null,null,null,null,null,null,99]
[null,null,null,null,null,null,null,1,3,null,null,10,{"$f":"IF(AND(H32=0,I32=0),\"\",IF(H32>I32,F31,F33))","v":"ERDEM EREN (ESK)"},null,null,null,null,null,null,{"$f":"IF(AND(H32=0,I32=0),\"\",IF(H32>I32,F31,F33))","v":"ERDEM EREN (ESK)"}]
[20,33,0,0,51,{"$f":"VLOOKUP(E33,Katılım!$A$4:$Z$301,26,0)","v":"ERDEM EREN (ESK)"},{"$f":"+Katılım!AJ33","v":0},{"$f":"+Katılım!AK33","v":0},{"$f":"+Katılım!AL33","v":0},{"$f":"+Katılım!AM33","v":0},{"$f":"+Katılım!AN33","v":0},{"$f":"+Katılım!#REF!","v":{"$error":"#REF!"}}]
[21,33,0,0,40,{"$f":"VLOOKUP(E34,Katılım!$A$4:$Z$301,26,0)","v":"MUHAMMED EMİN KABADAYI (BRS)"},{"$f":"+Katılım!AJ34","v":0},{"$f":"+Katılım!AK34","v":0},{"$f":"+Katılım!AL34","v":0},{"$f":"+Katılım!AM34","v":0},{"$f":"+Katılım!AN34","v":0},{"$f":"+Katılım!#REF!","v":{"$error":"#REF!"}},null,null,null,null,null,null,null,null,null,null,null,null,null,null,null,null,null,null,null,null,null,null,null,0,0,null,null,null,{"$f":"IF(AND(AJ34=0,AK34=0),\"\",IF(AJ34>AK34,AH30,AH37))","v":""}]
[null,null,null,null,null,null,null,3,0,null,null,11,{"$f":"IF(AND(H35=0,I35=0),\"\",IF(H35>I35,F34,F36))","v":"MUHAMMED EMİN KABADAYI (BRS)"},null,null,null,null,null,null,{"$f":"IF(AND(H35=0,I35=0),\"\",IF(H35>I35,F34,F36))","v":"MUHAMMED EMİN KABADAYI (BRS)"}]
[22,65,61,4,52,{"$f":"VLOOKUP(E36,Katılım!$A$4:$Z$301,26,0)","v":"KAAN SÜLÜN (KRL)"},{"$f":"+Katılım!AJ36","v":0},{"$f":"+Katılım!AK36","v":0},{"$f":"+Katılım!AL36","v":0},{"$f":"+Katılım!AM36","v":0},{"$f":"+Katılım!AN36","v":0},{"$f":"+Katılım!#REF!","v":{"$error":"#REF!"}},null,null,null,null,null,null,null,null,null,null,null,null,null,70]
[23,65,29,36,53,{"$f":"VLOOKUP(E37,Katılım!$A$4:$Z$301,26,0)","v":"AHMET YASİN KORKMAZ (GZT)"},{"$f":"+Katılım!AJ37","v":0},{"$f":"+Katılım!AK37","v":0},{"$f":"+Katılım!AL37","v":0},{"$f":"+Katılım!AM37","v":0},{"$f":"+Katılım!AN37","v":0},{"$f":"+Katılım!#REF!","v":{"$error":"#REF!"}},null,null,null,null,null,null,null,null,null,0,3,null,null,null,{"$f":"IF(AND(V37=0,W37=0),\"\",IF(V37>W37,T35,T38))","v":"TAHA KAAN DUMAN (BTM)"},null,null,null,null,null,null,{"$f":"IF(AND(V37=0,W37=0),\"\",IF(V37>W37,T35,T38))","v":"TAHA KAAN DUMAN (BTM)"}]
[null,null,null,null,null,null,null,2,3,null,null,12,{"$f":"IF(AND(H38=0,I38=0),\"\",IF(H38>I38,F37,F39))","v":"TAHA KAAN DUMAN (BTM)"},null,null,null,null,null,null,{"$f":"IF(AND(H38=0,I38=0),\"\",IF(H38>I38,F37,F39))","v":"TAHA KAAN DUMAN (BTM)"}]
[24,17,0,0,24,{"$f":"VLOOKUP(E39,Katılım!$A$4:$Z$301,26,0)","v":"TAHA KAAN DUMAN (BTM)"},{"$f":"+Katılım!AJ39","v":0},{"$f":"+Katılım!AK39","v":0},{"$f":"+Katılım!AL39","v":0},{"$f":"+Katılım!AM39","v":0},{"$f":"+Katılım!AN39","v":0},{"$f":"+Katılım!#REF!","v":{"$error":"#REF!"}}]
[25,17,0,0,25,{"$f":"VLOOKUP(E40,Katılım!$A$4:$Z$301,26,0)","v":"AHMET YİĞİT GÜLENLER (GZT)"},{"$f":"+Katılım!AJ40","v":0},{"$f":"+Katılım!AK40","v":0},{"$f":"+Katılım!AL40","v":0},{"$f":"+Katılım!AM40","v":0},{"$f":"+Katılım!AN40","v":0},{"$f":"+Katılım!#REF!","v":{"$error":"#REF!"}}]
[null,null,null,null,null,null,null,3,0,null,null,13,{"$f":"IF(AND(H41=0,I41=0),\"\",IF(H41>I41,F40,F42))","v":"AHMET YİĞİT GÜLENLER (GZT)"},null,null,null,null,null,null,{"$f":"IF(AND(H41=0,I41=0),\"\",IF(H41>I41,F40,F42))","v":"AHMET YİĞİT GÜLENLER (GZT)"}]
[26,65,21,44,54,{"$f":"VLOOKUP(E42,Katılım!$A$4:$Z$301,26,0)","v":"KEREM ÇINAR ORMAN (KRL)"},{"$f":"+Katılım!AJ42","v":0},{"$f":"+Katılım!AK42","v":0},{"$f":"+Katılım!AL42","v":0},{"$f":"+Katılım!AM42","v":0},{"$f":"+Katılım!AN42","v":0},{"$f":"+Katılım!#REF!","v":{"$error":"#REF!"}},null,null,null,null,null,null,null,null,null,null,null,null,null,71,null,null,null,null,null,null,null,{"$f":"IF(AND(V43=0,W43=0),\"\",IF(V43>W43,T41,T44))","v":"AHMET YİĞİT GÜLENLER (GZT)"}]
[27,65,53,12,55,{"$f":"VLOOKUP(E43,Katılım!$A$4:$Z$301,26,0)","v":"SERKAN ÖNCÜ (ESK)"},{"$f":"+Katılım!AJ43","v":0},{"$f":"+Katılım!AK43","v":0},{"$f":"+Katılım!AL43","v":0},{"$f":"+Katılım!AM43","v":0},{"$f":"+Katılım!AN43","v":0},{"$f":"+Katılım!#REF!","v":{"$error":"#REF!"}},null,null,null,null,null,null,null,null,null,3,0,null,null,null,{"$f":"IF(AND(V43=0,W43=0),\"\",IF(V43>W43,T41,T44))","v":"AHMET YİĞİT GÜLENLER (GZT)"},null,null,null,null,null,null,null,null,null,null,null,null,100]
[null,null,null,null,null,null,null,3,1,null,null,14,{"$f":"IF(AND(H44=0,I44=0),\"\",IF(H44>I44,F43,F45))","v":"SERKAN ÖNCÜ (ESK)"},null,null,null,null,null,null,{"$f":"IF(AND(H44=0,I44=0),\"\",IF(H44>I44,F43,F45))","v":"SERKAN ÖNCÜ (ESK)"}]
[28,33,0,0,56,{"$f":"VLOOKUP(E45,Katılım!$A$4:$Z$301,26,0)","v":"YUSUF BORA ATAK (ANK)"},{"$f":"+Katılım!AJ45","v":0},{"$f":"+Katılım!AK45","v":0},{"$f":"+Katılım!AL45","v":0},{"$f":"+Katılım!AM45","v":0},{"$f":"+Katılım!AN45","v":0},{"$f":"+Katılım!#REF!","v":{"$error":"#REF!"}}]
[29,33,0,0,999,{"$f":"VLOOKUP(E46,Katılım!$A$4:$Z$301,26,0)","v":{"$error":"#N/A"}},{"$f":"+Katılım!AJ46","v":0},{"$f":"+Katılım!AK46","v":0},{"$f":"+Katılım!AL46","v":0},{"$f":"+Katılım!AM46","v":0},{"$f":"+Katılım!AN46","v":0},{"$f":"+Katılım!#REF!","v":{"$error":"#REF!"}},null,null,null,null,null,null,null,null,null,null,null,null,null,null,null,null,null,null,null,null,null,null,null,0,0,null,null,null,{"$f":"IF(AND(AJ46=0,AK46=0),\"\",IF(AJ46>AK46,AH42,AH49))","v":""}]
[null,null,null,null,null,null,null,0,0,null,null,15,{"$f":"IF(AND(H47=0,I47=0),\"\",IF(H47>I47,F46,F48))","v":""},null,null,null,null,null,null,{"$f":"IF(AND(H47=0,I47=0),\"\",IF(H47>I47,F46,F48))","v":""}]
[30,65,37,28,999,{"$f":"VLOOKUP(E48,Katılım!$A$4:$Z$301,26,0)","v":{"$error":"#N/A"}},{"$f":"+Katılım!AJ48","v":0},{"$f":"+Katılım!AK48","v":0},{"$f":"+Katılım!AL48","v":0},{"$f":"+Katılım!AM48","v":0},{"$f":"+Katılım!AN48","v":0},{"$f":"+Katılım!#REF!","v":{"$error":"#REF!"}},null,null,null,null,null,null,null,null,null,null,null,null,null,72]
[31,65,5,60,999,{"$f":"VLOOKUP(E49,Katılım!$A$4:$Z$301,26,0)","v":{"$error":"#N/A"}},{"$f":"+Katılım!AJ49","v":0},{"$f":"+Katılım!AK49","v":0},{"$f":"+Katılım!AL49","v":0},{"$f":"+Katılım!AM49","v":0},{"$f":"+Katılım!AN49","v":0},{"$f":"+Katılım!#REF!","v":{"$error":"#REF!"}},null,null,null,null,null,null,null,null,null,0,3,null,null,null,{"$f":"IF(AND(V49=0,W49=0),\"\",IF(V49>W49,T47,T50))","v":"İSHAK MORBONCUK (GZT)"},null,null,null,null,null,null,{"$f":"IF(AND(V49=0,W49=0),\"\",IF(V49>W49,T47,T50))","v":"İSHAK MORBONCUK (GZT)"}]
[null,null,null,null,null,null,null,0,3,null,null,16,{"$f":"IF(AND(H50=0,I50=0),\"\",IF(H50>I50,F49,F51))","v":"İSHAK MORBONCUK (GZT)"},null,null,null,null,null,null,{"$f":"IF(AND(H50=0,I50=0),\"\",IF(H50>I50,F49,F51))","v":"İSHAK MORBONCUK (GZT)"}]
[32,5,0,0,8,{"$f":"VLOOKUP(E51,Katılım!$A$4:$Z$301,26,0)","v":"İSHAK MORBONCUK (GZT)"},{"$f":"+Katılım!AJ51","v":0},{"$f":"+Katılım!AK51","v":0},{"$f":"+Katılım!AL51","v":0},{"$f":"+Katılım!AM51","v":0},{"$f":"+Katılım!AN51","v":0},{"$f":"+Katılım!#REF!","v":{"$error":"#REF!"}}]
[33,5,0,0,5,{"$f":"VLOOKUP(E52,Katılım!$A$4:$Z$301,26,0)","v":"MEHMET EYMEN KILIÇ (KCL)"},{"$f":"+Katılım!AJ52","v":0},{"$f":"+Katılım!AK52","v":0},{"$f":"+Katılım!AL52","v":0},{"$f":"+Katılım!AM52","v":0},{"$f":"+Katılım!AN52","v":0},{"$f":"+Katılım!#REF!","v":{"$error":"#REF!"}}]
[null,null,null,null,null,null,null,3,0,null,null,17,{"$f":"IF(AND(H53=0,I53=0),\"\",IF(H53>I53,F52,F54))","v":"MEHMET EYMEN KILIÇ (KCL)"},null,null,null,null,null,null,{"$f":"IF(AND(H53=0,I53=0),\"\",IF(H53>I53,F52,F54))","v":"MEHMET EYMEN KILIÇ (KCL)"}]
[34,65,7,58,999,{"$f":"VLOOKUP(E54,Katılım!$A$4:$Z$301,26,0)","v":{"$error":"#N/A"}},{"$f":"+Katılım!AJ54","v":0},{"$f":"+Katılım!AK54","v":0},{"$f":"+Katılım!AL54","v":0},{"$f":"+Katılım!AM54","v":0},{"$f":"+Katılım!AN54","v":0},{"$f":"+Katılım!#REF!","v":{"$error":"#REF!"}},null,null,null,null,null,null,null,null,null,null,null,null,null,73,null,null,null,null,null,null,null,{"$f":"IF(AND(V55=0,W55=0),\"\",IF(V55>W55,T53,T56))","v":"MEHMET EYMEN KILIÇ (KCL)"}]
[35,65,39,26,999,{"$f":"VLOOKUP(E55,Katılım!$A$4:$Z$301,26,0)","v":{"$error":"#N/A"}},{"$f":"+Katılım!AJ55","v":0},{"$f":"+Katılım!AK55","v":0},{"$f":"+Katılım!AL55","v":0},{"$f":"+Katılım!AM55","v":0},{"$f":"+Katılım!AN55","v":0},{"$f":"+Katılım!#REF!","v":{"$error":"#REF!"}},null,null,null,null,null,null,null,null,null,3,0,null,null,null,{"$f":"IF(AND(V55=0,W55=0),\"\",IF(V55>W55,T53,T56))","v":"MEHMET EYMEN KILIÇ (KCL)"},null,null,null,null,null,null,null,null,null,null,null,null,101]
[null,null,null,null,null,null,null,0,0,null,null,18,{"$f":"IF(AND(H56=0,I56=0),\"\",IF(H56>I56,F55,F57))","v":""},null,null,null,null,null,null,{"$f":"IF(AND(H56=0,I56=0),\"\",IF(H56>I56,F55,F57))","v":""}]
[36,33,0,0,999,{"$f":"VLOOKUP(E57,Katılım!$A$4:$Z$301,26,0)","v":{"$error":"#N/A"}},{"$f":"+Katılım!AJ57","v":0},{"$f":"+Katılım!AK57","v":0},{"$f":"+Katılım!AL57","v":0},{"$f":"+Katılım!AM57","v":0},{"$f":"+Katılım!AN57","v":0},{"$f":"+Katılım!#REF!","v":{"$error":"#REF!"}}]
[37,33,0,0,57,{"$f":"VLOOKUP(E58,Katılım!$A$4:$Z$301,26,0)","v":"EKİN AĞBABA (ANK)"},{"$f":"+Katılım!AJ58","v":0},{"$f":"+Katılım!AK58","v":0},{"$f":"+Katılım!AL58","v":0},{"$f":"+Katılım!AM58","v":0},{"$f":"+Katılım!AN58","v":0},{"$f":"+Katılım!#REF!","v":{"$error":"#REF!"}},null,null,null,null,null,null,null,null,null,null,null,null,null,null,null,null,null,null,null,null,null,null,null,0,0,null,null,null,{"$f":"IF(AND(AJ58=0,AK58=0),\"\",IF(AJ58>AK58,AH54,AH61))","v":""}]
[null,null,null,null,null,null,null,3,0,null,null,19,{"$f":"IF(AND(H59=0,I59=0),\"\",IF(H59>I59,F58,F60))","v":"EKİN AĞBABA (ANK)"},null,null,null,null,null,null,{"$f":"IF(AND(H59=0,I59=0),\"\",IF(H59>I59,F58,F60))","v":"EKİN AĞBABA (ANK)"}]
[38,65,55,10,58,{"$f":"VLOOKUP(E60,Katılım!$A$4:$Z$301,26,0)","v":"BERAT AYDIN (KCL)"},{"$f":"+Katılım!AJ60","v":0},{"$f":"+Katılım!AK60","v":0},{"$f":"+Katılım!AL60","v":0},{"$f":"+Katılım!AM60","v":0},{"$f":"+Katılım!AN60","v":0},{"$f":"+Katılım!#REF!","v":{"$error":"#REF!"}},null,null,null,null,null,null,null,null,null,null,null,null,null,74]
[39,65,23,42,59,{"$f":"VLOOKUP(E61,Katılım!$A$4:$Z$301,26,0)","v":"YUSUF EYMEN SARIER (VAN)"},{"$f":"+Katılım!AJ61","v":0},{"$f":"+Katılım!AK61","v":0},{"$f":"+Katılım!AL61","v":0},{"$f":"+Katılım!AM61","v":0},{"$f":"+Katılım!AN61","v":0},{"$f":"+Katılım!#REF!","v":{"$error":"#REF!"}},null,null,null,null,null,null,null,null,null,1,3,null,null,null,{"$f":"IF(AND(V61=0,W61=0),\"\",IF(V61>W61,T59,T62))","v":"ORÇUN ÇELİK (SVS)"},null,null,null,null,null,null,{"$f":"IF(AND(V61=0,W61=0),\"\",IF(V61>W61,T59,T62))","v":"ORÇUN ÇELİK (SVS)"}]
[null,null,null,null,null,null,null,0,3,null,null,20,{"$f":"IF(AND(H62=0,I62=0),\"\",IF(H62>I62,F61,F63))","v":"ORÇUN ÇELİK (SVS)"},null,null,null,null,null,null,{"$f":"IF(AND(H62=0,I62=0),\"\",IF(H62>I62,F61,F63))","v":"ORÇUN ÇELİK (SVS)"}]
[40,17,0,0,28,{"$f":"VLOOKUP(E63,Katılım!$A$4:$Z$301,26,0)","v":"ORÇUN ÇELİK (SVS)"},{"$f":"+Katılım!AJ63","v":0},{"$f":"+Katılım!AK63","v":0},{"$f":"+Katılım!AL63","v":0},{"$f":"+Katılım!AM63","v":0},{"$f":"+Katılım!AN63","v":0},{"$f":"+Katılım!#REF!","v":{"$error":"#REF!"}}]
[41,17,0,0,21,{"$f":"VLOOKUP(E64,Katılım!$A$4:$Z$301,26,0)","v":"OZAN ERDEN (BTM)"},{"$f":"+Katılım!AJ64","v":0},{"$f":"+Katılım!AK64","v":0},{"$f":"+Katılım!AL64","v":0},{"$f":"+Katılım!AM64","v":0},{"$f":"+Katılım!AN64","v":0},{"$f":"+Katılım!#REF!","v":{"$error":"#REF!"}}]
[null,null,null,null,null,null,null,3,0,null,null,21,{"$f":"IF(AND(H65=0,I65=0),\"\",IF(H65>I65,F64,F66))","v":"OZAN ERDEN (BTM)"},null,null,null,null,null,null,{"$f":"IF(AND(H65=0,I65=0),\"\",IF(H65>I65,F64,F66))","v":"OZAN ERDEN (BTM)"}]
[42,65,31,34,60,{"$f":"VLOOKUP(E66,Katılım!$A$4:$Z$301,26,0)","v":"ATAY TUNA GENEL (ÇRM)"},{"$f":"+Katılım!AJ66","v":0},{"$f":"+Katılım!AK66","v":0},{"$f":"+Katılım!AL66","v":0},{"$f":"+Katılım!AM66","v":0},{"$f":"+Katılım!AN66","v":0},{"$f":"+Katılım!#REF!","v":{"$error":"#REF!"}},null,null,null,null,null,null,null,null,null,null,null,null,null,75,null,null,null,null,null,null,null,{"$f":"IF(AND(V67=0,W67=0),\"\",IF(V67>W67,T65,T68))","v":"EMİR YALÇIN PEHLİVAN (KRL)"}]
[43,65,63,2,61,{"$f":"VLOOKUP(E67,Katılım!$A$4:$Z$301,26,0)","v":"YAĞIZ EMRE ÇELİK (MLT)"},{"$f":"+Katılım!AJ67","v":0},{"$f":"+Katılım!AK67","v":0},{"$f":"+Katılım!AL67","v":0},{"$f":"+Katılım!AM67","v":0},{"$f":"+Katılım!AN67","v":0},{"$f":"+Katılım!#REF!","v":{"$error":"#REF!"}},null,null,null,null,null,null,null,null,null,0,3,null,null,null,{"$f":"IF(AND(V67=0,W67=0),\"\",IF(V67>W67,T65,T68))","v":"EMİR YALÇIN PEHLİVAN (KRL)"},null,null,null,null,null,null,null,null,null,null,null,null,102]
[null,null,null,null,null,null,null,2,3,null,null,22,{"$f":"IF(AND(H68=0,I68=0),\"\",IF(H68>I68,F67,F69))","v":"EMİR YALÇIN PEHLİVAN (KRL)"},null,null,null,null,null,null,{"$f":"IF(AND(H68=0,I68=0),\"\",IF(H68>I68,F67,F69))","v":"EMİR YALÇIN PEHLİVAN (KRL)"}]
[44,33,0,0,37,{"$f":"VLOOKUP(E69,Katılım!$A$4:$Z$301,26,0)","v":"EMİR YALÇIN PEHLİVAN (KRL)"},{"$f":"+Katılım!AJ69","v":0},{"$f":"+Katılım!AK69","v":0},{"$f":"+Katılım!AL69","v":0},{"$f":"+Katılım!AM69","v":0},{"$f":"+Katılım!AN69","v":0},{"$f":"+Katılım!#REF!","v":{"$error":"#REF!"}}]
[45,33,0,0,62,{"$f":"VLOOKUP(E70,Katılım!$A$4:$Z$301,26,0)","v":"CEMAL EYMEN BAYRAM (MLT)"},{"$f":"+Katılım!AJ70","v":0},{"$f":"+Katılım!AK70","v":0},{"$f":"+Katılım!AL70","v":0},{"$f":"+Katılım!AM70","v":0},{"$f":"+Katılım!AN70","v":0},{"$f":"+Katılım!#REF!","v":{"$error":"#REF!"}},null,null,null,null,null,null,null,null,null,null,null,null,null,null,null,null,null,null,null,null,null,null,null,0,0,null,null,null,{"$f":"IF(AND(AJ70=0,AK70=0),\"\",IF(AJ70>AK70,AH66,AH73))","v":""}]
[null,null,null,null,null,null,null,0,3,null,null,23,{"$f":"IF(AND(H71=0,I71=0),\"\",IF(H71>I71,F70,F72))","v":"FERHAT OZAN AĞASLAN (GZT)"},null,null,null,null,null,null,{"$f":"IF(AND(H71=0,I71=0),\"\",IF(H71>I71,F70,F72))","v":"FERHAT OZAN AĞASLAN (GZT)"}]
[46,65,47,18,63,{"$f":"VLOOKUP(E72,Katılım!$A$4:$Z$301,26,0)","v":"FERHAT OZAN AĞASLAN (GZT)"},{"$f":"+Katılım!AJ72","v":0},{"$f":"+Katılım!AK72","v":0},{"$f":"+Katılım!AL72","v":0},{"$f":"+Katılım!AM72","v":0},{"$f":"+Katılım!AN72","v":0},{"$f":"+Katılım!#REF!","v":{"$error":"#REF!"}},null,null,null,null,null,null,null,null,null,null,null,null,null,76]
[47,65,15,50,64,{"$f":"VLOOKUP(E73,Katılım!$A$4:$Z$301,26,0)","v":"KAYA ARSLAN (İST)"},{"$f":"+Katılım!AJ73","v":0},{"$f":"+Katılım!AK73","v":0},{"$f":"+Katılım!AL73","v":0},{"$f":"+Katılım!AM73","v":0},{"$f":"+Katılım!AN73","v":0},{"$f":"+Katılım!#REF!","v":{"$error":"#REF!"}},null,null,null,null,null,null,null,null,null,0,3,null,null,null,{"$f":"IF(AND(V73=0,W73=0),\"\",IF(V73>W73,T71,T74))","v":"BATIN GÜLER (YLV)"},null,null,null,null,null,null,{"$f":"IF(AND(V73=0,W73=0),\"\",IF(V73>W73,T71,T74))","v":"BATIN GÜLER (YLV)"}]
[null,null,null,null,null,null,null,1,3,null,null,24,{"$f":"IF(AND(H74=0,I74=0),\"\",IF(H74>I74,F73,F75))","v":"BATIN GÜLER (YLV)"},null,null,null,null,null,null,{"$f":"IF(AND(H74=0,I74=0),\"\",IF(H74>I74,F73,F75))","v":"BATIN GÜLER (YLV)"}]
[48,9,0,0,12,{"$f":"VLOOKUP(E75,Katılım!$A$4:$Z$301,26,0)","v":"BATIN GÜLER (YLV)"},{"$f":"+Katılım!AJ75","v":0},{"$f":"+Katılım!AK75","v":0},{"$f":"+Katılım!AL75","v":0},{"$f":"+Katılım!AM75","v":0},{"$f":"+Katılım!AN75","v":0},{"$f":"+Katılım!#REF!","v":{"$error":"#REF!"}}]
[49,9,0,0,13,{"$f":"VLOOKUP(E76,Katılım!$A$4:$Z$301,26,0)","v":"KAAN BEYZAT TUNA (YLV)"},{"$f":"+Katılım!AJ76","v":0},{"$f":"+Katılım!AK76","v":0},{"$f":"+Katılım!AL76","v":0},{"$f":"+Katılım!AM76","v":0},{"$f":"+Katılım!AN76","v":0},{"$f":"+Katılım!#REF!","v":{"$error":"#REF!"}}]
[null,null,null,null,null,null,null,3,0,null,null,25,{"$f":"IF(AND(H77=0,I77=0),\"\",IF(H77>I77,F76,F78))","v":"KAAN BEYZAT TUNA (YLV)"},null,null,null,null,null,null,{"$f":"IF(AND(H77=0,I77=0),\"\",IF(H77>I77,F76,F78))","v":"KAAN BEYZAT TUNA (YLV)"}]
[50,65,11,54,65,{"$f":"VLOOKUP(E78,Katılım!$A$4:$Z$301,26,0)","v":"ALTAY TAN (İZM)"},{"$f":"+Katılım!AJ78","v":0},{"$f":"+Katılım!AK78","v":0},{"$f":"+Katılım!AL78","v":0},{"$f":"+Katılım!AM78","v":0},{"$f":"+Katılım!AN78","v":0},{"$f":"+Katılım!#REF!","v":{"$error":"#REF!"}},null,null,null,null,null,null,null,null,null,null,null,null,null,77,null,null,null,null,null,null,null,{"$f":"IF(AND(V79=0,W79=0),\"\",IF(V79>W79,T77,T80))","v":"KAAN BEYZAT TUNA (YLV)"}]
[51,65,43,22,66,{"$f":"VLOOKUP(E79,Katılım!$A$4:$Z$301,26,0)","v":"ÖNDER BOZKIR (IĞD)"},{"$f":"+Katılım!AJ79","v":0},{"$f":"+Katılım!AK79","v":0},{"$f":"+Katılım!AL79","v":0},{"$f":"+Katılım!AM79","v":0},{"$f":"+Katılım!AN79","v":0},{"$f":"+Katılım!#REF!","v":{"$error":"#REF!"}},null,null,null,null,null,null,null,null,null,3,1,null,null,null,{"$f":"IF(AND(V79=0,W79=0),\"\",IF(V79>W79,T77,T80))","v":"KAAN BEYZAT TUNA (YLV)"},null,null,null,null,null,null,null,null,null,null,null,null,103]
[null,null,null,null,null,null,null,0,3,null,null,26,{"$f":"IF(AND(H80=0,I80=0),\"\",IF(H80>I80,F79,F81))","v":"YİĞİT KIRMIZIGÜL (TKD)"},null,null,null,null,null,null,{"$f":"IF(AND(H80=0,I80=0),\"\",IF(H80>I80,F79,F81))","v":"YİĞİT KIRMIZIGÜL (TKD)"}]
[52,33,0,0,67,{"$f":"VLOOKUP(E81,Katılım!$A$4:$Z$301,26,0)","v":"YİĞİT KIRMIZIGÜL (TKD)"},{"$f":"+Katılım!AJ81","v":0},{"$f":"+Katılım!AK81","v":0},{"$f":"+Katılım!AL81","v":0},{"$f":"+Katılım!AM81","v":0},{"$f":"+Katılım!AN81","v":0},{"$f":"+Katılım!#REF!","v":{"$error":"#REF!"}}]
[53,33,0,0,36,{"$f":"VLOOKUP(E82,Katılım!$A$4:$Z$301,26,0)","v":"YİĞİT HÜSEYİN SUBAŞI (ÇRM)"},{"$f":"+Katılım!AJ82","v":0},{"$f":"+Katılım!AK82","v":0},{"$f":"+Katılım!AL82","v":0},{"$f":"+Katılım!AM82","v":0},{"$f":"+Katılım!AN82","v":0},{"$f":"+Katılım!#REF!","v":{"$error":"#REF!"}},null,null,null,null,null,null,null,null,null,null,null,null,null,null,null,null,null,null,null,null,null,null,null,0,0,null,null,null,{"$f":"IF(AND(AJ82=0,AK82=0),\"\",IF(AJ82>AK82,AH78,AH85))","v":""}]
[null,null,null,null,null,null,null,3,0,null,null,27,{"$f":"IF(AND(H83=0,I83=0),\"\",IF(H83>I83,F82,F84))","v":"YİĞİT HÜSEYİN SUBAŞI (ÇRM)"},null,null,null,null,null,null,{"$f":"IF(AND(H83=0,I83=0),\"\",IF(H83>I83,F82,F84))","v":"YİĞİT HÜSEYİN SUBAŞI (ÇRM)"}]
[54,65,59,6,68,{"$f":"VLOOKUP(E84,Katılım!$A$4:$Z$301,26,0)","v":"UMUTCAN GÜNDOĞDU (IĞD)"},{"$f":"+Katılım!AJ84","v":0},{"$f":"+Katılım!AK84","v":0},{"$f":"+Katılım!AL84","v":0},{"$f":"+Katılım!AM84","v":0},{"$f":"+Katılım!AN84","v":0},{"$f":"+Katılım!#REF!","v":{"$error":"#REF!"}},null,null,null,null,null,null,null,null,null,null,null,null,null,78]
[55,65,27,38,69,{"$f":"VLOOKUP(E85,Katılım!$A$4:$Z$301,26,0)","v":"MERT ÇALIŞKAN (KRL)"},{"$f":"+Katılım!AJ85","v":0},{"$f":"+Katılım!AK85","v":0},{"$f":"+Katılım!AL85","v":0},{"$f":"+Katılım!AM85","v":0},{"$f":"+Katılım!AN85","v":0},{"$f":"+Katılım!#REF!","v":{"$error":"#REF!"}},null,null,null,null,null,null,null,null,null,1,3,null,null,null,{"$f":"IF(AND(V85=0,W85=0),\"\",IF(V85>W85,T83,T86))","v":"ÖMER TALHA ASLAN (ISP)"},null,null,null,null,null,null,{"$f":"IF(AND(V85=0,W85=0),\"\",IF(V85>W85,T83,T86))","v":"ÖMER TALHA ASLAN (ISP)"}]
[null,null,null,null,null,null,null,0,3,null,null,28,{"$f":"IF(AND(H86=0,I86=0),\"\",IF(H86>I86,F85,F87))","v":"ÖMER TALHA ASLAN (ISP)"},null,null,null,null,null,null,{"$f":"IF(AND(H86=0,I86=0),\"\",IF(H86>I86,F85,F87))","v":"ÖMER TALHA ASLAN (ISP)"}]
[56,17,0,0,20,{"$f":"VLOOKUP(E87,Katılım!$A$4:$Z$301,26,0)","v":"ÖMER TALHA ASLAN (ISP)"},{"$f":"+Katılım!AJ87","v":0},{"$f":"+Katılım!AK87","v":0},{"$f":"+Katılım!AL87","v":0},{"$f":"+Katılım!AM87","v":0},{"$f":"+Katılım!AN87","v":0},{"$f":"+Katılım!#REF!","v":{"$error":"#REF!"}}]
[57,17,0,0,29,{"$f":"VLOOKUP(E88,Katılım!$A$4:$Z$301,26,0)","v":"BERAT ÖZDEMİR (ÇRM)"},{"$f":"+Katılım!AJ88","v":0},{"$f":"+Katılım!AK88","v":0},{"$f":"+Katılım!AL88","v":0},{"$f":"+Katılım!AM88","v":0},{"$f":"+Katılım!AN88","v":0},{"$f":"+Katılım!#REF!","v":{"$error":"#REF!"}}]
[null,null,null,null,null,null,null,3,0,null,null,29,{"$f":"IF(AND(H89=0,I89=0),\"\",IF(H89>I89,F88,F90))","v":"BERAT ÖZDEMİR (ÇRM)"},null,null,null,null,null,null,{"$f":"IF(AND(H89=0,I89=0),\"\",IF(H89>I89,F88,F90))","v":"BERAT ÖZDEMİR (ÇRM)"}]
[58,65,19,46,70,{"$f":"VLOOKUP(E90,Katılım!$A$4:$Z$301,26,0)","v":"MUSTAFA ÇİÇEK (ÇNR)"},{"$f":"+Katılım!AJ90","v":0},{"$f":"+Katılım!AK90","v":0},{"$f":"+Katılım!AL90","v":0},{"$f":"+Katılım!AM90","v":0},{"$f":"+Katılım!AN90","v":0},{"$f":"+Katılım!#REF!","v":{"$error":"#REF!"}},null,null,null,null,null,null,null,null,null,null,null,null,null,79,null,null,null,null,null,null,null,{"$f":"IF(AND(V91=0,W91=0),\"\",IF(V91>W91,T89,T92))","v":"BERAT ÖZDEMİR (ÇRM)"}]
[59,65,51,14,71,{"$f":"VLOOKUP(E91,Katılım!$A$4:$Z$301,26,0)","v":"SADIK EREN UZUNÖMER (ÇNR)"},{"$f":"+Katılım!AJ91","v":0},{"$f":"+Katılım!AK91","v":0},{"$f":"+Katılım!AL91","v":0},{"$f":"+Katılım!AM91","v":0},{"$f":"+Katılım!AN91","v":0},{"$f":"+Katılım!#REF!","v":{"$error":"#REF!"}},null,null,null,null,null,null,null,null,null,3,0,null,null,null,{"$f":"IF(AND(V91=0,W91=0),\"\",IF(V91>W91,T89,T92))","v":"BERAT ÖZDEMİR (ÇRM)"},null,null,null,null,null,null,null,null,null,null,null,null,104]
[null,null,null,null,null,null,null,0,3,null,null,30,{"$f":"IF(AND(H92=0,I92=0),\"\",IF(H92>I92,F91,F93))","v":"METEHAN DEMİREL (TKD)"},null,null,null,null,null,null,{"$f":"IF(AND(H92=0,I92=0),\"\",IF(H92>I92,F91,F93))","v":"METEHAN DEMİREL (TKD)"}]
[60,33,0,0,72,{"$f":"VLOOKUP(E93,Katılım!$A$4:$Z$301,26,0)","v":"METEHAN DEMİREL (TKD)"},{"$f":"+Katılım!AJ93","v":0},{"$f":"+Katılım!AK93","v":0},{"$f":"+Katılım!AL93","v":0},{"$f":"+Katılım!AM93","v":0},{"$f":"+Katılım!AN93","v":0},{"$f":"+Katılım!#REF!","v":{"$error":"#REF!"}}]
[61,33,0,0,999,{"$f":"VLOOKUP(E94,Katılım!$A$4:$Z$301,26,0)","v":{"$error":"#N/A"}},{"$f":"+Katılım!AJ94","v":0},{"$f":"+Katılım!AK94","v":0},{"$f":"+Katılım!AL94","v":0},{"$f":"+Katılım!AM94","v":0},{"$f":"+Katılım!AN94","v":0},{"$f":"+Katılım!#REF!","v":{"$error":"#REF!"}},null,null,null,null,null,null,null,null,null,null,null,null,null,null,null,null,null,null,null,null,null,null,null,0,0,null,null,null,{"$f":"IF(AND(AJ94=0,AK94=0),\"\",IF(AJ94>AK94,AH90,AH97))","v":""}]
[null,null,null,null,null,null,null,0,0,null,null,31,{"$f":"IF(AND(H95=0,I95=0),\"\",IF(H95>I95,F94,F96))","v":""},null,null,null,null,null,null,{"$f":"IF(AND(H95=0,I95=0),\"\",IF(H95>I95,F94,F96))","v":""}]
[62,65,35,30,999,{"$f":"VLOOKUP(E96,Katılım!$A$4:$Z$301,26,0)","v":{"$error":"#N/A"}},{"$f":"+Katılım!AJ96","v":0},{"$f":"+Katılım!AK96","v":0},{"$f":"+Katılım!AL96","v":0},{"$f":"+Katılım!AM96","v":0},{"$f":"+Katılım!AN96","v":0},{"$f":"+Katılım!#REF!","v":{"$error":"#REF!"}},null,null,null,null,null,null,null,null,null,null,null,null,null,80]
[63,65,3,62,999,{"$f":"VLOOKUP(E97,Katılım!$A$4:$Z$301,26,0)","v":{"$error":"#N/A"}},{"$f":"+Katılım!AJ97","v":0},{"$f":"+Katılım!AK97","v":0},{"$f":"+Katılım!AL97","v":0},{"$f":"+Katılım!AM97","v":0},{"$f":"+Katılım!AN97","v":0},{"$f":"+Katılım!#REF!","v":{"$error":"#REF!"}},null,null,null,null,null,null,null,null,null,0,3,null,null,null,{"$f":"IF(AND(V97=0,W97=0),\"\",IF(V97>W97,T95,T98))","v":"YİĞİT CAN KAYA (İST)"},null,null,null,null,null,null,{"$f":"IF(AND(V97=0,W97=0),\"\",IF(V97>W97,T95,T98))","v":"YİĞİT CAN KAYA (İST)"}]
[null,null,null,null,null,null,null,0,3,null,null,32,{"$f":"IF(AND(H98=0,I98=0),\"\",IF(H98>I98,F97,F99))","v":"YİĞİT CAN KAYA (İST)"},null,null,null,null,null,null,{"$f":"IF(AND(H98=0,I98=0),\"\",IF(H98>I98,F97,F99))","v":"YİĞİT CAN KAYA (İST)"}]
[64,3,0,0,4,{"$f":"VLOOKUP(E99,Katılım!$A$4:$Z$301,26,0)","v":"YİĞİT CAN KAYA (İST)"},{"$f":"+Katılım!AJ99","v":0},{"$f":"+Katılım!AK99","v":0},{"$f":"+Katılım!AL99","v":0},{"$f":"+Katılım!AM99","v":0},{"$f":"+Katılım!AN99","v":0},{"$f":"+Katılım!#REF!","v":{"$error":"#REF!"}}]
[65,3,0,0,3,{"$f":"VLOOKUP(E100,Katılım!$A$4:$Z$301,26,0)","v":"KUZEY GÜNDOĞDU (KST)"},{"$f":"+Katılım!AJ100","v":0},{"$f":"+Katılım!AK100","v":0},{"$f":"+Katılım!AL100","v":0},{"$f":"+Katılım!AM100","v":0},{"$f":"+Katılım!AN100","v":0},{"$f":"+Katılım!#REF!","v":{"$error":"#REF!"}}]
[null,null,null,null,null,null,null,3,0,null,null,33,{"$f":"IF(AND(H101=0,I101=0),\"\",IF(H101>I101,F100,F102))","v":"KUZEY GÜNDOĞDU (KST)"},null,null,null,null,null,null,{"$f":"IF(AND(H101=0,I101=0),\"\",IF(H101>I101,F100,F102))","v":"KUZEY GÜNDOĞDU (KST)"},null,null,null,null,null,81]
[66,65,4,61,999,{"$f":"VLOOKUP(E102,Katılım!$A$4:$Z$301,26,0)","v":{"$error":"#N/A"}},{"$f":"+Katılım!AJ102","v":0},{"$f":"+Katılım!AK102","v":0},{"$f":"+Katılım!AL102","v":0},{"$f":"+Katılım!AM102","v":0},{"$f":"+Katılım!AN102","v":0},{"$f":"+Katılım!#REF!","v":{"$error":"#REF!"}},null,null,null,null,null,null,null,null,null,null,null,null,null,81,null,null,null,null,null,null,null,{"$f":"IF(AND(V103=0,W103=0),\"\",IF(V103>W103,T101,T104))","v":"KUZEY GÜNDOĞDU (KST)"}]
[67,65,36,29,999,{"$f":"VLOOKUP(E103,Katılım!$A$4:$Z$301,26,0)","v":{"$error":"#N/A"}},{"$f":"+Katılım!AJ103","v":0},{"$f":"+Katılım!AK103","v":0},{"$f":"+Katılım!AL103","v":0},{"$f":"+Katılım!AM103","v":0},{"$f":"+Katılım!AN103","v":0},{"$f":"+Katılım!#REF!","v":{"$error":"#REF!"}},null,null,null,null,null,null,null,null,null,3,0,null,null,null,{"$f":"IF(AND(V103=0,W103=0),\"\",IF(V103>W103,T101,T104))","v":"KUZEY GÜNDOĞDU (KST)"},null,null,null,null,null,null,null,null,null,null,null,null,105]
[null,null,null,null,null,null,null,0,0,null,null,34,{"$f":"IF(AND(H104=0,I104=0),\"\",IF(H104>I104,F103,F105))","v":""},null,null,null,null,null,null,{"$f":"IF(AND(H104=0,I104=0),\"\",IF(H104>I104,F103,F105))","v":""}]
[68,33,0,0,999,{"$f":"VLOOKUP(E105,Katılım!$A$4:$Z$301,26,0)","v":{"$error":"#N/A"}},{"$f":"+Katılım!AJ105","v":0},{"$f":"+Katılım!AK105","v":0},{"$f":"+Katılım!AL105","v":0},{"$f":"+Katılım!AM105","v":0},{"$f":"+Katılım!AN105","v":0},{"$f":"+Katılım!#REF!","v":{"$error":"#REF!"}}]
[69,33,0,0,73,{"$f":"VLOOKUP(E106,Katılım!$A$4:$Z$301,26,0)","v":"BURAK TUNCER (ESK)"},{"$f":"+Katılım!AJ106","v":0},{"$f":"+Katılım!AK106","v":0},{"$f":"+Katılım!AL106","v":0},{"$f":"+Katılım!AM106","v":0},{"$f":"+Katılım!AN106","v":0},{"$f":"+Katılım!#REF!","v":{"$error":"#REF!"}},null,null,null,null,null,null,null,null,null,null,null,null,null,null,null,null,null,null,null,null,null,null,null,0,0,null,null,null,{"$f":"IF(AND(AJ106=0,AK106=0),\"\",IF(AJ106>AK106,AH102,AH109))","v":""}]
[null,null,null,null,null,null,null,1,3,null,null,35,{"$f":"IF(AND(H107=0,I107=0),\"\",IF(H107>I107,F106,F108))","v":"DURAN BAYRAM (KYS)"},null,null,null,null,null,null,{"$f":"IF(AND(H107=0,I107=0),\"\",IF(H107>I107,F106,F108))","v":"DURAN BAYRAM (KYS)"},null,null,null,null,null,82]
[70,65,52,13,74,{"$f":"VLOOKUP(E108,Katılım!$A$4:$Z$301,26,0)","v":"DURAN BAYRAM (KYS)"},{"$f":"+Katılım!AJ108","v":0},{"$f":"+Katılım!AK108","v":0},{"$f":"+Katılım!AL108","v":0},{"$f":"+Katılım!AM108","v":0},{"$f":"+Katılım!AN108","v":0},{"$f":"+Katılım!#REF!","v":{"$error":"#REF!"}},null,null,null,null,null,null,null,null,null,null,null,null,null,82]
[71,65,20,45,75,{"$f":"VLOOKUP(E109,Katılım!$A$4:$Z$301,26,0)","v":"BURAK SEVİNÇ (ANK)"},{"$f":"+Katılım!AJ109","v":0},{"$f":"+Katılım!AK109","v":0},{"$f":"+Katılım!AL109","v":0},{"$f":"+Katılım!AM109","v":0},{"$f":"+Katılım!AN109","v":0},{"$f":"+Katılım!#REF!","v":{"$error":"#REF!"}},null,null,null,null,null,null,null,null,null,0,3,null,null,null,{"$f":"IF(AND(V109=0,W109=0),\"\",IF(V109>W109,T107,T110))","v":"ALİ AŞNAS GÜL (ÇRM)"},null,null,null,null,null,null,{"$f":"IF(AND(V109=0,W109=0),\"\",IF(V109>W109,T107,T110))","v":"ALİ AŞNAS GÜL (ÇRM)"}]
[null,null,null,null,null,null,null,2,3,null,null,36,{"$f":"IF(AND(H110=0,I110=0),\"\",IF(H110>I110,F109,F111))","v":"ALİ AŞNAS GÜL (ÇRM)"},null,null,null,null,null,null,{"$f":"IF(AND(H110=0,I110=0),\"\",IF(H110>I110,F109,F111))","v":"ALİ AŞNAS GÜL (ÇRM)"}]
[72,17,0,0,30,{"$f":"VLOOKUP(E111,Katılım!$A$4:$Z$301,26,0)","v":"ALİ AŞNAS GÜL (ÇRM)"},{"$f":"+Katılım!AJ111","v":0},{"$f":"+Katılım!AK111","v":0},{"$f":"+Katılım!AL111","v":0},{"$f":"+Katılım!AM111","v":0},{"$f":"+Katılım!AN111","v":0},{"$f":"+Katılım!#REF!","v":{"$error":"#REF!"}}]
[73,17,0,0,19,{"$f":"VLOOKUP(E112,Katılım!$A$4:$Z$301,26,0)","v":"MUHAMMED ENES YAVUZ (KYS)"},{"$f":"+Katılım!AJ112","v":0},{"$f":"+Katılım!AK112","v":0},{"$f":"+Katılım!AL112","v":0},{"$f":"+Katılım!AM112","v":0},{"$f":"+Katılım!AN112","v":0},{"$f":"+Katılım!#REF!","v":{"$error":"#REF!"}}]
[null,null,null,null,null,null,null,3,2,null,null,37,{"$f":"IF(AND(H113=0,I113=0),\"\",IF(H113>I113,F112,F114))","v":"MUHAMMED ENES YAVUZ (KYS)"},null,null,null,null,null,null,{"$f":"IF(AND(H113=0,I113=0),\"\",IF(H113>I113,F112,F114))","v":"MUHAMMED ENES YAVUZ (KYS)"},null,null,null,null,null,83]
[74,65,28,37,76,{"$f":"VLOOKUP(E114,Katılım!$A$4:$Z$301,26,0)","v":"EMİR ZİYA PEÇE (YLV)"},{"$f":"+Katılım!AJ114","v":0},{"$f":"+Katılım!AK114","v":0},{"$f":"+Katılım!AL114","v":0},{"$f":"+Katılım!AM114","v":0},{"$f":"+Katılım!AN114","v":0},{"$f":"+Katılım!#REF!","v":{"$error":"#REF!"}},null,null,null,null,null,null,null,null,null,null,null,null,null,83,null,null,null,null,null,null,null,{"$f":"IF(AND(V115=0,W115=0),\"\",IF(V115>W115,T113,T116))","v":"SELİM AZAZİ (GZT)"}]
[75,65,60,5,77,{"$f":"VLOOKUP(E115,Katılım!$A$4:$Z$301,26,0)","v":"ÜVEYS ÇINAR (VAN)"},{"$f":"+Katılım!AJ115","v":0},{"$f":"+Katılım!AK115","v":0},{"$f":"+Katılım!AL115","v":0},{"$f":"+Katılım!AM115","v":0},{"$f":"+Katılım!AN115","v":0},{"$f":"+Katılım!#REF!","v":{"$error":"#REF!"}},null,null,null,null,null,null,null,null,null,0,3,null,null,null,{"$f":"IF(AND(V115=0,W115=0),\"\",IF(V115>W115,T113,T116))","v":"SELİM AZAZİ (GZT)"},null,null,null,null,null,null,null,null,null,null,null,null,106]
[null,null,null,null,null,null,null,0,3,null,null,38,{"$f":"IF(AND(H116=0,I116=0),\"\",IF(H116>I116,F115,F117))","v":"SELİM AZAZİ (GZT)"},null,null,null,null,null,null,{"$f":"IF(AND(H116=0,I116=0),\"\",IF(H116>I116,F115,F117))","v":"SELİM AZAZİ (GZT)"}]
[76,33,0,0,35,{"$f":"VLOOKUP(E117,Katılım!$A$4:$Z$301,26,0)","v":"SELİM AZAZİ (GZT)"},{"$f":"+Katılım!AJ117","v":0},{"$f":"+Katılım!AK117","v":0},{"$f":"+Katılım!AL117","v":0},{"$f":"+Katılım!AM117","v":0},{"$f":"+Katılım!AN117","v":0},{"$f":"+Katılım!#REF!","v":{"$error":"#REF!"}}]
[77,33,0,0,78,{"$f":"VLOOKUP(E118,Katılım!$A$4:$Z$301,26,0)","v":"UMUT ŞAN (GZT)"},{"$f":"+Katılım!AJ118","v":0},{"$f":"+Katılım!AK118","v":0},{"$f":"+Katılım!AL118","v":0},{"$f":"+Katılım!AM118","v":0},{"$f":"+Katılım!AN118","v":0},{"$f":"+Katılım!#REF!","v":{"$error":"#REF!"}},null,null,null,null,null,null,null,null,null,null,null,null,null,null,null,null,null,null,null,null,null,null,null,0,0,null,null,null,{"$f":"IF(AND(AJ118=0,AK118=0),\"\",IF(AJ118>AK118,AH114,AH121))","v":""}]
[null,null,null,null,null,null,null,3,1,null,null,39,{"$f":"IF(AND(H119=0,I119=0),\"\",IF(H119>I119,F118,F120))","v":"UMUT ŞAN (GZT)"},null,null,null,null,null,null,{"$f":"IF(AND(H119=0,I119=0),\"\",IF(H119>I119,F118,F120))","v":"UMUT ŞAN (GZT)"},null,null,null,null,null,84]
[78,65,44,21,79,{"$f":"VLOOKUP(E120,Katılım!$A$4:$Z$301,26,0)","v":"MERT KILIÇ KALKAN (IĞD)"},{"$f":"+Katılım!AJ120","v":0},{"$f":"+Katılım!AK120","v":0},{"$f":"+Katılım!AL120","v":0},{"$f":"+Katılım!AM120","v":0},{"$f":"+Katılım!AN120","v":0},{"$f":"+Katılım!#REF!","v":{"$error":"#REF!"}},null,null,null,null,null,null,null,null,null,null,null,null,null,84]
[79,65,12,53,80,{"$f":"VLOOKUP(E121,Katılım!$A$4:$Z$301,26,0)","v":"ÖMER SAİT BEKDEMİR (ANK)"},{"$f":"+Katılım!AJ121","v":0},{"$f":"+Katılım!AK121","v":0},{"$f":"+Katılım!AL121","v":0},{"$f":"+Katılım!AM121","v":0},{"$f":"+Katılım!AN121","v":0},{"$f":"+Katılım!#REF!","v":{"$error":"#REF!"}},null,null,null,null,null,null,null,null,null,0,3,null,null,null,{"$f":"IF(AND(V121=0,W121=0),\"\",IF(V121>W121,T119,T122))","v":"UTKU BORA ŞENTÜRK (RİZ)"},null,null,null,null,null,null,{"$f":"IF(AND(V121=0,W121=0),\"\",IF(V121>W121,T119,T122))","v":"UTKU BORA ŞENTÜRK (RİZ)"}]
[null,null,null,null,null,null,null,0,3,null,null,40,{"$f":"IF(AND(H122=0,I122=0),\"\",IF(H122>I122,F121,F123))","v":"UTKU BORA ŞENTÜRK (RİZ)"},null,null,null,null,null,null,{"$f":"IF(AND(H122=0,I122=0),\"\",IF(H122>I122,F121,F123))","v":"UTKU BORA ŞENTÜRK (RİZ)"}]
[80,9,0,0,14,{"$f":"VLOOKUP(E123,Katılım!$A$4:$Z$301,26,0)","v":"UTKU BORA ŞENTÜRK (RİZ)"},{"$f":"+Katılım!AJ123","v":0},{"$f":"+Katılım!AK123","v":0},{"$f":"+Katılım!AL123","v":0},{"$f":"+Katılım!AM123","v":0},{"$f":"+Katılım!AN123","v":0},{"$f":"+Katılım!#REF!","v":{"$error":"#REF!"}}]
[81,9,0,0,11,{"$f":"VLOOKUP(E124,Katılım!$A$4:$Z$301,26,0)","v":"MUSTAFA IŞIK ALYAPRAK (İZM)"},{"$f":"+Katılım!AJ124","v":0},{"$f":"+Katılım!AK124","v":0},{"$f":"+Katılım!AL124","v":0},{"$f":"+Katılım!AM124","v":0},{"$f":"+Katılım!AN124","v":0},{"$f":"+Katılım!#REF!","v":{"$error":"#REF!"}}]
[null,null,null,null,null,null,null,3,0,null,null,41,{"$f":"IF(AND(H125=0,I125=0),\"\",IF(H125>I125,F124,F126))","v":"MUSTAFA IŞIK ALYAPRAK (İZM)"},null,null,null,null,null,null,{"$f":"IF(AND(H125=0,I125=0),\"\",IF(H125>I125,F124,F126))","v":"MUSTAFA IŞIK ALYAPRAK (İZM)"},null,null,null,null,null,85]
[82,65,16,49,81,{"$f":"VLOOKUP(E126,Katılım!$A$4:$Z$301,26,0)","v":"ONUR RECEP BAKİ (TRB)"},{"$f":"+Katılım!AJ126","v":0},{"$f":"+Katılım!AK126","v":0},{"$f":"+Katılım!AL126","v":0},{"$f":"+Katılım!AM126","v":0},{"$f":"+Katılım!AN126","v":0},{"$f":"+Katılım!#REF!","v":{"$error":"#REF!"}},null,null,null,null,null,null,null,null,null,null,null,null,null,85,null,null,null,null,null,null,null,{"$f":"IF(AND(V127=0,W127=0),\"\",IF(V127>W127,T125,T128))","v":"MUSTAFA IŞIK ALYAPRAK (İZM)"}]
[83,65,48,17,82,{"$f":"VLOOKUP(E127,Katılım!$A$4:$Z$301,26,0)","v":"MUHAMMET EREN ÇAP (ORD)"},{"$f":"+Katılım!AJ127","v":0},{"$f":"+Katılım!AK127","v":0},{"$f":"+Katılım!AL127","v":0},{"$f":"+Katılım!AM127","v":0},{"$f":"+Katılım!AN127","v":0},{"$f":"+Katılım!#REF!","v":{"$error":"#REF!"}},null,null,null,null,null,null,null,null,null,3,1,null,null,null,{"$f":"IF(AND(V127=0,W127=0),\"\",IF(V127>W127,T125,T128))","v":"MUSTAFA IŞIK ALYAPRAK (İZM)"},null,null,null,null,null,null,null,null,null,null,null,null,107]
[null,null,null,null,null,null,null,0,3,null,null,42,{"$f":"IF(AND(H128=0,I128=0),\"\",IF(H128>I128,F127,F129))","v":"ARDA AYTEKİN (KYS)"},null,null,null,null,null,null,{"$f":"IF(AND(H128=0,I128=0),\"\",IF(H128>I128,F127,F129))","v":"ARDA AYTEKİN (KYS)"}]
[84,33,0,0,83,{"$f":"VLOOKUP(E129,Katılım!$A$4:$Z$301,26,0)","v":"ARDA AYTEKİN (KYS)"},{"$f":"+Katılım!AJ129","v":0},{"$f":"+Katılım!AK129","v":0},{"$f":"+Katılım!AL129","v":0},{"$f":"+Katılım!AM129","v":0},{"$f":"+Katılım!AN129","v":0},{"$f":"+Katılım!#REF!","v":{"$error":"#REF!"}}]
[85,33,0,0,38,{"$f":"VLOOKUP(E130,Katılım!$A$4:$Z$301,26,0)","v":"BURAK BEZENMİŞ (BTM)"},{"$f":"+Katılım!AJ130","v":0},{"$f":"+Katılım!AK130","v":0},{"$f":"+Katılım!AL130","v":0},{"$f":"+Katılım!AM130","v":0},{"$f":"+Katılım!AN130","v":0},{"$f":"+Katılım!#REF!","v":{"$error":"#REF!"}},null,null,null,null,null,null,null,null,null,null,null,null,null,null,null,null,null,null,null,null,null,null,null,0,0,null,null,null,{"$f":"IF(AND(AJ130=0,AK130=0),\"\",IF(AJ130>AK130,AH126,AH133))","v":""}]
[null,null,null,null,null,null,null,3,2,null,null,43,{"$f":"IF(AND(H131=0,I131=0),\"\",IF(H131>I131,F130,F132))","v":"BURAK BEZENMİŞ (BTM)"},null,null,null,null,null,null,{"$f":"IF(AND(H131=0,I131=0),\"\",IF(H131>I131,F130,F132))","v":"BURAK BEZENMİŞ (BTM)"},null,null,null,null,null,86]
[86,65,64,1,84,{"$f":"VLOOKUP(E132,Katılım!$A$4:$Z$301,26,0)","v":"MEHMET VARCAN (ESK)"},{"$f":"+Katılım!AJ132","v":0},{"$f":"+Katılım!AK132","v":0},{"$f":"+Katılım!AL132","v":0},{"$f":"+Katılım!AM132","v":0},{"$f":"+Katılım!AN132","v":0},{"$f":"+Katılım!#REF!","v":{"$error":"#REF!"}},null,null,null,null,null,null,null,null,null,null,null,null,null,86]
[87,65,32,33,85,{"$f":"VLOOKUP(E133,Katılım!$A$4:$Z$301,26,0)","v":"ERDEM ÇELİK (ISP)"},{"$f":"+Katılım!AJ133","v":0},{"$f":"+Katılım!AK133","v":0},{"$f":"+Katılım!AL133","v":0},{"$f":"+Katılım!AM133","v":0},{"$f":"+Katılım!AN133","v":0},{"$f":"+Katılım!#REF!","v":{"$error":"#REF!"}},null,null,null,null,null,null,null,null,null,0,3,null,null,null,{"$f":"IF(AND(V133=0,W133=0),\"\",IF(V133>W133,T131,T134))","v":"DORUK ŞENDOĞAN (RİZ)"},null,null,null,null,null,null,{"$f":"IF(AND(V133=0,W133=0),\"\",IF(V133>W133,T131,T134))","v":"DORUK ŞENDOĞAN (RİZ)"}]
[null,null,null,null,null,null,null,0,3," ",null,44,{"$f":"IF(AND(H134=0,I134=0),\"\",IF(H134>I134,F133,F135))","v":"DORUK ŞENDOĞAN (RİZ)"},null,null,null,null,null,null,{"$f":"IF(AND(H134=0,I134=0),\"\",IF(H134>I134,F133,F135))","v":"DORUK ŞENDOĞAN (RİZ)"}]
[88,17,0,0,22,{"$f":"VLOOKUP(E135,Katılım!$A$4:$Z$301,26,0)","v":"DORUK ŞENDOĞAN (RİZ)"},{"$f":"+Katılım!AJ135","v":0},{"$f":"+Katılım!AK135","v":0},{"$f":"+Katılım!AL135","v":0},{"$f":"+Katılım!AM135","v":0},{"$f":"+Katılım!AN135","v":0},{"$f":"+Katılım!#REF!","v":{"$error":"#REF!"}}]
[89,17,0,0,27,{"$f":"VLOOKUP(E136,Katılım!$A$4:$Z$301,26,0)","v":"AKIŞ TUĞRA ÇARIYEV (ADN)"},{"$f":"+Katılım!AJ136","v":0},{"$f":"+Katılım!AK136","v":0},{"$f":"+Katılım!AL136","v":0},{"$f":"+Katılım!AM136","v":0},{"$f":"+Katılım!AN136","v":0},{"$f":"+Katılım!#REF!","v":{"$error":"#REF!"}}]
[null,null,null,null,null,null,null,1,3,null,null,45,{"$f":"IF(AND(H137=0,I137=0),\"\",IF(H137>I137,F136,F138))","v":"BÜNYAMİN TANBOĞA (BTM)"},null,null,null,null,null,null,{"$f":"IF(AND(H137=0,I137=0),\"\",IF(H137>I137,F136,F138))","v":"BÜNYAMİN TANBOĞA (BTM)"},null,null,null,null,null,87]
[90,65,24,41,86,{"$f":"VLOOKUP(E138,Katılım!$A$4:$Z$301,26,0)","v":"BÜNYAMİN TANBOĞA (BTM)"},{"$f":"+Katılım!AJ138","v":0},{"$f":"+Katılım!AK138","v":0},{"$f":"+Katılım!AL138","v":0},{"$f":"+Katılım!AM138","v":0},{"$f":"+Katılım!AN138","v":0},{"$f":"+Katılım!#REF!","v":{"$error":"#REF!"}},null,null,null,null,null,null,null,null,null,null,null,null,null,87,null,null,null,null,null,null,null,{"$f":"IF(AND(V139=0,W139=0),\"\",IF(V139>W139,T137,T140))","v":"SELMAN ARSLAN (GRS)"}]
[91,65,56,9,87,{"$f":"VLOOKUP(E139,Katılım!$A$4:$Z$301,26,0)","v":"SELMAN ARSLAN (GRS)"},{"$f":"+Katılım!AJ139","v":0},{"$f":"+Katılım!AK139","v":0},{"$f":"+Katılım!AL139","v":0},{"$f":"+Katılım!AM139","v":0},{"$f":"+Katılım!AN139","v":0},{"$f":"+Katılım!#REF!","v":{"$error":"#REF!"}},null,null,null,null,null,null,null,null,null,1,3,null,null,null,{"$f":"IF(AND(V139=0,W139=0),\"\",IF(V139>W139,T137,T140))","v":"SELMAN ARSLAN (GRS)"},null,null,null,null,null,null,null,null,null,null,null,null,108]
[null,null,null,null,null,null,null,3,0,null,null,46,{"$f":"IF(AND(H140=0,I140=0),\"\",IF(H140>I140,F139,F141))","v":"SELMAN ARSLAN (GRS)"},null,null,null,null,null,null,{"$f":"IF(AND(H140=0,I140=0),\"\",IF(H140>I140,F139,F141))","v":"SELMAN ARSLAN (GRS)"}]
[92,33,0,0,88,{"$f":"VLOOKUP(E141,Katılım!$A$4:$Z$301,26,0)","v":"MUHAMMED ALİ GÜNDOĞDU (IĞD)"},{"$f":"+Katılım!AJ141","v":0},{"$f":"+Katılım!AK141","v":0},{"$f":"+Katılım!AL141","v":0},{"$f":"+Katılım!AM141","v":0},{"$f":"+Katılım!AN141","v":0},{"$f":"+Katılım!#REF!","v":{"$error":"#REF!"}}]
[93,33,0,0,999,{"$f":"VLOOKUP(E142,Katılım!$A$4:$Z$301,26,0)","v":{"$error":"#N/A"}},{"$f":"+Katılım!AJ142","v":0},{"$f":"+Katılım!AK142","v":0},{"$f":"+Katılım!AL142","v":0},{"$f":"+Katılım!AM142","v":0},{"$f":"+Katılım!AN142","v":0},{"$f":"+Katılım!#REF!","v":{"$error":"#REF!"}},null,null,null,null,null,null,null,null,null,null,null,null,null,null,null,null,null,null,null,null,null,null,null,0,0,null,null,null,{"$f":"IF(AND(AJ142=0,AK142=0),\"\",IF(AJ142>AK142,AH138,AH145))","v":""}]
[null,null,null,null,null,null,null,0,0,null,null,47,{"$f":"IF(AND(H143=0,I143=0),\"\",IF(H143>I143,F142,F144))","v":""},null,null,null,null,null,null,{"$f":"IF(AND(H143=0,I143=0),\"\",IF(H143>I143,F142,F144))","v":""},null,null,null,null,null,88]
[94,65,40,25,999,{"$f":"VLOOKUP(E144,Katılım!$A$4:$Z$301,26,0)","v":{"$error":"#N/A"}},{"$f":"+Katılım!AJ144","v":0},{"$f":"+Katılım!AK144","v":0},{"$f":"+Katılım!AL144","v":0},{"$f":"+Katılım!AM144","v":0},{"$f":"+Katılım!AN144","v":0},{"$f":"+Katılım!#REF!","v":{"$error":"#REF!"}},null,null,null,null,null,null,null,null,null,null,null,null,null,88]
[95,65,8,57,999,{"$f":"VLOOKUP(E145,Katılım!$A$4:$Z$301,26,0)","v":{"$error":"#N/A"}},{"$f":"+Katılım!AJ145","v":0},{"$f":"+Katılım!AK145","v":0},{"$f":"+Katılım!AL145","v":0},{"$f":"+Katılım!AM145","v":0},{"$f":"+Katılım!AN145","v":0},{"$f":"+Katılım!#REF!","v":{"$error":"#REF!"}},null,null,null,null,null,null,null,null,null,0,3,null,null,null,{"$f":"IF(AND(V145=0,W145=0),\"\",IF(V145>W145,T143,T146))","v":"MUHAMMED ÖLMEZ (KNY)"},null,null,null,null,null,null,{"$f":"IF(AND(V145=0,W145=0),\"\",IF(V145>W145,T143,T146))","v":"MUHAMMED ÖLMEZ (KNY)"}]
[null,null,null,null,null,null,null,0,3,null,null,48,{"$f":"IF(AND(H146=0,I146=0),\"\",IF(H146>I146,F145,F147))","v":"MUHAMMED ÖLMEZ (KNY)"},null,null,null,null,null,null,{"$f":"IF(AND(H146=0,I146=0),\"\",IF(H146>I146,F145,F147))","v":"MUHAMMED ÖLMEZ (KNY)"}]
[96,5,0,0,6,{"$f":"VLOOKUP(E147,Katılım!$A$4:$Z$301,26,0)","v":"MUHAMMED ÖLMEZ (KNY)"},{"$f":"+Katılım!AJ147","v":0},{"$f":"+Katılım!AK147","v":0},{"$f":"+Katılım!AL147","v":0},{"$f":"+Katılım!AM147","v":0},{"$f":"+Katılım!AN147","v":0},{"$f":"+Katılım!#REF!","v":{"$error":"#REF!"}}]
[97,5,0,0,7,{"$f":"VLOOKUP(E148,Katılım!$A$4:$Z$301,26,0)","v":"AHMET ŞAHAN (ISP)"},{"$f":"+Katılım!AJ148","v":0},{"$f":"+Katılım!AK148","v":0},{"$f":"+Katılım!AL148","v":0},{"$f":"+Katılım!AM148","v":0},{"$f":"+Katılım!AN148","v":0},{"$f":"+Katılım!#REF!","v":{"$error":"#REF!"}}]
[null,null,null,null,null,null,null,3,0,null,null,49,{"$f":"IF(AND(H149=0,I149=0),\"\",IF(H149>I149,F148,F150))","v":"AHMET ŞAHAN (ISP)"},null,null,null,null,null,null,{"$f":"IF(AND(H149=0,I149=0),\"\",IF(H149>I149,F148,F150))","v":"AHMET ŞAHAN (ISP)"},null,null,null,null,null,89]
[98,65,6,59,999,{"$f":"VLOOKUP(E150,Katılım!$A$4:$Z$301,26,0)","v":{"$error":"#N/A"}},{"$f":"+Katılım!AJ150","v":0},{"$f":"+Katılım!AK150","v":0},{"$f":"+Katılım!AL150","v":0},{"$f":"+Katılım!AM150","v":0},{"$f":"+Katılım!AN150","v":0},{"$f":"+Katılım!#REF!","v":{"$error":"#REF!"}},null,null,null,null,null,null,null,null,null,null,null,null,null,89,null,null,null,null,null,null,null,{"$f":"IF(AND(V151=0,W151=0),\"\",IF(V151>W151,T149,T152))","v":"AHMET ŞAHAN (ISP)"}]
[99,65,38,27,999,{"$f":"VLOOKUP(E151,Katılım!$A$4:$Z$301,26,0)","v":{"$error":"#N/A"}},{"$f":"+Katılım!AJ151","v":0},{"$f":"+Katılım!AK151","v":0},{"$f":"+Katılım!AL151","v":0},{"$f":"+Katılım!AM151","v":0},{"$f":"+Katılım!AN151","v":0},{"$f":"+Katılım!#REF!","v":{"$error":"#REF!"}},null,null,null,null,null,null,null,null,null,3,0,null,null,null,{"$f":"IF(AND(V151=0,W151=0),\"\",IF(V151>W151,T149,T152))","v":"AHMET ŞAHAN (ISP)"},null,null,null,null,null,null,null,null,null,null,null,null,109]
[null,null,null,null,null,null,null,0,0,null,null,50,{"$f":"IF(AND(H152=0,I152=0),\"\",IF(H152>I152,F151,F153))","v":""},null,null,null,null,null,null,{"$f":"IF(AND(H152=0,I152=0),\"\",IF(H152>I152,F151,F153))","v":""}]
[100,33,0,0,999,{"$f":"VLOOKUP(E153,Katılım!$A$4:$Z$301,26,0)","v":{"$error":"#N/A"}},{"$f":"+Katılım!AJ153","v":0},{"$f":"+Katılım!AK153","v":0},{"$f":"+Katılım!AL153","v":0},{"$f":"+Katılım!AM153","v":0},{"$f":"+Katılım!AN153","v":0},{"$f":"+Katılım!#REF!","v":{"$error":"#REF!"}}]
[101,33,0,0,89,{"$f":"VLOOKUP(E154,Katılım!$A$4:$Z$301,26,0)","v":"DEMİRKAN GÜLTEN (ESK)"},{"$f":"+Katılım!AJ154","v":0},{"$f":"+Katılım!AK154","v":0},{"$f":"+Katılım!AL154","v":0},{"$f":"+Katılım!AM154","v":0},{"$f":"+Katılım!AN154","v":0},{"$f":"+Katılım!#REF!","v":{"$error":"#REF!"}},null,null,null,null,null,null,null,null,null,null,null,null,null,null,null,null,null,null,null,null,null,null,null,0,0,null,null,null,{"$f":"IF(AND(AJ154=0,AK154=0),\"\",IF(AJ154>AK154,AH150,AH157))","v":""}]
[null,null,null,null,null,null,null,3,0,null,null,51,{"$f":"IF(AND(H155=0,I155=0),\"\",IF(H155>I155,F154,F156))","v":"DEMİRKAN GÜLTEN (ESK)"},null,null,null,null,null,null,{"$f":"IF(AND(H155=0,I155=0),\"\",IF(H155>I155,F154,F156))","v":"DEMİRKAN GÜLTEN (ESK)"},null,null,null,null,null,90]
[102,65,54,11,90,{"$f":"VLOOKUP(E156,Katılım!$A$4:$Z$301,26,0)","v":"KEMAL İNCE (ANK)"},{"$f":"+Katılım!AJ156","v":0},{"$f":"+Katılım!AK156","v":0},{"$f":"+Katılım!AL156","v":0},{"$f":"+Katılım!AM156","v":0},{"$f":"+Katılım!AN156","v":0},{"$f":"+Katılım!#REF!","v":{"$error":"#REF!"}},null,null,null,null,null,null,null,null,null,null,null,null,null,90]
[103,65,22,43,91,{"$f":"VLOOKUP(E157,Katılım!$A$4:$Z$301,26,0)","v":"MED DEVRAN KILIÇKALKAN (IĞD)"},{"$f":"+Katılım!AJ157","v":0},{"$f":"+Katılım!AK157","v":0},{"$f":"+Katılım!AL157","v":0},{"$f":"+Katılım!AM157","v":0},{"$f":"+Katılım!AN157","v":0},{"$f":"+Katılım!#REF!","v":{"$error":"#REF!"}},null,null,null,null,null,null,null,null,null,3,0,null,null,null,{"$f":"IF(AND(V157=0,W157=0),\"\",IF(V157>W157,T155,T158))","v":"DEMİRKAN GÜLTEN (ESK)"},null,null,null,null,null,null,{"$f":"IF(AND(V157=0,W157=0),\"\",IF(V157>W157,T155,T158))","v":"DEMİRKAN GÜLTEN (ESK)"}]
[null,null,null,null,null,null,null,0,3,null,null,52,{"$f":"IF(AND(H158=0,I158=0),\"\",IF(H158>I158,F157,F159))","v":"BEYAZIT BERK DEMİR (AMS)"},null,null,null,null,null,null,{"$f":"IF(AND(H158=0,I158=0),\"\",IF(H158>I158,F157,F159))","v":"BEYAZIT BERK DEMİR (AMS)"}]
[104,17,0,0,26,{"$f":"VLOOKUP(E159,Katılım!$A$4:$Z$301,26,0)","v":"BEYAZIT BERK DEMİR (AMS)"},{"$f":"+Katılım!AJ159","v":0},{"$f":"+Katılım!AK159","v":0},{"$f":"+Katılım!AL159","v":0},{"$f":"+Katılım!AM159","v":0},{"$f":"+Katılım!AN159","v":0},{"$f":"+Katılım!#REF!","v":{"$error":"#REF!"}}]
[105,17,0,0,23,{"$f":"VLOOKUP(E160,Katılım!$A$4:$Z$301,26,0)","v":"YUSUF ODABAŞ (SKR)"},{"$f":"+Katılım!AJ160","v":0},{"$f":"+Katılım!AK160","v":0},{"$f":"+Katılım!AL160","v":0},{"$f":"+Katılım!AM160","v":0},{"$f":"+Katılım!AN160","v":0},{"$f":"+Katılım!#REF!","v":{"$error":"#REF!"}}]
[null,null,null,null,null,null,null,3,0,null,null,53,{"$f":"IF(AND(H161=0,I161=0),\"\",IF(H161>I161,F160,F162))","v":"YUSUF ODABAŞ (SKR)"},null,null,null,null,null,null,{"$f":"IF(AND(H161=0,I161=0),\"\",IF(H161>I161,F160,F162))","v":"YUSUF ODABAŞ (SKR)"},null,null,null,null,null,91]
[106,65,30,35,92,{"$f":"VLOOKUP(E162,Katılım!$A$4:$Z$301,26,0)","v":"EREN CAN HAS (İST)"},{"$f":"+Katılım!AJ162","v":0},{"$f":"+Katılım!AK162","v":0},{"$f":"+Katılım!AL162","v":0},{"$f":"+Katılım!AM162","v":0},{"$f":"+Katılım!AN162","v":0},{"$f":"+Katılım!#REF!","v":{"$error":"#REF!"}},null,null,null,null,null,null,null,null,null,null,null,null,null,91,null,null,null,null,null,null,null,{"$f":"IF(AND(V163=0,W163=0),\"\",IF(V163>W163,T161,T164))","v":"AHMET BERK TÜKENMEZ (İST)"}]
[107,65,62,3,93,{"$f":"VLOOKUP(E163,Katılım!$A$4:$Z$301,26,0)","v":"YUSUF BUĞRA GÜRHAN (VAN)"},{"$f":"+Katılım!AJ163","v":0},{"$f":"+Katılım!AK163","v":0},{"$f":"+Katılım!AL163","v":0},{"$f":"+Katılım!AM163","v":0},{"$f":"+Katılım!AN163","v":0},{"$f":"+Katılım!#REF!","v":{"$error":"#REF!"}},null,null,null,null,null,null,null,null,null,0,3,null,null,null,{"$f":"IF(AND(V163=0,W163=0),\"\",IF(V163>W163,T161,T164))","v":"AHMET BERK TÜKENMEZ (İST)"},null,null,null,null,null,null,null,null,null,null,null,null,110]
[null,null,null,null,null,null,null,0,3,null,null,54,{"$f":"IF(AND(H164=0,I164=0),\"\",IF(H164>I164,F163,F165))","v":"AHMET BERK TÜKENMEZ (İST)"},null,null,null,null,null,null,{"$f":"IF(AND(H164=0,I164=0),\"\",IF(H164>I164,F163,F165))","v":"AHMET BERK TÜKENMEZ (İST)"}]
[108,33,0,0,39,{"$f":"VLOOKUP(E165,Katılım!$A$4:$Z$301,26,0)","v":"AHMET BERK TÜKENMEZ (İST)"},{"$f":"+Katılım!AJ165","v":0},{"$f":"+Katılım!AK165","v":0},{"$f":"+Katılım!AL165","v":0},{"$f":"+Katılım!AM165","v":0},{"$f":"+Katılım!AN165","v":0},{"$f":"+Katılım!#REF!","v":{"$error":"#REF!"}}]
[109,33,0,0,94,{"$f":"VLOOKUP(E166,Katılım!$A$4:$Z$301,26,0)","v":"TARIK EYMEN AYDIN (SMS)"},{"$f":"+Katılım!AJ166","v":0},{"$f":"+Katılım!AK166","v":0},{"$f":"+Katılım!AL166","v":0},{"$f":"+Katılım!AM166","v":0},{"$f":"+Katılım!AN166","v":0},{"$f":"+Katılım!#REF!","v":{"$error":"#REF!"}},null,null,null,null,null,null,null,null,null,null,null,null,null,null,null,null,null,null,null,null,null,null,null,0,0,null,null,null,{"$f":"IF(AND(AJ166=0,AK166=0),\"\",IF(AJ166>AK166,AH162,AH169))","v":""}]
[null,null,null,null,null,null,null,0,3,null,null,55,{"$f":"IF(AND(H167=0,I167=0),\"\",IF(H167>I167,F166,F168))","v":"YUSUF BURAK BİLGİNER (KRL)"},null,null,null,null,null,null,{"$f":"IF(AND(H167=0,I167=0),\"\",IF(H167>I167,F166,F168))","v":"YUSUF BURAK BİLGİNER (KRL)"},null,null,null,null,null,92]
[110,65,46,19,95,{"$f":"VLOOKUP(E168,Katılım!$A$4:$Z$301,26,0)","v":"YUSUF BURAK BİLGİNER (KRL)"},{"$f":"+Katılım!AJ168","v":0},{"$f":"+Katılım!AK168","v":0},{"$f":"+Katılım!AL168","v":0},{"$f":"+Katılım!AM168","v":0},{"$f":"+Katılım!AN168","v":0},{"$f":"+Katılım!#REF!","v":{"$error":"#REF!"}},null,null,null,null,null,null,null,null,null,null,null,null,null,92]
[111,65,14,51,96,{"$f":"VLOOKUP(E169,Katılım!$A$4:$Z$301,26,0)","v":"HÜSEYİN ALİ GÜRARAS (IĞD)"},{"$f":"+Katılım!AJ169","v":0},{"$f":"+Katılım!AK169","v":0},{"$f":"+Katılım!AL169","v":0},{"$f":"+Katılım!AM169","v":0},{"$f":"+Katılım!AN169","v":0},{"$f":"+Katılım!#REF!","v":{"$error":"#REF!"}},null,null,null,null,null,null,null,null,null,0,3,null,null,null,{"$f":"IF(AND(V169=0,W169=0),\"\",IF(V169>W169,T167,T170))","v":"ALİ ENES SEREN (KNY)"},null,null,null,null,null,null,{"$f":"IF(AND(V169=0,W169=0),\"\",IF(V169>W169,T167,T170))","v":"ALİ ENES SEREN (KNY)"}]
[null,null,null,null,null,null,null,0,3,null,null,56,{"$f":"IF(AND(H170=0,I170=0),\"\",IF(H170>I170,F169,F171))","v":"ALİ ENES SEREN (KNY)"},null,null,null,null,null,null,{"$f":"IF(AND(H170=0,I170=0),\"\",IF(H170>I170,F169,F171))","v":"ALİ ENES SEREN (KNY)"}]
[112,9,0,0,10,{"$f":"VLOOKUP(E171,Katılım!$A$4:$Z$301,26,0)","v":"ALİ ENES SEREN (KNY)"},{"$f":"+Katılım!AJ171","v":0},{"$f":"+Katılım!AK171","v":0},{"$f":"+Katılım!AL171","v":0},{"$f":"+Katılım!AM171","v":0},{"$f":"+Katılım!AN171","v":0},{"$f":"+Katılım!#REF!","v":{"$error":"#REF!"}}]
[113,9,0,0,15,{"$f":"VLOOKUP(E172,Katılım!$A$4:$Z$301,26,0)","v":"KAAN ATMACA (İST)"},{"$f":"+Katılım!AJ172","v":0},{"$f":"+Katılım!AK172","v":0},{"$f":"+Katılım!AL172","v":0},{"$f":"+Katılım!AM172","v":0},{"$f":"+Katılım!AN172","v":0},{"$f":"+Katılım!#REF!","v":{"$error":"#REF!"}}]
[null,null,null,null,null,null,null,3,0,null,null,57,{"$f":"IF(AND(H173=0,I173=0),\"\",IF(H173>I173,F172,F174))","v":"KAAN ATMACA (İST)"},null,null,null,null,null,null,{"$f":"IF(AND(H173=0,I173=0),\"\",IF(H173>I173,F172,F174))","v":"KAAN ATMACA (İST)"},null,null,null,null,null,93]
[114,65,10,55,97,{"$f":"VLOOKUP(E174,Katılım!$A$4:$Z$301,26,0)","v":"MELİKŞAH ÖZBİLGİ (BYB)"},{"$f":"+Katılım!AJ174","v":0},{"$f":"+Katılım!AK174","v":0},{"$f":"+Katılım!AL174","v":0},{"$f":"+Katılım!AM174","v":0},{"$f":"+Katılım!AN174","v":0},{"$f":"+Katılım!#REF!","v":{"$error":"#REF!"}},null,null,null,null,null,null,null,null,null,null,null,null,null,93,null,null,null,null,null,null,null,{"$f":"IF(AND(V175=0,W175=0),\"\",IF(V175>W175,T173,T176))","v":"KAAN ATMACA (İST)"}]
[115,65,42,23,98,{"$f":"VLOOKUP(E175,Katılım!$A$4:$Z$301,26,0)","v":"AHMET BARAN KAYA (VAN)"},{"$f":"+Katılım!AJ175","v":0},{"$f":"+Katılım!AK175","v":0},{"$f":"+Katılım!AL175","v":0},{"$f":"+Katılım!AM175","v":0},{"$f":"+Katılım!AN175","v":0},{"$f":"+Katılım!#REF!","v":{"$error":"#REF!"}},null,null,null,null,null,null,null,null,null,3,0,null,null,null,{"$f":"IF(AND(V175=0,W175=0),\"\",IF(V175>W175,T173,T176))","v":"KAAN ATMACA (İST)"},null,null,null,null,null,null,null,null,null,null,null,null,111]
[null,null,null,null,null,null,null,3,1,null,null,58,{"$f":"IF(AND(H176=0,I176=0),\"\",IF(H176>I176,F175,F177))","v":"AHMET BARAN KAYA (VAN)"},null,null,null,null,null,null,{"$f":"IF(AND(H176=0,I176=0),\"\",IF(H176>I176,F175,F177))","v":"AHMET BARAN KAYA (VAN)"}]
[116,33,0,0,99,{"$f":"VLOOKUP(E177,Katılım!$A$4:$Z$301,26,0)","v":"YUSUF SAMET KURT (ZNG)"},{"$f":"+Katılım!AJ177","v":0},{"$f":"+Katılım!AK177","v":0},{"$f":"+Katılım!AL177","v":0},{"$f":"+Katılım!AM177","v":0},{"$f":"+Katılım!AN177","v":0},{"$f":"+Katılım!#REF!","v":{"$error":"#REF!"}}]
[117,33,0,0,34,{"$f":"VLOOKUP(E178,Katılım!$A$4:$Z$301,26,0)","v":"MUSTAFA YILDIRIM (KNY)"},{"$f":"+Katılım!AJ178","v":0},{"$f":"+Katılım!AK178","v":0},{"$f":"+Katılım!AL178","v":0},{"$f":"+Katılım!AM178","v":0},{"$f":"+Katılım!AN178","v":0},{"$f":"+Katılım!#REF!","v":{"$error":"#REF!"}},null,null,null,null,null,null,null,null,null,null,null,null,null,null,null,null,null,null,null,null,null,null,null,0,0,null,null,null,{"$f":"IF(AND(AJ178=0,AK178=0),\"\",IF(AJ178>AK178,AH174,AH181))","v":""}]
[null,null,null,null,null,null,null,3,0,null,null,59,{"$f":"IF(AND(H179=0,I179=0),\"\",IF(H179>I179,F178,F180))","v":"MUSTAFA YILDIRIM (KNY)"},null,null,null,null,null,null,{"$f":"IF(AND(H179=0,I179=0),\"\",IF(H179>I179,F178,F180))","v":"MUSTAFA YILDIRIM (KNY)"},null,null,null,null,null,94]
[118,65,58,7,100,{"$f":"VLOOKUP(E180,Katılım!$A$4:$Z$301,26,0)","v":"EMRE GÖZÜKÜÇÜK (SVS)"},{"$f":"+Katılım!AJ180","v":0},{"$f":"+Katılım!AK180","v":0},{"$f":"+Katılım!AL180","v":0},{"$f":"+Katılım!AM180","v":0},{"$f":"+Katılım!AN180","v":0},{"$f":"+Katılım!#REF!","v":{"$error":"#REF!"}},null,null,null,null,null,null,null,null,null,null,null,null,null,94]
[119,65,26,39,101,{"$f":"VLOOKUP(E181,Katılım!$A$4:$Z$301,26,0)","v":"MERİÇ ÇORAK (ZNG)"},{"$f":"+Katılım!AJ181","v":0},{"$f":"+Katılım!AK181","v":0},{"$f":"+Katılım!AL181","v":0},{"$f":"+Katılım!AM181","v":0},{"$f":"+Katılım!AN181","v":0},{"$f":"+Katılım!#REF!","v":{"$error":"#REF!"}},null,null,null,null,null,null,null,null,null,2,3,null,null,null,{"$f":"IF(AND(V181=0,W181=0),\"\",IF(V181>W181,T179,T182))","v":"ONUR ALP SAĞIR (GRS)"},null,null,null,null,null,null,{"$f":"IF(AND(V181=0,W181=0),\"\",IF(V181>W181,T179,T182))","v":"ONUR ALP SAĞIR (GRS)"}]
[null,null,null,null,null,null,null,0,3,null,null,60,{"$f":"IF(AND(H182=0,I182=0),\"\",IF(H182>I182,F181,F183))","v":"ONUR ALP SAĞIR (GRS)"},null,null,null,null,null,null,{"$f":"IF(AND(H182=0,I182=0),\"\",IF(H182>I182,F181,F183))","v":"ONUR ALP SAĞIR (GRS)"}]
[120,17,0,0,18,{"$f":"VLOOKUP(E183,Katılım!$A$4:$Z$301,26,0)","v":"ONUR ALP SAĞIR (GRS)"},{"$f":"+Katılım!AJ183","v":0},{"$f":"+Katılım!AK183","v":0},{"$f":"+Katılım!AL183","v":0},{"$f":"+Katılım!AM183","v":0},{"$f":"+Katılım!AN183","v":0},{"$f":"+Katılım!#REF!","v":{"$error":"#REF!"}}]
[121,17,0,0,31,{"$f":"VLOOKUP(E184,Katılım!$A$4:$Z$301,26,0)","v":"EMİR PEHLİVAN (AMS)"},{"$f":"+Katılım!AJ184","v":0},{"$f":"+Katılım!AK184","v":0},{"$f":"+Katılım!AL184","v":0},{"$f":"+Katılım!AM184","v":0},{"$f":"+Katılım!AN184","v":0},{"$f":"+Katılım!#REF!","v":{"$error":"#REF!"}}]
[null,null,null,null,null,null,null,3,0,null,null,61,{"$f":"IF(AND(H185=0,I185=0),\"\",IF(H185>I185,F184,F186))","v":"EMİR PEHLİVAN (AMS)"},null,null,null,null,null,null,{"$f":"IF(AND(H185=0,I185=0),\"\",IF(H185>I185,F184,F186))","v":"EMİR PEHLİVAN (AMS)"},null,null,null,null,null,95]
[122,65,18,47,102,{"$f":"VLOOKUP(E186,Katılım!$A$4:$Z$301,26,0)","v":"FURKAN ÇELİK (IĞD)"},{"$f":"+Katılım!AJ186","v":0},{"$f":"+Katılım!AK186","v":0},{"$f":"+Katılım!AL186","v":0},{"$f":"+Katılım!AM186","v":0},{"$f":"+Katılım!AN186","v":0},{"$f":"+Katılım!#REF!","v":{"$error":"#REF!"}},null,null,null,null,null,null,null,null,null,null,null,null,null,95,null,null,null,null,null,null,null,{"$f":"IF(AND(V187=0,W187=0),\"\",IF(V187>W187,T185,T188))","v":"M. FURKAN AKINCI (BTM)"}]
[123,65,50,15,103,{"$f":"VLOOKUP(E187,Katılım!$A$4:$Z$301,26,0)","v":"M. FURKAN AKINCI (BTM)"},{"$f":"+Katılım!AJ187","v":0},{"$f":"+Katılım!AK187","v":0},{"$f":"+Katılım!AL187","v":0},{"$f":"+Katılım!AM187","v":0},{"$f":"+Katılım!AN187","v":0},{"$f":"+Katılım!#REF!","v":{"$error":"#REF!"}},null,null,null,null,null,null,null,null,null,2,3,null,null,null,{"$f":"IF(AND(V187=0,W187=0),\"\",IF(V187>W187,T185,T188))","v":"M. FURKAN AKINCI (BTM)"},null,null,null,null,null,null,null,null,null,null,null,null,112]
[null,null,null,null,null,null,null,3,0,null,null,62,{"$f":"IF(AND(H188=0,I188=0),\"\",IF(H188>I188,F187,F189))","v":"M. FURKAN AKINCI (BTM)"},null,null,null,null,null,null,{"$f":"IF(AND(H188=0,I188=0),\"\",IF(H188>I188,F187,F189))","v":"M. FURKAN AKINCI (BTM)"}]
[124,33,0,0,104,{"$f":"VLOOKUP(E189,Katılım!$A$4:$Z$301,26,0)","v":"MUSTAFA KEMAL KADI (GZT)"},{"$f":"+Katılım!AJ189","v":0},{"$f":"+Katılım!AK189","v":0},{"$f":"+Katılım!AL189","v":0},{"$f":"+Katılım!AM189","v":0},{"$f":"+Katılım!AN189","v":0},{"$f":"+Katılım!#REF!","v":{"$error":"#REF!"}}]
[125,33,0,0,999,{"$f":"VLOOKUP(E190,Katılım!$A$4:$Z$301,26,0)","v":{"$error":"#N/A"}},{"$f":"+Katılım!AJ190","v":0},{"$f":"+Katılım!AK190","v":0},{"$f":"+Katılım!AL190","v":0},{"$f":"+Katılım!AM190","v":0},{"$f":"+Katılım!AN190","v":0},{"$f":"+Katılım!#REF!","v":{"$error":"#REF!"}},null,null,null,null,null,null,null,null,null,null,null,null,null,null,null,null,null,null,null,null,null,null,null,0,0,null,null,null,{"$f":"IF(AND(AJ190=0,AK190=0),\"\",IF(AJ190>AK190,AH186,AH193))","v":""}]
[null,null,null,null,null,null,null,0,0,null,null,63,{"$f":"IF(AND(H191=0,I191=0),\"\",IF(H191>I191,F190,F192))","v":""},null,null,null,null,null,null,{"$f":"IF(AND(H191=0,I191=0),\"\",IF(H191>I191,F190,F192))","v":""},null,null,null,null,null,96]
[126,65,34,31,999,{"$f":"VLOOKUP(E192,Katılım!$A$4:$Z$301,26,0)","v":{"$error":"#N/A"}},{"$f":"+Katılım!AJ192","v":0},{"$f":"+Katılım!AK192","v":0},{"$f":"+Katılım!AL192","v":0},{"$f":"+Katılım!AM192","v":0},{"$f":"+Katılım!AN192","v":0},{"$f":"+Katılım!#REF!","v":{"$error":"#REF!"}},null,null,null,null,null,null,null,null,null,null,null,null,null,96]
[127,65,2,63,999,{"$f":"VLOOKUP(E193,Katılım!$A$4:$Z$301,26,0)","v":{"$error":"#N/A"}},{"$f":"+Katılım!AJ193","v":0},{"$f":"+Katılım!AK193","v":0},{"$f":"+Katılım!AL193","v":0},{"$f":"+Katılım!AM193","v":0},{"$f":"+Katılım!AN193","v":0},{"$f":"+Katılım!#REF!","v":{"$error":"#REF!"}},null,null,null,null,null,null,null,null,null,0,3,null,null,null,{"$f":"IF(AND(V193=0,W193=0),\"\",IF(V193>W193,T191,T194))","v":"KENAN EREN KAHRAMAN (KYS)"},null,null,null,null,null,null,{"$f":"IF(AND(V193=0,W193=0),\"\",IF(V193>W193,T191,T194))","v":"KENAN EREN KAHRAMAN (KYS)"}]
[null,null,null,null,null,null,null,0,3,null,null,64,{"$f":"IF(AND(H194=0,I194=0),\"\",IF(H194>I194,F193,F195))","v":"KENAN EREN KAHRAMAN (KYS)"},null,null,null,null,null,null,{"$f":"IF(AND(H194=0,I194=0),\"\",IF(H194>I194,F193,F195))","v":"KENAN EREN KAHRAMAN (KYS)"}]
[128,2,0,0,2,{"$f":"VLOOKUP(E195,Katılım!$A$4:$Z$301,26,0)","v":"KENAN EREN KAHRAMAN (KYS)"},{"$f":"+Katılım!AJ195","v":0},{"$f":"+Katılım!AK195","v":0},{"$f":"+Katılım!AL195","v":0},{"$f":"+Katılım!AM195","v":0},{"$f":"+Katılım!AN195","v":0},{"$f":"+Katılım!#REF!","v":{"$error":"#REF!"}}]

{"sheet":"Ana_Tablo","index":3,"n_rows":98,"n_cols":105,"rows_kept":98,"cut":false,"hidden":false,"merged":[[97,43,97,49],[81,43,81,49],[83,50,83,56],[87,50,87,56],[78,50,78,56],[56,71,56,77],[88,29,88,35],[91,29,91,35],[80,36,80,42],[83,36,83,42],[86,43,86,49],[80,50,80,56],[85,50,85,56],[89,50,89,56],[76,57,76,63],[70,57,70,63],[89,36,89,42],[91,43,91,49],[74,57,74,63],[93,29,93,35],[96,36,96,42],[84,43,84,49],[92,36,92,42],[90,29,90,35],[78,22,78,28],[52,29,52,35],[60,29,60,35],[68,29,68,35],[76,29,76,35],[64,29,64,35],[72,29,72,35],[75,15,75,21],[58,22,58,28],[65,15,65,21],[73,15,73,21],[77,15,77,21],[74,22,74,28],[38,71,38,77],[49,15,49,21],[51,15,51,21],[67,15,67,21],[71,15,71,21],[66,22,66,28],[48,29,48,35],[50,36,50,42],[58,36,58,42],[66,36,66,42],[54,43,54,49],[71,43,71,49],[48,43,48,49],[64,43,64,49],[51,50,51,56],[68,50,68,56],[55,15,55,21],[53,15,53,21],[54,22,54,28],[69,15,69,21],[70,22,70,28],[63,15,63,21],[59,15,59,21],[57,15,57,21],[24,64,24,70],[54,64,54,70],[74,36,74,42],[60,57,60,63],[48,57,48,63],[62,64,62,70],[94,36,94,42],[95,43,95,49],[93,43,93,49],[82,36,82,42],[85,36,85,42],[88,43,88,49],[73,50,73,56],[75,50,75,56],[77,43,77,49],[79,43,79,49],[74,8,74,14],[76,8,76,14],[78,8,78,14],[80,8,80,14],[54,8,54,14],[60,8,60,14],[66,8,66,14],[72,8,72,14],[68,8,68,14],[70,8,70,14],[64,8,64,14],[58,8,58,14],[62,8,62,14],[56,8,56,14],[79,15,79,21],[12,1,12,7],[7,8,7,14],[10,8,10,14],[13,8,13,14],[8,15,8,21],[24,1,24,7],[50,8,50,14],[52,8,52,14],[41,1,41,7],[42,1,42,7],[44,1,44,7],[45,1,45,7],[47,1,47,7],[33,1,33,7],[35,1,35,7],[36,1,36,7],[38,1,38,7],[39,1,39,7],[26,1,26,7],[27,1,27,7],[29,1,29,7],[30,1,30,7],[32,1,32,7],[18,1,18,7],[20,1,20,7],[21,1,21,7],[23,1,23,7],[19,8,19,14],[22,8,22,14],[20,15,20,21],[18,22,18,28],[14,1,14,7],[15,1,15,7],[17,1,17,7],[16,8,16,14],[15,15,15,21],[5,1,5,7],[6,1,6,7],[8,1,8,7],[9,1,9,7],[11,1,11,7],[0,24,2,46],[3,24,3,46],[4,24,4,46],[0,1,0,7],[2,1,2,7],[3,1,3,7],[1,8,1,14],[4,8,4,14],[3,15,3,21],[6,29,6,35],[27,15,27,21],[39,15,39,21],[32,15,32,21],[24,15,24,21],[31,29,31,35],[62,22,62,28],[12,50,12,56],[42,29,42,35],[25,8,25,14],[50,22,50,28],[31,8,31,14],[37,8,37,14],[28,8,28,14],[34,8,34,14],[40,8,40,14],[43,8,43,14],[44,15,44,21],[46,8,46,14],[37,50,37,56],[56,29,56,35],[17,29,17,35],[61,15,61,21]]}
[1,"GÖRKEM ÖÇAL (ADN)",null,null,null,null,null,null,null,null,null,null,null,null,null,null,null,null,null,null,null,null,null,null,"TÜRKİYE MASA TENİSİ FEDERASYONU\nKÜÇÜKLER FEDERASYON KUPASI",null,null,null,null,null,null,null,null,null,null,null,null,null,null,null,null,null,null,null,null,null,null,null,null,null,null,null,null,null,null,null,null,null,null,null,null,null,null,null,null,null,null,null,null,null,null,null,null,null,null,null,null,null,null,null,null,null,null,null,null,null,null,null,null,null,null,null,null,null,null,null,null,null,null,null,null,null,null,"1.Tur (1-16)",3]
[null,null,null,3,0,"Y1",null,1,"GÖRKEM ÖÇAL (ADN)",null,null,null,null,null,null,null,null,null,null,null,null,null,null,null,null,null,null,null,null,null,null,null,null,null,null,null,null,null,null,null,null,null,null,null,null,null,null,null,null,null,null,null,null,null,null,null,null,null,null,null,null,null,null,null,null,null,null,null,null,null,null,null,null,null,null,null,null,null,null,null,null,null,null,null,null,null,null,null,null,null,null,null,null,null,null,null,null,null,null,null,null,null,null,"2.Tur (17-32)"]
[2,"EYMEN BAŞAR (İST)",null,null,null,null,null,null,null,null,null,null,null,null,17,null,null,null,null,null,null,null,null,null,null,null,null,null,null,null,null,null,null,null,null,null,null,null,null,null,null,null,null,null,null,null,null,null,null,null,null,null,null,null,null,null,null,null,null,null,null,null,null,null,null,null,null,null,null,null,null,null,null,null,null,null,null,null,null,null,null,null,null,null,null,null,null,null,null,null,null,null,null,null,null,null,null,null,null,null,null,null,null,"3.Tur (33-44)"]
[3,"AHMET ÇELİK (GZT)",null,null,null,null,null,null,null,null,3,0,"Y17",null,null,"GÖRKEM ÖÇAL (ADN)",null,null,null,null,null,null,null,null,"TEK ERKEK [17-18 Nisan Amasya]",null,null,null,null,null,null,null,null,null,null,null,null,null,null,null,null,null,null,null,null,null,null,null,null,null,null,null,null,null,null,null,null,null,null,null,null,null,null,null,null,null,null,null,null,null,null,null,null,null,null,null,null,null,null,null,null,null,null,null,null,null,null,null,null,null,null,null,null,null,null,null,null,null,null,null,null,null,null,"4.Tur (45-48)"]
[null,null,null,0,3,"Y2",null,2,"ARAS AYDIN (İST)",null,null,null,null,null,null,null,null,null,null,null,null,33,null,null,"[ Ana Tablo ]",null,null,null,null,null,null,null,null,null,null,null,null,null,null,null,null,null,null,null,null,null,null,null,null,null,null,null,null,null,null,null,null,null,null,null,null,null,null,null,null,null,null,null,null,null,null,null,null,null,null,null,null,null,null,null,null,null,null,null,null,null,null,null,null,null,null,null,null,null,null,null,null,null,null,null,null,null,null,"5.Tur (49-56)"]
[4,"ARAS AYDIN (İST)",null,null,null,null,null,null,null,null,null,null,null,null,null,null,null,null,null,null,null,null,null,null,null,null,null,null,null,null,null,null,null,null,null,null,null,null,null,null,null,null,null,null,null,null,null,null,null,null,null,null,null,null,null,null,null,null,null,null,null,null,null,null,null,null,null,null,null,null,null,null,null,null,null,null,null,null,null,null,null,null,null,null,null,null,null,null,null,null,null,null,null,null,null,null,null,null,null,null,null,null,null,"6.Tur (57-62)"]
[5,"SALİH EREN YILDIRIM (ISP)",null,null,null,null,null,null,null,null,null,null,null,null,null,null,null,3,0,"Y25",null,null,null,null,null,null,null,null,null,"GÖRKEM ÖÇAL (ADN)",null,null,null,null,null,null,null,null,null,null,null,null,null,null,null,null,null,null,null,null,null,null,null,null,null,null,null,null,null,null,null,null,null,null,null,null,null,null,null,null,null,null,null,null,null,null,null,null,null,null,null,null,null,null,null,null,null,null,null,null,null,null,null,null,null,null,null,null,null,null,null,null,null,"7.Tur (63-67)"]
[null,null,null,3,0,"Y3",null,3,"SALİH EREN YILDIRIM (ISP)",null,null,null,null,null,null,null,null,null,null,null,null,null,null,null,null,null,null,null,null,null,null,null,null,null,null,49,null,null,null,null,null,null,null,null,null,null,null,null,null,null,null,null,null,null,null,null,null,null,null,null,null,null,null,null,null,null,null,null,null,null,null,null,null,null,null,null,null,null,null,null,null,null,null,null,null,null,null,null,null,null,null,null,null,null,null,null,null,null,null,null,null,null,null,"8.Tur (68-70)"]
[6,"TAHA KAAN DUMAN (BTM)",null,null,null,null,null,null,null,null,null,null,null,null,18,"SALİH EREN YILDIRIM (ISP)",null,null,null,null,null,null,null,null,null,null,null,null,null,null,null,null,null,null,null,null,null,null,null,null,null,null,null,null,null,null,null,null,null,null,null,null,null,null,null,null,null,null,null,null,null,null,null,null,null,null,null,null,null,null,null,null,null,null,null,null,null,null,null,null,null,null,null,null,null,null,null,null,null,null,null,null,null,null,null,null,null,null,null,null,null,null,null,"9.Tur (71)"]
[7,"AHMET YİĞİT GÜLENLER (GZT)",null,null,null,null,null,null,null,null,3,1,"Y18",null,null,null,null,null,null,null,null,null,null,null,null,null,null,null,null,null,null,null,null,null,null,null,null,null,null,null,null,null,null,null,null,null,null,null,null,null,null,null,null,null,null,null,null,null,null,null,null,null,null,null,null,null,null,null,null,null,null,null,null,null,null,null,null,null,null,null,null,null,null,null,null,null,null,null,null,null,null,null,null,null,null,null,null,null,null,null,null,null,null,"10.Tur (72)"]
[null,null,null,2,3,"Y4",null,4,"İSHAK MORBONCUK (GZT)"]
[8,"İSHAK MORBONCUK (GZT)"]
[9,"MEHMET EYMEN KILIÇ (KCL)",null,null,null,null,null,null,null,null,null,null,null,null,null,null,null,null,null,null,null,null,null,null,null,null,null,null,null,null,null,3,0,"Y29",null,null,null,null,null,null,null,null,null,null,null,null,null,null,null,null,"GÖRKEM ÖÇAL (ADN)"]
[null,null,null,3,1,"Y5",null,5,"MEHMET EYMEN KILIÇ (KCL)",null,null,null,null,null,null,null,null,null,null,null,null,null,null,null,null,null,null,null,null,null,null,null,null,null,null,null,null,null,null,null,null,null,null,null,null,null,null,null,null,null,null,null,null,null,null,null,68]
[10,"ORÇUN ÇELİK (SVS)",null,null,null,null,null,null,null,null,null,null,null,null,19]
[11,"EMİR YALÇIN PEHLİVAN (KRL)",null,null,null,null,null,null,null,null,3,2,"Y19",null,null,"MEHMET EYMEN KILIÇ (KCL)"]
[null,null,null,1,3,"Y6",null,6,"BATIN GÜLER (YLV)",null,null,null,null,null,null,null,null,null,null,null,null,34]
[12,"BATIN GÜLER (YLV)",null,null,null,null,null,null,null,null,null,null,null,null,null,null,null,null,null,null,null,null,null,null,null,null,null,null,null,"YİĞİT CAN KAYA (İST)"]
[13,"KAAN BEYZAT TUNA (YLV)",null,null,null,null,null,null,null,null,null,null,null,null,null,null,null,0,3,"Y26"]
[null,null,null,2,3,"Y7",null,7,"ÖMER TALHA ASLAN (ISP)"]
[14,"ÖMER TALHA ASLAN (ISP)",null,null,null,null,null,null,null,null,null,null,null,null,20,"YİĞİT CAN KAYA (İST)"]
[15,"BERAT ÖZDEMİR (ÇRM)",null,null,null,null,null,null,null,null,0,3,"Y20"]
[null,null,null,0,3,"Y8",null,8,"YİĞİT CAN KAYA (İST)"]
[16,"YİĞİT CAN KAYA (İST)"]
[17,"KUZEY GÜNDOĞDU (KST)",null,null,null,null,null,null,null,null,null,null,null,null,null,null,null,null,null,null,null,null,null,null,null,null,null,null,null,null,null,null,null,null,null,null,null,null,null,null,null,null,null,null,null,null,null,null,null,null,null,null,3,0,"Y31",null,null,null,null,null,null,null,null,null,"GÖRKEM ÖÇAL (ADN)"]
[null,null,null,3,0,"Y9",null,9,"KUZEY GÜNDOĞDU (KST)",null,null,null,null,null,null,null,null,null,null,null,null,null,null,null,null,null,null,null,null,null,null,null,null,null,null,null,null,null,null,null,null,null,null,null,null,null,null,null,null,null,null,null,null,null,null,null,null,null,null,null,null,null,null,null,null,null,null,null,null,null,72]
[18,"ALİ AŞNAS GÜL (ÇRM)",null,null,null,null,null,null,null,null,null,null,null,null,21]
[19,"SELİM AZAZİ (GZT)",null,null,null,null,null,null,null,null,3,2,"Y21",null,null,"KUZEY GÜNDOĞDU (KST)"]
[null,null,null,3,2,"Y10",null,10,"SELİM AZAZİ (GZT)",null,null,null,null,null,null,null,null,null,null,null,null,35]
[20,"UTKU BORA ŞENTÜRK (RİZ)"]
[21,"MUSTAFA IŞIK ALYAPRAK (İZM)",null,null,null,null,null,null,null,null,null,null,null,null,null,null,null,3,1,"Y27"]
[null,null,null,1,3,"Y11",null,11,"DORUK ŞENDOĞAN (RİZ)",null,null,null,null,null,null,null,null,null,null,null,null,null,null,null,null,null,null,null,null,"KUZEY GÜNDOĞDU (KST)"]
[22,"DORUK ŞENDOĞAN (RİZ)",null,null,null,null,null,null,null,null,null,null,null,null,22,"DORUK ŞENDOĞAN (RİZ)",null,null,null,null,null,null,null,null,null,null,null,null,null,null,null,null,null,null,null,50]
[23,"SELMAN ARSLAN (GRS)",null,null,null,null,null,null,null,null,3,2,"Y22"]
[null,null,null,2,3,"Y12",null,12,"MUHAMMED ÖLMEZ (KNY)"]
[24,"MUHAMMED ÖLMEZ (KNY)"]
[25,"AHMET ŞAHAN (ISP)"]
[null,null,null,3,0,"Y13",null,13,"AHMET ŞAHAN (ISP)",null,null,null,null,null,null,null,null,null,null,null,null,null,null,null,null,null,null,null,null,null,null,0,3,"Y30",null,null,null,null,null,null,null,null,null,null,null,null,null,null,null,null,"KENAN EREN KAHRAMAN (KYS)"]
[26,"DEMİRKAN GÜLTEN (ESK)",null,null,null,null,null,null,null,null,null,null,null,null,23,null,null,null,null,null,null,null,null,null,null,null,null,null,null,null,null,null,null,null,null,null,null,null,null,null,null,null,null,null,null,null,null,null,null,null,null,null,null,null,null,null,null,null,null,null,null,null,null,null,null,null,0,3,"Y32",null,null,"KENAN EREN KAHRAMAN (KYS)",null,null,null,null,null,null,"1."]
[27,"AHMET BERK TÜKENMEZ (İST)",null,null,null,null,null,null,null,null,2,3,"Y23",null,null,"ALİ ENES SEREN (KNY)"]
[null,null,null,0,3,"Y14",null,14,"ALİ ENES SEREN (KNY)",null,null,null,null,null,null,null,null,null,null,null,null,36]
[28,"ALİ ENES SEREN (KNY)"]
[29,"KAAN ATMACA (İST)",null,null,null,null,null,null,null,null,null,null,null,null,null,null,null,0,3,"Y28",null,null,null,null,null,null,null,null,null,"KENAN EREN KAHRAMAN (KYS)"]
[null,null,null,3,1,"Y15",null,15,"KAAN ATMACA (İST)"]
[30,"ONUR ALP SAĞIR (GRS)",null,null,null,null,null,null,null,null,null,null,null,null,24,"KENAN EREN KAHRAMAN (KYS)"]
[31,"M. FURKAN AKINCI (BTM)",null,null,null,null,null,null,null,null,0,3,"Y24"]
[null,null,null,0,3,"Y16",null,16,"KENAN EREN KAHRAMAN (KYS)"]
[32,"KENAN EREN KAHRAMAN (KYS)"]
[null,null,null,null,null,null,null,null,null,null,null,null,null,null,null,null,null,null,null,null,null,null,null,null,null,null,null,null,"Y25","SALİH EREN YILDIRIM (ISP)",null,null,null,null,null,null,null,null,null,null,null,null,"Y30","KUZEY GÜNDOĞDU (KST)",null,null,null,null,null,null,null,null,null,null,null,null,"Y31","KENAN EREN KAHRAMAN (KYS)"]
[null,null,null,null,null,null,null,null,null,null,null,null,null,null,"Y24","KAAN ATMACA (İST)",null,null,null,null,null,null,null,null,null,null,null,null,null,null,null,null,null,null,null,51,null,null,null,null,null,null,null,null,null,null,null,null,null,63,null,null,null,null,null,null,null,null,null,null,null,null,null,71]
[null,null,null,null,null,null,null,"Y1","EYMEN BAŞAR (İST)",null,null,null,null,null,null,null,null,3,1,"YE",null,37,"KAAN ATMACA (İST)",null,null,null,null,null,null,null,null,0,3,"Y37",null,null,"AHMET ŞAHAN (ISP)"]
[null,null,null,null,null,null,null,null,null,null,1,3,"Y.Elenir",null,25,"AHMET ÇELİK (GZT)",null,null,null,null,null,null,null,null,null,null,null,null,45,null,null,null,null,null,null,null,null,null,null,null,null,null,57,null,null,null,null,null,null,null,"KUZEY GÜNDOĞDU (KST)"]
[null,null,null,null,null,null,null,"Y2","AHMET ÇELİK (GZT)",null,null,null,null,null,null,null,null,null,null,null,null,null,null,null,null,1,3,"Y33",null,"AHMET ŞAHAN (ISP)",null,null,null,null,null,null,null,null,null,null,null,null,null,null,null,3,1,"Y43",null,null,null,null,null,null,null,null,69]
[null,null,null,null,null,null,null,null,null,null,null,null,null,null,"Y23","AHMET ŞAHAN (ISP)"]
[null,null,null,null,null,null,null,"Y3","TAHA KAAN DUMAN (BTM)",null,null,null,null,null,null,null,null,3,0,"YE",null,38,"AHMET ŞAHAN (ISP)",null,null,null,null,null,null,null,null,null,null,null,null,null,null,null,null,null,null,null,null,"AHMET ŞAHAN (ISP)",null,null,null,null,null,null,null,null,null,null,null,null,null,null,null,null,3,0,"Y46",null,"KENAN EREN KAHRAMAN (KYS)"]
[null,null,null,null,null,null,null,null,null,null,0,3,"YE",null,26,"AHMET YİĞİT GÜLENLER (GZT)",null,null,null,null,null,null,null,null,null,null,null,null,null,null,null,null,null,null,null,null,null,null,3,0,"Y41"]
[null,null,null,null,null,null,null,"Y4","AHMET YİĞİT GÜLENLER (GZT)",null,null,null,null,null,null,null,null,null,null,null,null,null,null,null,null,null,null,null,"Y26","MEHMET EYMEN KILIÇ (KCL)",null,null,null,null,null,null,null,null,null,null,null,null,null,null,null,null,null,null,null,null,null,null,null,null,null,null,null,null,null,null,null,null,null,null,null,null,null,null,null,null,"Y32","GÖRKEM ÖÇAL (ADN)",null,null,null,null,null,null,"2."]
[null,null,null,null,null,null,null,null,null,null,null,null,null,null,"Y22","MUHAMMED ÖLMEZ (KNY)",null,null,null,null,null,null,null,null,null,null,null,null,null,null,null,null,null,null,null,52]
[null,null,null,null,null,null,null,"Y5","ORÇUN ÇELİK (SVS)",null,null,null,null,null,null,null,null,3,1,"YE",null,39,"MUHAMMED ÖLMEZ (KNY)",null,null,null,null,null,null,null,null,3,2,"Y38",null,null,"MEHMET EYMEN KILIÇ (KCL)"]
[null,null,null,null,null,null,null,null,null,null,3,0,"YE",null,27,"ORÇUN ÇELİK (SVS)",null,null,null,null,null,null,null,null,null,null,null,null,46]
[null,null,null,null,null,null,null,"Y6","EMİR YALÇIN PEHLİVAN (KRL)",null,null,null,null,null,null,null,null,null,null,null,null,null,null,null,null,3,2,"Y34",null,"MUHAMMED ÖLMEZ (KNY)",null,null,null,null,null,null,null,null,null,null,null,null,null,null,null,null,null,null,null,null,null,null,1,3,"Y45",null,null,"ALİ ENES SEREN (KNY)"]
[null,null,null,null,null,null,null,null,null,null,null,null,null,null,"Y21","SELİM AZAZİ (GZT)"]
[null,null,null,null,null,null,null,"Y7","KAAN BEYZAT TUNA (YLV)",null,null,null,null,null,null,null,null,1,3,"YE",null,40,"KAAN BEYZAT TUNA (YLV)",null,null,null,null,null,null,null,null,null,null,null,null,null,null,null,null,null,null,null,null,null,null,null,null,null,null,null,null,null,null,null,null,null,null,null,null,null,null,null,null,"Y46","ALİ ENES SEREN (KNY)",null,null,null,null,null,null,"3."]
[null,null,null,null,null,null,null,null,null,null,3,1,"YE",null,28,"KAAN BEYZAT TUNA (YLV)"]
[null,null,null,null,null,null,null,"Y8","BERAT ÖZDEMİR (ÇRM)",null,null,null,null,null,null,null,null,null,null,null,null,null,null,null,null,null,null,null,"Y27","DORUK ŞENDOĞAN (RİZ)",null,null,null,null,null,null,null,null,null,null,null,null,"Y29","YİĞİT CAN KAYA (İST)"]
[null,null,null,null,null,null,null,null,null,null,null,null,null,null,"Y20","ÖMER TALHA ASLAN (ISP)",null,null,null,null,null,null,null,null,null,null,null,null,null,null,null,null,null,null,null,53,null,null,null,null,null,null,null,null,null,null,null,null,null,64]
[null,null,null,null,null,null,null,"Y9","ALİ AŞNAS GÜL (ÇRM)",null,null,null,null,null,null,null,null,0,3,"YE",null,41,"UTKU BORA ŞENTÜRK (RİZ)",null,null,null,null,null,null,null,null,0,3,"Y39",null,null,"UTKU BORA ŞENTÜRK (RİZ)"]
[null,null,null,null,null,null,null,null,null,null,2,3,"YE",null,29,"UTKU BORA ŞENTÜRK (RİZ)",null,null,null,null,null,null,null,null,null,null,null,null,47]
[null,null,null,null,null,null,null,"Y10","UTKU BORA ŞENTÜRK (RİZ)",null,null,null,null,null,null,null,null,null,null,null,null,null,null,null,null,3,2,"Y35",null,"UTKU BORA ŞENTÜRK (RİZ)",null,null,null,null,null,null,null,null,null,null,null,null,58,null,null,1,3,"Y44",null,null,"ALİ ENES SEREN (KNY)"]
[null,null,null,null,null,null,null,null,null,null,null,null,null,null,"Y19","BATIN GÜLER (YLV)"]
[null,null,null,null,null,null,null,"Y11","MUSTAFA IŞIK ALYAPRAK (İZM)",null,null,null,null,null,null,null,null,1,3,"YE",null,42,"MUSTAFA IŞIK ALYAPRAK (İZM)",null,null,null,null,null,null,null,null,null,null,null,null,null,null,null,null,null,null,null,null,null,null,null,null,null,null,null,null,null,null,null,null,null,"Y45","KUZEY GÜNDOĞDU (KST)",null,null,null,null,null,null,"4."]
[null,null,null,null,null,null,null,null,null,null,3,0,"YE",null,30,"MUSTAFA IŞIK ALYAPRAK (İZM)",null,null,null,null,null,null,null,null,null,null,null,null,null,null,null,null,null,null,null,null,null,null,0,3,"Y42",null,null,"ALİ ENES SEREN (KNY)"]
[null,null,null,null,null,null,null,"Y12","SELMAN ARSLAN (GRS)",null,null,null,null,null,null,null,null,null,null,null,null,null,null,null,null,null,null,null,"Y28","ALİ ENES SEREN (KNY)"]
[null,null,null,null,null,null,null,null,null,null,null,null,null,null,"Y18","İSHAK MORBONCUK (GZT)",null,null,null,null,null,null,null,null,null,null,null,null,null,null,null,null,null,null,null,54,null,null,null,null,null,null,null,null,null,null,null,null,null,"Y43","AHMET ŞAHAN (ISP)"]
[null,null,null,null,null,null,null,"Y13","DEMİRKAN GÜLTEN (ESK)",null,null,null,null,null,null,null,null,3,2,"YE",null,43,"İSHAK MORBONCUK (GZT)",null,null,null,null,null,null,null,null,3,0,"Y40",null,null,"ALİ ENES SEREN (KNY)",null,null,null,null,null,null,null,null,null,null,null,null,null,null,null,0,3,"Y56",null,70,"YİĞİT CAN KAYA (İST)",null,null,null,null,null,null,"5."]
[null,null,null,null,null,null,null,null,null,null,2,3,"YE",null,31,"AHMET BERK TÜKENMEZ (İST)",null,null,null,null,null,null,null,null,null,null,null,null,48,null,null,null,null,null,null,null,null,null,null,null,null,null,null,null,null,null,null,null,null,"Y44","YİĞİT CAN KAYA (İST)"]
[null,null,null,null,null,null,null,"Y14","AHMET BERK TÜKENMEZ (İST)",null,null,null,null,null,null,null,null,null,null,null,null,null,null,null,null,0,3,"Y36",null,"ARAS AYDIN (İST)",null,null,null,null,null,null,null,null,null,null,null,null,null,null,null,null,null,null,null,null,null,null,null,null,null,null,"Y56","AHMET ŞAHAN (ISP)",null,null,null,null,null,null,"6."]
[null,null,null,null,null,null,null,null,null,null,null,null,null,null,"Y17","ARAS AYDIN (İST)",null,null,null,null,null,null,null,null,null,null,null,null,null,null,null,null,null,null,null,null,null,null,null,null,null,null,"Y41","MEHMET EYMEN KILIÇ (KCL)"]
[null,null,null,null,null,null,null,"Y15","ONUR ALP SAĞIR (GRS)",null,null,null,null,null,null,null,null,3,0,"YE",null,44,"ARAS AYDIN (İST)",null,null,null,null,null,null,null,null,null,null,null,null,null,null,null,null,null,null,null,null,null,null,3,1,"Y53",null,65,"MEHMET EYMEN KILIÇ (KCL)",null,null,null,null,null,null,"7."]
[null,null,null,null,null,null,null,null,null,null,3,1,"YE",null,32,"ONUR ALP SAĞIR (GRS)",null,null,null,null,null,null,null,null,null,null,null,null,null,null,null,null,null,null,null,null,null,null,null,null,null,null,"Y42","UTKU BORA ŞENTÜRK (RİZ)"]
[null,null,null,null,null,null,null,"Y16","M. FURKAN AKINCI (BTM)",null,null,null,null,null,null,null,null,null,null,null,null,null,null,null,null,null,null,null,null,null,null,null,null,null,null,"Y37","SALİH EREN YILDIRIM (ISP)",null,null,null,null,null,null,null,null,null,null,null,null,"Y53","UTKU BORA ŞENTÜRK (RİZ)",null,null,null,null,null,null,"8."]
[null,null,null,null,null,null,null,null,null,null,null,null,null,null,null,null,null,null,null,null,null,null,null,null,null,null,null,null,null,null,null,null,null,null,null,null,null,null,3,1,"Y49",null,59,"SALİH EREN YILDIRIM (ISP)"]
[null,null,null,null,null,null,null,null,null,null,null,null,null,null,null,null,null,null,null,null,null,null,null,null,null,null,null,null,null,null,null,null,null,null,null,"Y38","MUHAMMED ÖLMEZ (KNY)",null,null,null,null,null,null,null,null,null,null,null,null,66]
[null,null,null,null,null,null,null,null,null,null,null,null,null,null,null,null,null,null,null,null,null,null,null,null,null,null,null,null,null,null,null,null,null,null,null,"Y39","DORUK ŞENDOĞAN (RİZ)",null,null,null,null,null,null,null,null,3,1,"Y54",null,null,"SALİH EREN YILDIRIM (ISP)",null,null,null,null,null,null,"9."]
[null,null,null,null,null,null,null,null,null,null,null,null,null,null,null,null,null,null,null,null,null,null,null,null,null,null,null,null,null,null,null,null,null,null,null,null,null,null,3,0,"Y50",null,60,"DORUK ŞENDOĞAN (RİZ)"]
[null,null,null,null,null,null,null,null,null,null,null,null,null,null,null,null,null,null,null,null,null,null,null,null,null,null,null,null,null,null,null,null,null,null,null,"Y40","ARAS AYDIN (İST)",null,null,null,null,null,null,null,null,null,null,null,null,"Y54","DORUK ŞENDOĞAN (RİZ)",null,null,null,null,null,null,"10."]
[null,null,null,null,null,null,null,null,null,null,null,null,null,null,null,null,null,null,null,null,null,null,null,null,null,null,null,null,null,null,null,null,null,null,null,null,null,null,null,null,null,null,"Y49","MUHAMMED ÖLMEZ (KNY)"]
[null,null,null,null,null,null,null,null,null,null,null,null,null,null,null,null,null,null,null,null,null,null,null,null,null,null,null,null,null,null,null,null,null,null,null,null,null,null,null,null,null,null,null,null,null,3,0,"Y55",null,67,"MUHAMMED ÖLMEZ (KNY)",null,null,null,null,null,null,"11."]
[null,null,null,null,null,null,null,null,null,null,null,null,null,null,null,null,null,null,null,null,null,null,null,null,null,null,null,null,"Y33","KAAN ATMACA (İST)",null,null,null,null,null,null,null,null,null,null,null,null,"Y50","ARAS AYDIN (İST)"]
[null,null,null,null,null,null,null,null,null,null,null,null,null,null,null,null,null,null,null,null,null,null,null,null,null,null,null,null,null,null,null,3,1,"Y47",null,55,"KAAN ATMACA (İST)",null,null,null,null,null,null,null,null,null,null,null,null,"Y55","ARAS AYDIN (İST)",null,null,null,null,null,null,"12."]
[null,null,null,null,null,null,null,null,null,null,null,null,null,null,null,null,null,null,null,null,null,null,null,null,null,null,null,null,"Y34","KAAN BEYZAT TUNA (YLV)",null,null,null,null,null,null,null,null,null,null,null,null,61]
[null,null,null,null,null,null,null,null,null,null,null,null,null,null,null,null,null,null,null,null,null,null,null,null,null,null,null,null,"Y35","MUSTAFA IŞIK ALYAPRAK (İZM)",null,null,null,null,null,null,null,null,3,0,"Y51",null,null,"KAAN ATMACA (İST)",null,null,null,null,null,null,"13."]
[null,null,null,null,null,null,null,null,null,null,null,null,null,null,null,null,null,null,null,null,null,null,null,null,null,null,null,null,null,null,null,2,3,"Y48",null,56,"İSHAK MORBONCUK (GZT)"]
[null,null,null,null,null,null,null,null,null,null,null,null,null,null,null,null,null,null,null,null,null,null,null,null,null,null,null,null,"Y36","İSHAK MORBONCUK (GZT)",null,null,null,null,null,null,null,null,null,null,null,null,"Y51","İSHAK MORBONCUK (GZT)",null,null,null,null,null,null,"14."]
[null,null,null,null,null,null,null,null,null,null,null,null,null,null,null,null,null,null,null,null,null,null,null,null,null,null,null,null,null,null,null,null,null,null,null,"Y47","KAAN BEYZAT TUNA (YLV)"]
[null,null,null,null,null,null,null,null,null,null,null,null,null,null,null,null,null,null,null,null,null,null,null,null,null,null,null,null,null,null,null,null,null,null,null,null,null,null,3,0,"Y52",null,62,"KAAN BEYZAT TUNA (YLV)",null,null,null,null,null,null,"15."]
[null,null,null,null,null,null,null,null,null,null,null,null,null,null,null,null,null,null,null,null,null,null,null,null,null,null,null,null,null,null,null,null,null,null,null,"Y48","MUSTAFA IŞIK ALYAPRAK (İZM)"]
[null,null,null,null,null,null,null,null,null,null,null,null,null,null,null,null,null,null,null,null,null,null,null,null,null,null,null,null,null,null,null,null,null,null,null,null,null,null,null,null,null,null,"Y52","MUSTAFA IŞIK ALYAPRAK (İZM)",null,null,null,null,null,null,"16."]

{"sheet":"Sıralama","index":4,"n_rows":38,"n_cols":3,"rows_kept":38,"cut":false,"hidden":false,"merged":[[1,0,1,6],[2,0,2,6],[4,0,4,6]]}
[]
[{"$f":"+Katılım!A1","v":"TÜRKİYE MASA TENİSİ FEDERASYONU\nKÜÇÜKLER FEDERASYON KUPASI"}]
[{"$f":"+Katılım!A2","v":"TEK ERKEK [17-18 Nisan 2023 Amasya]"}]
[]
["ERKEK FERDİ SIRALAMA"]
[null,"Sıra","Sporcu Adı-Soyadı"]
[null,"1.","KENAN EREN KAHRAMAN "]
[null,"2.","GÖRKEM ÖÇAL"]
[null,"3.","ALİ ENES SEREN"]
[null,"4.","KUZEY GÜNDOĞDU"]
[null,"5.","YİĞİT CAN KAYA"]
[null,"6.","AHMET ŞAHAN"]
[null,"7.","MEHMET EYMEN KILIÇ"]
[null,"8.","UTKU BORA ŞENTÜRK"]
[null,"9.","SALİH EREN YILDIRIM"]
[null,"10.","DORUK ŞENDOĞAN"]
[null,"11.","MUHAMMED ÖLMEZ"]
[null,"12.","ARAS AYDIN"]
[null,"13.","KAAN ATMACA"]
[null,"14.","İSHAK MORBONCUK"]
[null,"15.","KAAN BEYZAT TUNA"]
[null,"16.","MUSTAFA IŞIK ALYAPRAK"]
[null,"17.","AHMET BERK TÜKENMEZ (İST)"]
[null,"17.","AHMET ÇELİK (GZT)"]
[null,"17.","AHMET YİĞİT GÜLENLER (GZT)"]
[null,"17.","BATIN GÜLER (YLV)"]
[null,"17.","ONUR ALP SAĞIR (GRS)"]
[null,"17.","ORÇUN ÇELİK (SVS)"]
[null,"17.","ÖMER TALHA ASLAN (ISP)"]
[null,"17.","SELİM AZAZİ (GZT)"]
[null,"25.","ALİ AŞNAS GÜL (ÇRM)"]
[null,"25.","BERAT ÖZDEMİR (ÇRM)"]
[null,"25.","DEMİRKAN GÜLTEN (ESK)"]
[null,"25.","EMİR YALÇIN PEHLİVAN (KRL)"]
[null,"25.","EYMEN BAŞAR (İST)"]
[null,"25.","M. FURKAN AKINCI (BTM)"]
[null,"25.","SELMAN ARSLAN (GRS)"]
[null,"25.","TAHA KAAN DUMAN (BTM)"]